Workbook

Sheet Form
E1: BUDGET | M1: Page 1
E2: EXPENDITURES | K2: FUND NAME
E3: July 1, 2024 - June 30, 2025 | K3: FUND NO:
A4: NOTE: Round each entry to the nearest dollar amount.
C5: EXPENDITURES | D5: Prior Year | E5: Proposed | F5: 100 | G5: 200 | H5: 300 | I5: 400 | J5: 500 | K5: 600 | L5: 700 | M5: 800
H6: Purchased | I6: Supplies | J6: Capital | K6: Debt | L6: Insurance-
A7: Line | B7: Code | C7: Functions/Programs | D7: Budget | E7: Budget | F7: Salaries | G7: Benefits | H7: Services | I7: Materials | J7: Objects | K7: Retirement | L7: Judgment | M7: Transfers
A8: 1 | B8: 512 | C8: Elementary School Program | E8: =SUM(F8:M8) -> 0
A9: 2 | B9: 515 | C9: Secondary School Program | E9: =SUM(F9:M9) -> 0
A10: 3 | B10: 517 | C10: Alternative School Program | E10: 0
A11: 4 | B11: 519 | C11: Vocational-Technical Program | E11: 0
A12: 5 | B12: 521 | C12: Special Education Program | E12: 0
A13: 6 | B13: 522 | C13: Special Education Preschool Program | E13: 0
A14: 7 | B14: 524 | C14: Gifted & Talented Program | E14: 0
A15: 8 | B15: 531 | C15: Interscholastic Program | E15: 0
A16: 9 | B16: 532 | C16: School Activity Program | E16: 0
A17: 10 | B17: 541 | C17: Summer School Program | E17: 0
A18: 11 | B18: 542 | C18: Adult School Program | E18: 0
A19: 12 | B19: 546 | C19: Detention Center Program | E19: 0
A20: 13
A21: 14 | B21: 500 | C21: TOTAL INSTRUCTION | D21: =SUM(D8:D19) -> 0 | E21: 0 | F21: 0 | G21: 0 | H21: 0 | I21: 0 | J21: 0 | K21: 0 | L21: 0 | M21: 0
A22: 15
A23: 16 | B23: 611 | C23: Attendance-Guidance-Health Program | E23: =SUM(F23:M23) -> 0
A24: 17 | B24: 616 | C24: Special Education Support Services Prog | E24: =SUM(F24:M24) -> 0
A25: 18
A26: 19 | B26: 621 | C26: Instruction Improvement Program | E26: =SUM(F26:M26) -> 0
A27: 20 | B27: 622 | C27: Educational Media Program | E27: 0
A28: 21 | B28: 623 | C28: Instruction-Related Technology Program | E28: 0
A29: 22 | B29: 624 | C29: Books and Periodicals | E29: 0
A30: 23 | B30: 631 | C30: Board of Education Program | E30: 0
A31: 24 | B31: 632 | C31: District Administration Program | E31: 0
A32: 25
A33: 26 | B33: 641 | C33: School Administration Program | E33: =SUM(F33:M33) -> 0
A34: 27
A35: 28 | B35: 651 | C35: Business Operation Program | E35: =SUM(F35:M35) -> 0
A36: 29 | B36: 655 | C36: Central Service Program | E36: =SUM(F36:M36) -> 0
A37: 30 | B37: 656 | C37: Administrative Technology Services Prog | E37: 0
A38: 31 | B38: 661 | C38: Buildings-Care Program (Custodial) | E38: 0
A39: 32 | B39: 663 | C39: Maintenance - Non Student Occupied | E39: 0
A40: 33 | B40: 664 | C40: Maintenance - Buildings and Equipment | E40: 0
A41: 34 | B41: 665 | C41: Maintenance - Grounds | E41: 0
A42: 35 | B42: 667 | C42: Security Program | E42: 0
A43: 36
A44: 37 | B44: 681 | C44: Pupil - To School Trans. Program | E44: =SUM(F44:M44) -> 0
A45: 38 | B45: 682 | C45: Pupil - Activity Trans. Program | E45: =SUM(F45:M45) -> 0
A46: 39 | B46: 683 | C46: General Transportation Program | E46: =SUM(F46:M46) -> 0
A48: =CELL("filename",A48) -> C:\Users\teacher\Desktop\[KSD 414 2025-Expenditures.xlsm]Form
C49: Subtotal (carried over to page b) | D49: =SUM(D23:D47) -> 0 | E49: =SUM(E23:E47) -> 0 | F49: 0 | G49: 0 | H49: 0 | I49: 0 | J49: 0 | K49: 0 | L49: 0 | M49: 0
A51: End of Sheet

Sheet Formb
E1: BUDGET | M1: Page 2
E2: EXPENDITURES | K2: FUND NAME
E3: July 1, 2024 - June 30, 2025 | K3: FUND NO:
A4: NOTE: Round each entry to the nearest dollar amount.
C5: EXPENDITURES | D5: Prior Year | E5: Proposed | F5: 100 | G5: 200 | H5: 300 | I5: 400 | J5: 500 | K5: 600 | L5: 700 | M5: 800
H6: Purchased | I6: Supplies | J6: Capital | K6: Debt | L6: Insurance-
A7: Line | B7: Code | C7: Functions/Programs | D7: Budget | E7: Budget | F7: Salaries | G7: Benefits | H7: Services | I7: Materials | J7: Objects | K7: Retirement | L7: Judgment | M7: Transfers
A8: 40 | B8: 691 | C8: Other Support Services Program | E8: =SUM(F8:M8) -> 0
A9: 41
A10: 42 | B10: 600 | C10: TOTAL SUPPORT SERVICES | D10: =+D8+Form!D49 -> 0 | E10: =+E8+Form!E49 -> 0 | F10: =+F8+Form!F49 -> 0 | G10: =+G8+Form!G49 -> 0 | H10: =+H8+Form!H49 -> 0 | I10: =+I8+Form!I49 -> 0 | J10: =+J8+Form!J49 -> 0 | K10: =+K8+Form!K49 -> 0 | L10: =+L8+Form!L49 -> 0 | M10: =+M8+Form!M49 -> 0
A11: 43
A12: 44 | B12: 710 | C12: Child Nutrition Program | E12: =SUM(F12:M12) -> 0
A13: 45 | B13: 720 | C13: Community Services Program | E13: =SUM(F13:M13) -> 0
A14: 46 | B14: 730 | C14: Enterprise Operations | E14: =SUM(F14:M14) -> 0
A15: 47 | B15: 740 | C15: Student Activity Program | E15: =SUM(F15:M15) -> 0
A16: 48
A17: 49 | B17: 700 | C17: TOTAL NON-INSTRUCTION | D17: =SUM(D12:D15) -> 0 | E17: =SUM(E12:E15) -> 0 | F17: 0 | G17: 0 | H17: 0 | I17: 0 | J17: 0 | K17: 0 | L17: 0 | M17: 0
A18: 50
A19: 51 | B19: 810 | C19: Capital Assets | E19: =SUM(F19:M19) -> 0
A20: 52 | B20: 811 | C20: Capital Assets - NonStudent Occupied | E20: =SUM(F20:M20) -> 0
A21: 53
A22: 54 | B22: 800 | C22: TOTAL CAPITAL ASSET PROGRAMS | D22: =SUM(D19:D20) -> 0 | E22: =SUM(E19:E20) -> 0 | F22: =SUM(F19:F20) -> 0 | G22: =SUM(G19:G20) -> 0 | H22: 0 | I22: 0 | J22: 0 | K22: 0 | L22: 0 | M22: 0
A23: 55
A24: 56 | B24: 911 | C24: Debt Services Program - Principal | E24: =SUM(F24:M24) -> 0
A25: 57 | B25: 912 | C25: Debt Services Program - Interest | E25: =SUM(F25:M25) -> 0
A26: 58 | B26: 913 | C26: Debt Services Program - Refunded Debt | E26: =SUM(F26:M26) -> 0
A27: 59 | B27: 920 | C27: Fund Transfers Out | E27: =SUM(F27:M27) -> 0
A28: 60
A29: 61 | B29: 900 | C29: TOTAL OTHER SERVICES | D29: =SUM(D24:D28) -> 0 | E29: =SUM(E24:E28) -> 0 | F29: =SUM(F24:F28) -> 0 | G29: =SUM(G24:G28) -> 0 | H29: 0 | I29: 0 | J29: 0 | K29: 0 | L29: 0 | M29: 0
A30: 62
A31: 63 | C31: TOTAL EXPENDITURES
A32: 64 | C32: (Lines 14+42+49+54+61) | D32: =SUM(D29,D22,D17,D10,Form!D21) -> 0 | E32: =SUM(E29,E22,E17,E10,Form!E21) -> 0 | F32: =SUM(F29,F22,F17,F10,Form!F21) -> 0 | G32: =SUM(G29,G22,G17,G10,Form!G21) -> 0 | H32: =SUM(H29,H22,H17,H10,Form!H21) -> 0 | I32: =SUM(I29,I22,I17,I10,Form!I21) -> 0 | J32: =SUM(J29,J22,J17,J10,Form!J21) -> 0 | K32: =SUM(K29,K22,K17,K10,Form!K21) -> 0 | L32: =SUM(L29,L22,L17,L10,Form!L21) -> 0 | M32: =SUM(M29,M22,M17,M10,Form!M21) -> 0
A33: 65
A34: 66 | B34: 950 | C34: Contingency Reserve
A35: 67 | C35: (5% of line 63 ) (Applies to General Fund only) | F35: (Applies to General Fund only)
A36: 68
A37: 69 | C37: TOTAL EXPENDITURES | D37: =+D32+D34 -> 0 | E37: =+E32+E34 -> 0
A38: 70 | C38: (Line 64 + line 66)
A39: 71
A40: 72
A41: 73 | C41: BUDGET SUMMARY
A42: 74
A43: 75 | C43: Beginning Fund Balance | F43: BUDGET SUMMARY:
A44: 76 | C44: Revenues + Transfers In
A45: 77 | C45: TOTAL REVENUE (lines 75 + 76) | D45: =SUM(D43:D44) -> 0 | E45: =SUM(E43:E44) -> 0 | F45: The total on line 77 must equal the total on line 81.
A46: 78
A47: 79 | C47: Total Expenditures + Cont. Reserve (line 69) | D47: =D37 -> 0 | E47: =E37 -> 0
A48: 80 | C48: Unappropriated Balance | D48: =+D45-D37 -> 0 | E48: =+E45-E37 -> 0
A49: 81 | C49: TOTAL EXPD + CONT. RES +UNAPPR BAL (lines 78 + 79) | D49: =SUM(D47:D48) -> 0 | E49: =SUM(E47:E48) -> 0
A50: =CELL("FILENAME",A2) -> C:\Users\teacher\Desktop\[KSD 414 2025-Expenditures.xlsm]Formb

Sheet 100
E1: BUDGET | M1: Page 3
E2: EXPENDITURES | M2: GENERAL M & O FUND
E3: July 1, 2024 - June 30, 2025 | M3: FUND NO: 100
A4: NOTE: Round each entry to the nearest dollar amount.
C5: EXPENDITURES | D5: Prior Year | E5: Proposed | F5: 100 | G5: 200 | H5: 300 | I5: 400 | J5: 500 | K5: 600 | L5: 700 | M5: 800
H6: Purchased | I6: Supplies | J6: Capital | K6: Debt | L6: Insurance-
A7: Line | B7: Code | C7: Functions/Programs | D7: Budget | E7: Budget | F7: Salaries | G7: Benefits | H7: Services | I7: Materials | J7: Objects | K7: Retirement | L7: Judgment | M7: Transfers
A8: 1 | B8: 512 | C8: Elementary School Program | D8: 3447836 | E8: =SUM(F8:M8) -> 3708900 | F8: 2700993 | G8: 923707 | H8: 27000 | I8: 57200
A9: 2 | B9: 515 | C9: Secondary School Program | D9: 4605227 | E9: =SUM(F9:M9) -> 4702777 | F9: 3403668 | G9: 1174484 | H9: 36500 | I9: 88125
A10: 3 | B10: 517 | C10: Alternative School Program | D10: 29898 | E10: =SUM(F10:M10) -> 24226 | F10: 20000 | G10: 4226
A11: 4 | B11: 519 | C11: Vocational-Technical Program | D11: 0 | E11: =SUM(F11:M11) -> 0
A12: 5 | B12: 521 | C12: Special Education Program | D12: 0 | E12: 0
A13: 6 | B13: 522 | C13: Special Education Preschool Program | D13: 0 | E13: 0
A14: 7 | B14: 524 | C14: Gifted & Talented Program | D14: 0 | E14: 0
A15: 8 | B15: 531 | C15: Interscholastic Program | D15: 260342 | E15: =SUM(F15:M15) -> 278056 | F15: 204439 | G15: 40097 | H15: 29500 | I15: 3000 | L15: 1020
A16: 9 | B16: 532 | C16: School Activity Program | D16: 71694 | E16: =SUM(F16:M16) -> 73115 | F16: 46421 | G16: 9869 | H16: 15525 | I16: 1300
A17: 10 | B17: 541 | C17: Summer School Program | D17: 0 | E17: 0
A18: 11 | B18: 542 | C18: Adult School Program | D18: 0 | E18: 0
A19: 12 | B19: 546 | C19: Detention Center Program | D19: 0 | E19: 0
A20: 13
A21: 14 | B21: 500 | C21: TOTAL INSTRUCTION | D21: 8414997 | E21: =SUM(E8:E19) -> 8787074 | F21: 6375521 | G21: 2152383 | H21: 108525 | I21: 149625 | J21: 0 | K21: =SUM(K8:K19) -> 0 | L21: =SUM(L8:L19) -> 1020 | M21: 0
A22: 15
A23: 16 | B23: 611 | C23: Attendance-Guidance-Health Program | D23: 397380 | E23: =SUM(F23:M23) -> 424485 | F23: 317345 | G23: 105640 | I23: 1500
A24: 17 | B24: 616 | C24: Special Education Support Services Prog | D24: 923782 | E24: =SUM(F24:M24) -> 1079828 | F24: 798155 | G24: 279673 | I24: 2000
A25: 18
A26: 19 | B26: 621 | C26: Instruction Improvement Program | D26: 539254 | E26: =SUM(F26:M26) -> 603303 | F26: 392990 | G26: 120887 | H26: 22966 | I26: 66460
A27: 20 | B27: 622 | C27: Educational Media Program | D27: 346876 | E27: =SUM(F27:M27) -> 373638 | F27: 274881 | G27: 95757 | I27: 3000
A28: 21 | B28: 623 | C28: Instruction-Related Technology Program | D28: 374090 | E28: 396706 | F28: 215709 | G28: 79343 | H28: 52000 | I28: 49654
A29: 22 | B29: 624 | C29: Books and Periodicals | D29: 14800 | E29: 14800 | I29: 14800
A30: 23 | B30: 631 | C30: Board of Education Program | D30: 21014 | E30: 320042 | G30: 42 | H30: 15000 | I30: 305000
A31: 24 | B31: 632 | C31: District Administration Program | D31: 199538 | E31: =SUM(F31:M31) -> 202077 | F31: 138840 | G31: 53237 | H31: 10000
A32: 25
A33: 26 | B33: 641 | C33: School Administration Program | D33: 1352101 | E33: =SUM(F33:M33) -> 1424207 | F33: 1039528 | G33: 360979 | H33: 23700
A34: 27
A35: 28 | B35: 651 | C35: Business Operation Program | D35: 433482 | E35: =SUM(F35:M35) -> 474906 | F35: 234577 | G35: 78452 | H35: 100800 | I35: 59000 | L35: 2077
A36: 29 | B36: 655 | C36: Central Service Program | D36: 0 | E36: =SUM(F36:M36) -> 0
A37: 30 | B37: 656 | C37: Administrative Technology Services Prog | D37: 0 | E37: 0
A38: 31 | B38: 661 | C38: Buildings-Care Program (Custodial) | D38: 1078345 | E38: =SUM(F38:M38) -> 1123348 | F38: 459094 | G38: 197356 | H38: 300260 | I38: 58000 | L38: 108638
A39: 32 | B39: 663 | C39: Maintenance - Non Student Occupied | D39: 87302 | E39: =SUM(F39:M39) -> 132214 | F39: 46335 | G39: 11710 | H39: 13446 | I39: 55000 | J39: 5723
A40: 33 | B40: 664 | C40: Maintenance - Buildings and Equipment | D40: 309145 | E40: =SUM(F40:M40) -> 384229 | F40: 230459 | G40: 96470 | H40: 29300 | I40: 28000
A41: 34 | B41: 665 | C41: Maintenance - Grounds | D41: 0 | E41: 0
A42: 35 | B42: 667 | C42: Security Program | D42: 33432 | E42: =SUM(G42:M42) -> 33845 | H42: 27845 | I42: 6000
A43: 36
A44: 37 | B44: 681 | C44: Pupil - To School Trans. Program | D44: 701441 | E44: =SUM(F44:M44) -> 741309 | F44: 375726 | G44: 161751 | H44: 38227 | I44: 147765 | J44: 4260 | L44: 13580
A45: 38 | B45: 682 | C45: Pupil - Activity Trans. Program | D45: 0
A46: 39 | B46: 683 | C46: General Transportation Program | D46: 0 | E46: =SUM(F46:M46) -> 0
A48: =CELL("filename",A48) -> C:\Users\teacher\Desktop\[KSD 414 2025-Expenditures.xlsm]100
C49: Subtotal (carried over to page b) | D49: 6811982 | E49: =SUM(E23:E47) -> 7728937 | F49: =SUM(F23:F47) -> 4523639 | G49: =SUM(G23:G46) -> 1641297 | H49: =SUM(H23:H47) -> 633544 | I49: =SUM(I23:I47) -> 796179 | J49: =SUM(J23:J47) -> 9983 | K49: =SUM(K23:K47) -> 0 | L49: =SUM(L23:L47) -> 124295 | M49: =SUM(M23:M47) -> 0
A51: End of Sheet

Sheet 100b
E1: BUDGET | M1: Page 4
E2: EXPENDITURES | M2: GENERAL M & O FUND
E3: July 1, 2024 - June 30, 2025 | M3: FUND NO: 100
A4: NOTE: Round each entry to the nearest dollar amount.
C5: EXPENDITURES | D5: Prior Year | E5: Proposed | F5: 100 | G5: 200 | H5: 300 | I5: 400 | J5: 500 | K5: 600 | L5: 700 | M5: 800
H6: Purchased | I6: Supplies | J6: Capital | K6: Debt | L6: Insurance-
A7: Line | B7: Code | C7: Functions/Programs | D7: Budget | E7: Budget | F7: Salaries | G7: Benefits | H7: Services | I7: Materials | J7: Objects | K7: Retirement | L7: Judgment | M7: Transfers
A8: 40 | B8: 691 | C8: Other Support Services Program | E8: =SUM(F8:M8) -> 0
A9: 41
A10: 42 | B10: 600 | C10: TOTAL SUPPORT SERVICES | D10: 6811982 | E10: =+E8+'100'!E49 -> 7728937 | F10: =+F8+'100'!F49 -> 4523639 | G10: ='100'!G49 -> 1641297 | H10: =+H8+'100'!H49 -> 633544 | I10: =+I8+'100'!I49 -> 796179 | J10: =+J8+'100'!J49 -> 9983 | K10: =+K8+'100'!K49 -> 0 | L10: =+L8+'100'!L49 -> 124295 | M10: =+M8+'100'!M49 -> 0
A11: 43
A12: 44 | B12: 710 | C12: Child Nutrition Program | D12: 20008 | E12: =SUM(F12:M12) -> 21963 | G12: 21963
A13: 45 | B13: 720 | C13: Community Services Program | D13: 0 | E13: =SUM(F13:M13) -> 0
A14: 46 | B14: 730 | C14: Enterprise Operations | D14: 0 | E14: =SUM(F14:M14) -> 0
A15: 47 | B15: 740 | C15: Student Activity Program | D15: 0 | E15: =SUM(F15:M15) -> 0
A16: 48
A17: 49 | B17: 700 | C17: TOTAL NON-INSTRUCTION | D17: 20008 | E17: =SUM(E12:E15) -> 21963 | F17: =SUM(F12:F15) -> 0 | G17: =SUM(G12:G16) -> 21963 | H17: 0 | I17: 0 | J17: 0 | K17: 0 | L17: 0 | M17: 0
A18: 50
A19: 51 | B19: 810 | C19: Capital Assets | D19: 0 | E19: =SUM(F19:M19) -> 0
A20: 52 | B20: 811 | C20: Capital Assets - NonStudent Occupied | D20: 0 | E20: =SUM(F20:M20) -> 0
A21: 53
A22: 54 | B22: 800 | C22: TOTAL CAPITAL ASSET PROGRAMS | D22: 0 | E22: =SUM(E19:E20) -> 0 | F22: =SUM(F19:F20) -> 0 | G22: =SUM(G19:G20) -> 0 | H22: 0 | I22: 0 | J22: 0 | K22: 0 | L22: 0 | M22: 0
A23: 55
A24: 56 | B24: 911 | C24: Debt Services Program - Principal | D24: 0 | E24: =SUM(F24:M24) -> 0
A25: 57 | B25: 912 | C25: Debt Services Program - Interest | D25: 0 | E25: =SUM(F25:M25) -> 0
A26: 58 | B26: 913 | C26: Debt Services Program - Refunded Debt | D26: 0 | E26: =SUM(F26:M26) -> 0
A27: 59 | B27: 920 | C27: Fund Transfers Out | D27: 1634118 | E27: =SUM(F27:M27) -> 1602912 | M27: 1602912
A28: 60
A29: 61 | B29: 900 | C29: TOTAL OTHER SERVICES | D29: 1634118 | E29: =SUM(E24:E27) -> 1602912 | F29: =SUM(F24:F28) -> 0 | G29: =SUM(G24:G28) -> 0 | H29: 0 | I29: 0 | J29: 0 | K29: 0 | L29: 0 | M29: =SUM(M24:M27) -> 1602912
A30: 62
A31: 63 | C31: TOTAL EXPENDITURES
A32: 64 | C32: (Lines 14+42+49+54+61) | D32: 16881105 | E32: =SUM(F32:M32) -> 18140886 | F32: =SUM(F29,F22,F17,F10,'100'!F21) -> 10899160 | G32: =SUM(G29,G22,G17,G10,'100'!G21) -> 3815643 | H32: =SUM(H29,H22,H17,H10,'100'!H21) -> 742069 | I32: =SUM(I29,I22,I17,I10,'100'!I21) -> 945804 | J32: =SUM(J29,J22,J17,J10,'100'!J21) -> 9983 | K32: =SUM(K29,K22,K17,K10,'100'!K21) -> 0 | L32: =SUM(L29,L22,L17,L10,'100'!L21) -> 125315 | M32: =M29 -> 1602912
A33: 65
A34: 66 | B34: 950 | C34: Contingency Reserve
A35: 67 | C35: (5% of line 63 ) (Applies to General Fund only) | D35: 844055 | E35: 850000 | F35: (Applies to General Fund only)
A36: 68
A37: 69 | C37: TOTAL EXPENDITURES + CONT. RESERVE | D37: 17725160 | E37: =E32+E35 -> 18990886
A38: 70 | C38: (Line 64 + line 66)
A39: 71
A40: 72
A41: 73 | C41: BUDGET SUMMARY
A42: 74
A43: 75 | C43: Beginning Fund Balance | D43: -1140887 | E43: -1389772 | F43: BUDGET SUMMARY:
A44: 76 | C44: Revenues + Transfers In | D44: -16616980 | E44: -17606424
A45: 77 | C45: TOTAL REVENUE (lines 75 + 76) | D45: -17757867 | E45: =SUM(E43:E44) -> -18996196 | F45: The total on line 77 must equal the total on line 81.
A46: 78
A47: 79 | C47: Total Expenditures + Cont. Reserve (line 69) | D47: 17725160 | E47: =E37 -> 18990886
A48: 80 | C48: Unappropriated Balance | D48: 32707 | E48: 5310
A49: 81 | C49: TOTAL EXPD + CONT. RES + UNAPPR BAL (lines 79 + 80) | D49: 17757867 | E49: =SUM(E47:E48) -> 18996196
A50: =CELL("FILENAME",A2) -> C:\Users\teacher\Desktop\[KSD 414 2025-Expenditures.xlsm]100b

Sheet 232
E1: BUDGET | M1: Page 5
E2: EXPENDITURES | M2: Special Services FUND
E3: July 1, 2024 - June 30, 2025 | M3: FUND NO: 232
A4: NOTE: Round each entry to the nearest dollar amount.
C5: EXPENDITURES | D5: Prior Year | E5: Proposed | F5: 100 | G5: 200 | H5: 300 | I5: 400 | J5: 500 | K5: 600 | L5: 700 | M5: 800
H6: Purchased | I6: Supplies | J6: Capital | K6: Debt | L6: Insurance-
A7: Line | B7: Code | C7: Functions/Programs | D7: Budget | E7: Budget | F7: Salaries | G7: Benefits | H7: Services | I7: Materials | J7: Objects | K7: Retirement | L7: Judgment | M7: Transfers
A8: 1 | B8: 512 | C8: Elementary School Program | D8: 0 | E8: =SUM(F8:M8) -> 0
A9: 2 | B9: 515 | C9: Secondary School Program | D9: 0 | E9: =SUM(F9:M9) -> 0
A10: 3 | B10: 517 | C10: Alternative School Program | D10: 0 | E10: 0
A11: 4 | B11: 519 | C11: Vocational-Technical Program | D11: 0 | E11: 0
A12: 5 | B12: 521 | C12: Special Education Program | D12: 692278 | E12: =SUM(F12:M12) -> 862999 | F12: 416268 | G12: 198006 | H12: 248725
A13: 6 | B13: 522 | C13: Special Education Preschool Program | D13: 0 | E13: 0
A14: 7 | B14: 524 | C14: Gifted & Talented Program | D14: 0 | E14: 0
A15: 8 | B15: 531 | C15: Interscholastic Program | D15: 0 | E15: 0
A16: 9 | B16: 532 | C16: School Activity Program | D16: 0 | E16: 0
A17: 10 | B17: 541 | C17: Summer School Program | D17: 0 | E17: 0
A18: 11 | B18: 542 | C18: Adult School Program | D18: 0 | E18: 0
A19: 12 | B19: 546 | C19: Detention Center Program | D19: 0 | E19: 0
A20: 13
A21: 14 | B21: 500 | C21: TOTAL INSTRUCTION | D21: 692278 | E21: =SUM(E8:E19) -> 862999 | F21: =SUM(F8:F19) -> 416268 | G21: =SUM(G8:G19) -> 198006 | H21: =SUM(H8:H19) -> 248725 | I21: =SUM(I8:I19) -> 0 | J21: 0 | K21: 0 | L21: 0 | M21: 0
A22: 15
A23: 16 | B23: 611 | C23: Attendance-Guidance-Health Program | E23: =SUM(F23:M23) -> 0
A24: 17 | B24: 616 | C24: Special Education Support Services Prog | E24: =SUM(F24:M24) -> 0
A25: 18
A26: 19 | B26: 621 | C26: Instruction Improvement Program | E26: =SUM(F26:M26) -> 0
A27: 20 | B27: 622 | C27: Educational Media Program | E27: 0
A28: 21 | B28: 623 | C28: Instruction-Related Technology Program | E28: 0
A29: 22 | B29: 624 | C29: Books and Periodicals | E29: 0
A30: 23 | B30: 631 | C30: Board of Education Program | E30: 0
A31: 24 | B31: 632 | C31: District Administration Program | E31: 0
A32: 25
A33: 26 | B33: 641 | C33: School Administration Program | E33: =SUM(F33:M33) -> 0
A34: 27
A35: 28 | B35: 651 | C35: Business Operation Program | E35: =SUM(F35:M35) -> 0
A36: 29 | B36: 655 | C36: Central Service Program | E36: =SUM(F36:M36) -> 0
A37: 30 | B37: 656 | C37: Administrative Technology Services Prog | E37: 0
A38: 31 | B38: 661 | C38: Buildings-Care Program (Custodial) | E38: 0
A39: 32 | B39: 663 | C39: Maintenance - Non Student Occupied | E39: 0
A40: 33 | B40: 664 | C40: Maintenance - Buildings and Equipment | E40: 0
A41: 34 | B41: 665 | C41: Maintenance - Grounds | E41: 0
A42: 35 | B42: 667 | C42: Security Program | E42: 0
A43: 36
A44: 37 | B44: 681 | C44: Pupil - To School Trans. Program | E44: =SUM(F44:M44) -> 0
A45: 38 | B45: 682 | C45: Pupil - Activity Trans. Program | E45: =SUM(F45:M45) -> 0
A46: 39 | B46: 683 | C46: General Transportation Program | E46: =SUM(F46:M46) -> 0
A48: =CELL("filename",A48) -> C:\Users\teacher\Desktop\[KSD 414 2025-Expenditures.xlsm]232
C49: Subtotal (carried over to page b) | D49: =SUM(D23:D47) -> 0 | E49: =SUM(E23:E47) -> 0 | F49: 0 | G49: 0 | H49: 0 | I49: 0 | J49: 0 | K49: 0 | L49: 0 | M49: 0
A51: End of Sheet

Sheet 232b
E1: BUDGET | M1: Page 6
E2: EXPENDITURES | M2: Special Services FUND
E3: July 1, 2024 - June 30, 2025 | M3: FUND NO: 232
A4: NOTE: Round each entry to the nearest dollar amount.
C5: EXPENDITURES | D5: Prior Year | E5: Proposed | F5: 100 | G5: 200 | H5: 300 | I5: 400 | J5: 500 | K5: 600 | L5: 700 | M5: 800
H6: Purchased | I6: Supplies | J6: Capital | K6: Debt | L6: Insurance-
A7: Line | B7: Code | C7: Functions/Programs | D7: Budget | E7: Budget | F7: Salaries | G7: Benefits | H7: Services | I7: Materials | J7: Objects | K7: Retirement | L7: Judgment | M7: Transfers
A8: 40 | B8: 691 | C8: Other Support Services Program | E8: =SUM(F8:M8) -> 0
A9: 41
A10: 42 | B10: 600 | C10: TOTAL SUPPORT SERVICES | D10: =+D8+'232'!D49 -> 0 | E10: =+E8+'232'!E49 -> 0 | F10: =+F8+'232'!F49 -> 0 | G10: =+G8+'232'!G49 -> 0 | H10: =+H8+'232'!H49 -> 0 | I10: =+I8+'232'!I49 -> 0 | J10: =+J8+'232'!J49 -> 0 | K10: =+K8+'232'!K49 -> 0 | L10: =+L8+'232'!L49 -> 0 | M10: =+M8+'232'!M49 -> 0
A11: 43
A12: 44 | B12: 710 | C12: Child Nutrition Program | E12: =SUM(F12:M12) -> 0
A13: 45 | B13: 720 | C13: Community Services Program | E13: =SUM(F13:M13) -> 0
A14: 46 | B14: 730 | C14: Enterprise Operations | E14: =SUM(F14:M14) -> 0
A15: 47 | B15: 740 | C15: Student Activity Program | E15: =SUM(F15:M15) -> 0
A16: 48
A17: 49 | B17: 700 | C17: TOTAL NON-INSTRUCTION | D17: =SUM(D12:D15) -> 0 | E17: =SUM(E12:E15) -> 0 | F17: 0 | G17: 0 | H17: 0 | I17: 0 | J17: 0 | K17: 0 | L17: 0 | M17: 0
A18: 50
A19: 51 | B19: 810 | C19: Capital Assets | E19: =SUM(F19:M19) -> 0
A20: 52 | B20: 811 | C20: Capital Assets - NonStudent Occupied | E20: =SUM(F20:M20) -> 0
A21: 53
A22: 54 | B22: 800 | C22: TOTAL CAPITAL ASSET PROGRAMS | D22: =SUM(D19:D20) -> 0 | E22: =SUM(E19:E20) -> 0 | F22: =SUM(F19:F20) -> 0 | G22: =SUM(G19:G20) -> 0 | H22: 0 | I22: 0 | J22: 0 | K22: 0 | L22: 0 | M22: 0
A23: 55
A24: 56 | B24: 911 | C24: Debt Services Program - Principal | E24: =SUM(F24:M24) -> 0
A25: 57 | B25: 912 | C25: Debt Services Program - Interest | E25: =SUM(F25:M25) -> 0
A26: 58 | B26: 913 | C26: Debt Services Program - Refunded Debt | E26: =SUM(F26:M26) -> 0
A27: 59 | B27: 920 | C27: Fund Transfers Out | E27: =SUM(F27:M27) -> 0
A28: 60
A29: 61 | B29: 900 | C29: TOTAL OTHER SERVICES | D29: =SUM(D24:D28) -> 0 | E29: =SUM(E24:E28) -> 0 | F29: =SUM(F24:F28) -> 0 | G29: =SUM(G24:G28) -> 0 | H29: 0 | I29: 0 | J29: 0 | K29: 0 | L29: 0 | M29: 0
A30: 62
A31: 63 | C31: TOTAL EXPENDITURES
A32: 64 | C32: (Lines 14+42+49+54+61) | D32: 692278 | E32: ='232'!E21 -> 862999 | F32: =SUM(F29,F22,F17,F10,'232'!F21) -> 416268 | G32: =SUM(G29,G22,G17,G10,'232'!G21) -> 198006 | H32: =SUM(H29,H22,H17,H10,'232'!H21) -> 248725 | I32: =SUM(I29,I22,I17,I10,'232'!I21) -> 0 | J32: =SUM(J29,J22,J17,J10,'232'!J21) -> 0 | K32: =SUM(K29,K22,K17,K10,'232'!K21) -> 0 | L32: =SUM(L29,L22,L17,L10,'232'!L21) -> 0 | M32: =SUM(M29,M22,M17,M10,'232'!M21) -> 0
A33: 65
A34: 66
A35: 67
A36: 68
A37: 69
A38: 70
A39: 71
A40: 72
A41: 73 | C41: BUDGET SUMMARY
A42: 74
A43: 75 | C43: Beginning Fund Balance | D43: 0 | E43: 0 | F43: BUDGET SUMMARY:
A44: 76 | C44: Revenues + Transfers In | D44: -692278 | E44: -862999
A45: 77 | C45: TOTAL REVENUE (lines 74 + 75) | D45: -692278 | E45: =SUM(E44) -> -862999 | F45: The total on line 77 must equal the total on line 81.
A46: 78
A47: 79 | C47: Total Expenditures | D47: 692278 | E47: =E32 -> 862999
A48: 80 | C48: Unappropriated Balance
A49: 81 | C49: TOTAL EXPD + UNAPPROPRIATED BAL (lines 78 + 79) | D49: 692278 | E49: =SUM(E47:E48) -> 862999
A50: =CELL("FILENAME",A2) -> C:\Users\teacher\Desktop\[KSD 414 2025-Expenditures.xlsm]232b

Sheet local
E1: BUDGET | M1: Page 7
E2: EXPENDITURES | H2: SPECIAL LOCAL | K2: FUND NAME
E3: July 1, 2024 - June 30, 2025 | H3: 230 THROUGH 239 | K3: FUND NO:
A4: NOTE: Round each entry to the nearest dollar amount.
C5: EXPENDITURES | D5: Prior Year | E5: Proposed | F5: 100 | G5: 200 | H5: 300 | I5: 400 | J5: 500 | K5: 600 | L5: 700 | M5: 800
H6: Purchased | I6: Supplies | J6: Capital | K6: Debt | L6: Insurance-
A7: Line | B7: Code | C7: Functions/Programs | D7: Budget | E7: Budget | F7: Salaries | G7: Benefits | H7: Services | I7: Materials | J7: Objects | K7: Retirement | L7: Judgment | M7: Transfers
A8: 1 | B8: 512 | C8: Elementary School Program | E8: =SUM(F8:M8) -> 0
A9: 2 | B9: 515 | C9: Secondary School Program | E9: =SUM(F9:M9) -> 0
A10: 3 | B10: 517 | C10: Alternative School Program | E10: 0
A11: 4 | B11: 519 | C11: Vocational-Technical Program | E11: 0
A12: 5 | B12: 521 | C12: Special Education Program | E12: 0
A13: 6 | B13: 522 | C13: Special Education Preschool Program | E13: 0
A14: 7 | B14: 524 | C14: Gifted & Talented Program | E14: 0
A15: 8 | B15: 531 | C15: Interscholastic Program | E15: 0
A16: 9 | B16: 532 | C16: School Activity Program | E16: 0
A17: 10 | B17: 541 | C17: Summer School Program | E17: 0
A18: 11 | B18: 542 | C18: Adult School Program | E18: 0
A19: 12 | B19: 546 | C19: Detention Center Program | E19: 0
A20: 13
A21: 14 | B21: 500 | C21: TOTAL INSTRUCTION | D21: =SUM(D8:D19) -> 0 | E21: 0 | F21: 0 | G21: 0 | H21: 0 | I21: 0 | J21: 0 | K21: 0 | L21: 0 | M21: 0
A22: 15
A23: 16 | B23: 611 | C23: Attendance-Guidance-Health Program | E23: =SUM(F23:M23) -> 0
A24: 17 | B24: 616 | C24: Special Education Support Services Prog | E24: =SUM(F24:M24) -> 0
A25: 18
A26: 19 | B26: 621 | C26: Instruction Improvement Program | E26: =SUM(F26:M26) -> 0
A27: 20 | B27: 622 | C27: Educational Media Program | E27: 0
A28: 21 | B28: 623 | C28: Instruction-Related Technology Program | E28: 0
A29: 22 | B29: 624 | C29: Books and Periodicals | E29: 0
A30: 23 | B30: 631 | C30: Board of Education Program | E30: 0
A31: 24 | B31: 632 | C31: District Administration Program | E31: 0
A32: 25
A33: 26 | B33: 641 | C33: School Administration Program | E33: =SUM(F33:M33) -> 0
A34: 27
A35: 28 | B35: 651 | C35: Business Operation Program | E35: =SUM(F35:M35) -> 0
A36: 29 | B36: 655 | C36: Central Service Program | E36: =SUM(F36:M36) -> 0
A37: 30 | B37: 656 | C37: Administrative Technology Services Prog | E37: 0
A38: 31 | B38: 661 | C38: Buildings-Care Program (Custodial) | E38: 0
A39: 32 | B39: 663 | C39: Maintenance - Non Student Occupied | E39: 0
A40: 33 | B40: 664 | C40: Maintenance - Buildings and Equipment | E40: 0
A41: 34 | B41: 665 | C41: Maintenance - Grounds | E41: 0
A42: 35 | B42: 667 | C42: Security Program | E42: 0
A43: 36
A44: 37 | B44: 681 | C44: Pupil - To School Trans. Program | E44: =SUM(F44:M44) -> 0
A45: 38 | B45: 682 | C45: Pupil - Activity Trans. Program | E45: =SUM(F45:M45) -> 0
A46: 39 | B46: 683 | C46: General Transportation Program | E46: =SUM(F46:M46) -> 0
A48: =CELL("filename",A48) -> C:\Users\teacher\Desktop\[KSD 414 2025-Expenditures.xlsm]local
C49: Subtotal (carried over to page b) | D49: =SUM(D23:D47) -> 0 | E49: =SUM(E23:E47) -> 0 | F49: 0 | G49: 0 | H49: 0 | I49: 0 | J49: 0 | K49: 0 | L49: 0 | M49: 0
A51: End of Sheet

Sheet localb
E1: BUDGET | M1: Page 8
E2: EXPENDITURES | I2: SPECIAL LOCAL | K2: FUND NAME:
E3: July 1, 2024 - June 30, 2025 | I3: 230 THROUGH 239 | K3: FUND NO:
A4: NOTE: Round each entry to the nearest dollar amount.
C5: EXPENDITURES | D5: Prior Year | E5: Proposed | F5: 100 | G5: 200 | H5: 300 | I5: 400 | J5: 500 | K5: 600 | L5: 700 | M5: 800
H6: Purchased | I6: Supplies | J6: Capital | K6: Debt | L6: Insurance-
A7: Line | B7: Code | C7: Functions/Programs | D7: Budget | E7: Budget | F7: Salaries | G7: Benefits | H7: Services | I7: Materials | J7: Objects | K7: Retirement | L7: Judgment | M7: Transfers
A8: 40 | B8: 691 | C8: Other Support Services Program | E8: =SUM(F8:M8) -> 0
A9: 41
A10: 42 | B10: 600 | C10: TOTAL SUPPORT SERVICES | D10: =+D8+local!D49 -> 0 | E10: =+E8+local!E49 -> 0 | F10: =+F8+local!F49 -> 0 | G10: =+G8+local!G49 -> 0 | H10: =+H8+local!H49 -> 0 | I10: =+I8+local!I49 -> 0 | J10: =+J8+local!J49 -> 0 | K10: =+K8+local!K49 -> 0 | L10: =+L8+local!L49 -> 0 | M10: =+M8+local!M49 -> 0
A11: 43
A12: 44 | B12: 710 | C12: Child Nutrition Program | E12: =SUM(F12:M12) -> 0
A13: 45 | B13: 720 | C13: Community Services Program | E13: =SUM(F13:M13) -> 0
A14: 46 | B14: 730 | C14: Enterprise Operations | E14: =SUM(F14:M14) -> 0
A15: 47 | B15: 740 | C15: Student Activity Program | E15: =SUM(F15:M15) -> 0
A16: 48
A17: 49 | B17: 700 | C17: TOTAL NON-INSTRUCTION | D17: =SUM(D12:D15) -> 0 | E17: =SUM(E12:E15) -> 0 | F17: 0 | G17: 0 | H17: 0 | I17: 0 | J17: 0 | K17: 0 | L17: 0 | M17: 0
A18: 50
A19: 51 | B19: 810 | C19: Capital Assets | E19: =SUM(F19:M19) -> 0
A20: 52 | B20: 811 | C20: Capital Assets - NonStudent Occupied | E20: =SUM(F20:M20) -> 0
A21: 53
A22: 54 | B22: 800 | C22: TOTAL CAPITAL ASSET PROGRAMS | D22: =SUM(D19:D20) -> 0 | E22: =SUM(E19:E20) -> 0 | F22: =SUM(F19:F20) -> 0 | G22: =SUM(G19:G20) -> 0 | H22: 0 | I22: 0 | J22: 0 | K22: 0 | L22: 0 | M22: 0
A23: 55
A24: 56 | B24: 911 | C24: Debt Services Program - Principal | E24: =SUM(F24:M24) -> 0
A25: 57 | B25: 912 | C25: Debt Services Program - Interest | E25: =SUM(F25:M25) -> 0
A26: 58 | B26: 913 | C26: Debt Services Program - Refunded Debt | E26: =SUM(F26:M26) -> 0
A27: 59 | B27: 920 | C27: Fund Transfers Out | E27: =SUM(F27:M27) -> 0
A28: 60
A29: 61 | B29: 900 | C29: TOTAL OTHER SERVICES | D29: =SUM(D24:D28) -> 0 | E29: =SUM(E24:E28) -> 0 | F29: =SUM(F24:F28) -> 0 | G29: =SUM(G24:G28) -> 0 | H29: 0 | I29: 0 | J29: 0 | K29: 0 | L29: 0 | M29: 0
A30: 62
A31: 63 | C31: TOTAL EXPENDITURES
A32: 64 | C32: (Lines 14+42+49+54+61) | D32: =SUM(D29,D22,D17,D10,local!D21) -> 0 | E32: =SUM(E29,E22,E17,E10,local!E21) -> 0 | F32: =SUM(F29,F22,F17,F10,local!F21) -> 0 | G32: =SUM(G29,G22,G17,G10,local!G21) -> 0 | H32: =SUM(H29,H22,H17,H10,local!H21) -> 0 | I32: =SUM(I29,I22,I17,I10,local!I21) -> 0 | J32: =SUM(J29,J22,J17,J10,local!J21) -> 0 | K32: =SUM(K29,K22,K17,K10,local!K21) -> 0 | L32: =SUM(L29,L22,L17,L10,local!L21) -> 0 | M32: =SUM(M29,M22,M17,M10,local!M21) -> 0
A33: 65
A34: 66
A35: 67
A36: 68
A37: 69
A38: 70
A39: 71
A40: 72
A41: 73 | C41: BUDGET SUMMARY
A42: 74
A43: 75 | C43: Beginning Fund Balance | F43: BUDGET SUMMARY:
A44: 76 | C44: Revenues + Transfers In
A45: 77 | C45: TOTAL REVENUE (lines 74 + 75) | D45: =SUM(D43:D44) -> 0 | E45: =SUM(E43:E44) -> 0 | F45: The total on line 77 must equal the total on line 81.
A46: 78
A47: 79 | C47: Total Expenditures | D47: =D32 -> 0 | E47: =E32 -> 0
A48: 80 | C48: Unappropriated Balance | D48: =+D45-D32 -> 0 | E48: =+E45-E32 -> 0
A49: 81 | C49: TOTAL EXPD + UNAPPROPRIATED BAL (lines 78 + 79) | D49: =SUM(D47:D48) -> 0 | E49: =SUM(E47:E48) -> 0
A50: =CELL("FILENAME",A8195) -> C:\Users\teacher\Desktop\[KSD 414 2025-Expenditures.xlsm]localb

Sheet 238
E1: BUDGET | M1: Page 9
E2: EXPENDITURES | M2: STUDENT ACTIVITY
E3: July 1, 2024 - June 30, 2025 | M3: FUND NO: 238
A4: NOTE: Round each entry to the nearest dollar amount.
C5: EXPENDITURES | D5: Prior Year | E5: Proposed | F5: 100 | G5: 200 | H5: 300 | I5: 400 | J5: 500 | K5: 600 | L5: 700 | M5: 800
H6: Purchased | I6: Supplies | J6: Capital | K6: Debt | L6: Insurance-
A7: Line | B7: Code | C7: Functions/Programs | D7: Budget | E7: Budget | F7: Salaries | G7: Benefits | H7: Services | I7: Materials | J7: Objects | K7: Retirement | L7: Judgment | M7: Transfers
A8: 1 | B8: 512 | C8: Elementary School Program | D8: 0 | E8: =SUM(F8:M8) -> 0
A9: 2 | B9: 515 | C9: Secondary School Program | D9: 0 | E9: =SUM(F9:M9) -> 0
A10: 3 | B10: 517 | C10: Alternative School Program | D10: 0 | E10: 0
A11: 4 | B11: 519 | C11: Vocational-Technical Program | D11: 0 | E11: 0
A12: 5 | B12: 521 | C12: Special Education Program | D12: 0 | E12: 0
A13: 6 | B13: 522 | C13: Special Education Preschool Program | D13: 0 | E13: 0
A14: 7 | B14: 524 | C14: Gifted & Talented Program | D14: 0 | E14: 0
A15: 8 | B15: 531 | C15: Interscholastic Program | D15: 225000 | E15: =SUM(F15:M15) -> 225000 | H15: 150000 | I15: 75000
A16: 9 | B16: 532 | C16: School Activity Program | D16: 75000 | E16: =SUM(F16:M16) -> 75000 | H16: 50000 | I16: 25000
A17: 10 | B17: 541 | C17: Summer School Program | D17: 0 | E17: 0
A18: 11 | B18: 542 | C18: Adult School Program | D18: 0 | E18: 0
A19: 12 | B19: 546 | C19: Detention Center Program | D19: 0 | E19: 0
A20: 13
A21: 14 | B21: 500 | C21: TOTAL INSTRUCTION | D21: 300000 | E21: =SUM(E8:E19) -> 300000 | F21: =SUM(F8:F19) -> 0 | G21: 0 | H21: 200000 | I21: 100000 | J21: 0 | K21: 0 | L21: 0 | M21: 0
A22: 15
A23: 16 | B23: 611 | C23: Attendance-Guidance-Health Program | E23: =SUM(F23:M23) -> 0
A24: 17 | B24: 616 | C24: Special Education Support Services Prog | E24: =SUM(F24:M24) -> 0
A25: 18
A26: 19 | B26: 621 | C26: Instruction Improvement Program | E26: =SUM(F26:M26) -> 0
A27: 20 | B27: 622 | C27: Educational Media Program | E27: 0
A28: 21 | B28: 623 | C28: Instruction-Related Technology Program | E28: 0
A29: 22 | B29: 624 | C29: Books and Periodicals | E29: 0
A30: 23 | B30: 631 | C30: Board of Education Program | E30: 0
A31: 24 | B31: 632 | C31: District Administration Program | E31: 0
A32: 25
A33: 26 | B33: 641 | C33: School Administration Program | E33: =SUM(F33:M33) -> 0
A34: 27
A35: 28 | B35: 651 | C35: Business Operation Program | E35: =SUM(F35:M35) -> 0
A36: 29 | B36: 655 | C36: Central Service Program | E36: =SUM(F36:M36) -> 0
A37: 30 | B37: 656 | C37: Administrative Technology Services Prog | E37: 0
A38: 31 | B38: 661 | C38: Buildings-Care Program (Custodial) | E38: 0
A39: 32 | B39: 663 | C39: Maintenance - Non Student Occupied | E39: 0
A40: 33 | B40: 664 | C40: Maintenance - Buildings and Equipment | E40: 0
A41: 34 | B41: 665 | C41: Maintenance - Grounds | E41: 0
A42: 35 | B42: 667 | C42: Security Program | E42: 0
A43: 36
A44: 37 | B44: 681 | C44: Pupil - To School Trans. Program | E44: =SUM(F44:M44) -> 0
A45: 38 | B45: 682 | C45: Pupil - Activity Trans. Program | E45: =SUM(F45:M45) -> 0
A46: 39 | B46: 683 | C46: General Transportation Program | E46: =SUM(F46:M46) -> 0
A48: =CELL("filename",A48) -> C:\Users\teacher\Desktop\[KSD 414 2025-Expenditures.xlsm]238
C49: Subtotal (carried over to page b) | D49: =SUM(D23:D47) -> 0 | E49: =SUM(E23:E47) -> 0 | F49: 0 | G49: 0 | H49: 0 | I49: 0 | J49: 0 | K49: 0 | L49: 0 | M49: 0
A51: End of Sheet

Sheet 238b
E1: BUDGET | M1: Page 10
E2: EXPENDITURES | M2: STUDENT ACTIVITY
E3: July 1, 2024 - June 30, 2025 | M3: FUND NO: 238
A4: NOTE: Round each entry to the nearest dollar amount.
C5: EXPENDITURES | D5: Prior Year | E5: Proposed | F5: 100 | G5: 200 | H5: 300 | I5: 400 | J5: 500 | K5: 600 | L5: 700 | M5: 800
H6: Purchased | I6: Supplies | J6: Capital | K6: Debt | L6: Insurance-
A7: Line | B7: Code | C7: Functions/Programs | D7: Budget | E7: Budget | F7: Salaries | G7: Benefits | H7: Services | I7: Materials | J7: Objects | K7: Retirement | L7: Judgment | M7: Transfers
A8: 40 | B8: 691 | C8: Other Support Services Program | E8: =SUM(F8:M8) -> 0
A9: 41
A10: 42 | B10: 600 | C10: TOTAL SUPPORT SERVICES | D10: =+D8+'238'!D49 -> 0 | E10: =+E8+'238'!E49 -> 0 | F10: =+F8+'238'!F49 -> 0 | G10: =+G8+'238'!G49 -> 0 | H10: =+H8+'238'!H49 -> 0 | I10: =+I8+'238'!I49 -> 0 | J10: =+J8+'238'!J49 -> 0 | K10: =+K8+'238'!K49 -> 0 | L10: =+L8+'238'!L49 -> 0 | M10: =+M8+'238'!M49 -> 0
A11: 43
A12: 44 | B12: 710 | C12: Child Nutrition Program | E12: =SUM(F12:M12) -> 0
A13: 45 | B13: 720 | C13: Community Services Program | E13: =SUM(F13:M13) -> 0
A14: 46 | B14: 730 | C14: Enterprise Operations | E14: =SUM(F14:M14) -> 0
A15: 47 | B15: 740 | C15: Student Activity Program | E15: =SUM(F15:M15) -> 0
A16: 48
A17: 49 | B17: 700 | C17: TOTAL NON-INSTRUCTION | D17: =SUM(D12:D15) -> 0 | E17: =SUM(E12:E15) -> 0 | F17: 0 | G17: 0 | H17: 0 | I17: 0 | J17: 0 | K17: 0 | L17: 0 | M17: 0
A18: 50
A19: 51 | B19: 810 | C19: Capital Assets | E19: =SUM(F19:M19) -> 0
A20: 52 | B20: 811 | C20: Capital Assets - NonStudent Occupied | E20: =SUM(F20:M20) -> 0
A21: 53
A22: 54 | B22: 800 | C22: TOTAL CAPITAL ASSET PROGRAMS | D22: =SUM(D19:D20) -> 0 | E22: =SUM(E19:E20) -> 0 | F22: =SUM(F19:F20) -> 0 | G22: =SUM(G19:G20) -> 0 | H22: 0 | I22: 0 | J22: 0 | K22: 0 | L22: 0 | M22: 0
A23: 55
A24: 56 | B24: 911 | C24: Debt Services Program - Principal | E24: =SUM(F24:M24) -> 0
A25: 57 | B25: 912 | C25: Debt Services Program - Interest | E25: =SUM(F25:M25) -> 0
A26: 58 | B26: 913 | C26: Debt Services Program - Refunded Debt | E26: =SUM(F26:M26) -> 0
A27: 59 | B27: 920 | C27: Fund Transfers Out | E27: =SUM(F27:M27) -> 0
A28: 60
A29: 61 | B29: 900 | C29: TOTAL OTHER SERVICES | D29: =SUM(D24:D28) -> 0 | E29: =SUM(E24:E28) -> 0 | F29: =SUM(F24:F28) -> 0 | G29: =SUM(G24:G28) -> 0 | H29: 0 | I29: 0 | J29: 0 | K29: 0 | L29: 0 | M29: 0
A30: 62
A31: 63 | C31: TOTAL EXPENDITURES
A32: 64 | C32: (Lines 14+42+49+54+61) | D32: 300000 | E32: ='238'!E21 -> 300000 | F32: =SUM(F29,F22,F17,F10,'238'!F21) -> 0 | G32: =SUM(G29,G22,G17,G10,'238'!G21) -> 0 | H32: =SUM(H29,H22,H17,H10,'238'!H21) -> 200000 | I32: =SUM(I29,I22,I17,I10,'238'!I21) -> 100000 | J32: =SUM(J29,J22,J17,J10,'238'!J21) -> 0 | K32: =SUM(K29,K22,K17,K10,'238'!K21) -> 0 | L32: =SUM(L29,L22,L17,L10,'238'!L21) -> 0 | M32: =SUM(M29,M22,M17,M10,'238'!M21) -> 0
A33: 65
A34: 66
A35: 67
A36: 68
A37: 69
A38: 70
A39: 71
A40: 72
A41: 73 | C41: BUDGET SUMMARY
A42: 74
A43: 75 | C43: Beginning Fund Balance | D43: -400000 | E43: -358607 | F43: BUDGET SUMMARY:
A44: 76 | C44: Revenues + Transfers In | D44: -200000 | E44: -200000
A45: 77 | C45: TOTAL REVENUE (lines 74 + 75) | D45: -600000 | E45: =SUM(E43:E44) -> -558607 | F45: The total on line 77 must equal the total on line 81.
A46: 78
A47: 79 | C47: Total Expenditures | D47: 300000 | E47: =E32 -> 300000
A48: 80 | C48: Unappropriated Balance | D48: 300000 | E48: 258607
A49: 81 | C49: TOTAL EXPD + UNAPPROPRIATED BAL (lines 78 + 79) | D49: 600000 | E49: =SUM(E47:E48) -> 558607
A50: =CELL("FILENAME",A8195) -> C:\Users\teacher\Desktop\[KSD 414 2025-Expenditures.xlsm]238b

Sheet 241
E1: BUDGET | M1: Page 13
E2: EXPENDITURES | M2: DRIVERS EDUCATION
E3: July 1, 2024 - June 30, 2025 | M3: FUND NO: 241
A4: NOTE: Round each entry to the nearest dollar amount.
C5: EXPENDITURES | D5: Prior Year | E5: Proposed | F5: 100 | G5: 200 | H5: 300 | I5: 400 | J5: 500 | K5: 600 | L5: 700 | M5: 800
H6: Purchased | I6: Supplies | J6: Capital | K6: Debt | L6: Insurance-
A7: Line | B7: Code | C7: Functions/Programs | D7: Budget | E7: Budget | F7: Salaries | G7: Benefits | H7: Services | I7: Materials | J7: Objects | K7: Retirement | L7: Judgment | M7: Transfers
A8: 1 | B8: 512 | C8: Elementary School Program | D8: 0 | E8: =SUM(F8:M8) -> 0
A9: 2 | B9: 515 | C9: Secondary School Program | D9: 21123 | E9: =SUM(F9:M9) -> 22000 | F9: 15500 | G9: 2180 | H9: 485 | I9: 2600 | L9: 1235
A10: 3 | B10: 517 | C10: Alternative School Program | D10: 0 | E10: =SUM(F10:M10) -> 0
A11: 4 | B11: 519 | C11: Vocational-Technical Program | D11: 0 | E11: 0
A12: 5 | B12: 521 | C12: Special Education Program | D12: 0 | E12: 0
A13: 6 | B13: 522 | C13: Special Education Preschool Program | D13: 0 | E13: 0
A14: 7 | B14: 524 | C14: Gifted & Talented Program | D14: 0 | E14: 0
A15: 8 | B15: 531 | C15: Interscholastic Program | D15: 0 | E15: 0
A16: 9 | B16: 532 | C16: School Activity Program | D16: 0 | E16: 0
A17: 10 | B17: 541 | C17: Summer School Program | D17: 0 | E17: 0
A18: 11 | B18: 542 | C18: Adult School Program | D18: 0 | E18: 0
A19: 12 | B19: 546 | C19: Detention Center Program | D19: 0 | E19: 0
A20: 13
A21: 14 | B21: 500 | C21: TOTAL INSTRUCTION | D21: 21123 | E21: =SUM(F21:M21) -> 22000 | F21: =SUM(F9:F20) -> 15500 | G21: =SUM(G9:G19) -> 2180 | H21: =SUM(H9:H19) -> 485 | I21: =SUM(I9:I19) -> 2600 | J21: =SUM(J8:J19) -> 0 | K21: 0 | L21: =SUM(L9:L19) -> 1235 | M21: 0
A22: 15
A23: 16 | B23: 611 | C23: Attendance-Guidance-Health Program | E23: =SUM(F23:M23) -> 0
A24: 17 | B24: 616 | C24: Special Education Support Services Prog | E24: =SUM(F24:M24) -> 0
A25: 18
A26: 19 | B26: 621 | C26: Instruction Improvement Program | E26: =SUM(F26:M26) -> 0
A27: 20 | B27: 622 | C27: Educational Media Program | E27: 0
A28: 21 | B28: 623 | C28: Instruction-Related Technology Program | E28: 0
A29: 22 | B29: 624 | C29: Books and Periodicals | E29: 0
A30: 23 | B30: 631 | C30: Board of Education Program | E30: 0
A31: 24 | B31: 632 | C31: District Administration Program | E31: 0
A32: 25
A33: 26 | B33: 641 | C33: School Administration Program | E33: =SUM(F33:M33) -> 0
A34: 27
A35: 28 | B35: 651 | C35: Business Operation Program | E35: =SUM(F35:M35) -> 0
A36: 29 | B36: 655 | C36: Central Service Program | E36: =SUM(F36:M36) -> 0
A37: 30 | B37: 656 | C37: Administrative Technology Services Prog | E37: 0
A38: 31 | B38: 661 | C38: Buildings-Care Program (Custodial) | E38: 0
A39: 32 | B39: 663 | C39: Maintenance - Non Student Occupied | E39: 0
A40: 33 | B40: 664 | C40: Maintenance - Buildings and Equipment | E40: 0
A41: 34 | B41: 665 | C41: Maintenance - Grounds | E41: 0
A42: 35 | B42: 667 | C42: Security Program | E42: 0
A43: 36
A44: 37 | B44: 681 | C44: Pupil - To School Trans. Program | E44: =SUM(F44:M44) -> 0
A45: 38 | B45: 682 | C45: Pupil - Activity Trans. Program | E45: =SUM(F45:M45) -> 0
A46: 39 | B46: 683 | C46: General Transportation Program | E46: =SUM(F46:M46) -> 0
A48: =CELL("filename",A48) -> C:\Users\teacher\Desktop\[KSD 414 2025-Expenditures.xlsm]241
C49: Subtotal (carried over to page b) | D49: =SUM(D23:D47) -> 0 | E49: =SUM(E23:E47) -> 0 | F49: 0 | G49: 0 | H49: 0 | I49: 0 | J49: 0 | K49: 0 | L49: 0 | M49: 0
A51: End of Sheet

Sheet 241b
E1: BUDGET | M1: Page 14
E2: EXPENDITURES | M2: DRIVERS EDUCATION
E3: July 1, 2024 - June 30, 2025 | M3: FUND NO: 241
A4: NOTE: Round each entry to the nearest dollar amount.
C5: EXPENDITURES | D5: Prior Year | E5: Proposed | F5: 100 | G5: 200 | H5: 300 | I5: 400 | J5: 500 | K5: 600 | L5: 700 | M5: 800
H6: Purchased | I6: Supplies | J6: Capital | K6: Debt | L6: Insurance-
A7: Line | B7: Code | C7: Functions/Programs | D7: Budget | E7: Budget | F7: Salaries | G7: Benefits | H7: Services | I7: Materials | J7: Objects | K7: Retirement | L7: Judgment | M7: Transfers
A8: 40 | B8: 691 | C8: Other Support Services Program | E8: =SUM(F8:M8) -> 0
A9: 41
A10: 42 | B10: 600 | C10: TOTAL SUPPORT SERVICES | D10: =+D8+'241'!D49 -> 0 | E10: =+E8+'241'!E49 -> 0 | F10: =+F8+'241'!F49 -> 0 | G10: =+G8+'241'!G49 -> 0 | H10: =+H8+'241'!H49 -> 0 | I10: =+I8+'241'!I49 -> 0 | J10: =+J8+'241'!J49 -> 0 | K10: =+K8+'241'!K49 -> 0 | L10: =+L8+'241'!L49 -> 0 | M10: =+M8+'241'!M49 -> 0
A11: 43
A12: 44 | B12: 710 | C12: Child Nutrition Program | E12: =SUM(F12:M12) -> 0
A13: 45 | B13: 720 | C13: Community Services Program | E13: =SUM(F13:M13) -> 0
A14: 46 | B14: 730 | C14: Enterprise Operations | E14: =SUM(F14:M14) -> 0
A15: 47 | B15: 740 | C15: Student Activity Program | E15: =SUM(F15:M15) -> 0
A16: 48
A17: 49 | B17: 700 | C17: TOTAL NON-INSTRUCTION | D17: =SUM(D12:D15) -> 0 | E17: =SUM(E12:E15) -> 0 | F17: 0 | G17: 0 | H17: 0 | I17: 0 | J17: 0 | K17: 0 | L17: 0 | M17: 0
A18: 50
A19: 51 | B19: 810 | C19: Capital Assets | E19: =SUM(F19:M19) -> 0
A20: 52 | B20: 811 | C20: Capital Assets - NonStudent Occupied | E20: =SUM(F20:M20) -> 0
A21: 53
A22: 54 | B22: 800 | C22: TOTAL CAPITAL ASSET PROGRAMS | D22: =SUM(D19:D20) -> 0 | E22: =SUM(E19:E20) -> 0 | F22: =SUM(F19:F20) -> 0 | G22: =SUM(G19:G20) -> 0 | H22: 0 | I22: 0 | J22: 0 | K22: 0 | L22: 0 | M22: 0
A23: 55
A24: 56 | B24: 911 | C24: Debt Services Program - Principal | E24: =SUM(F24:M24) -> 0
A25: 57 | B25: 912 | C25: Debt Services Program - Interest | E25: =SUM(F25:M25) -> 0
A26: 58 | B26: 913 | C26: Debt Services Program - Refunded Debt | E26: =SUM(F26:M26) -> 0
A27: 59 | B27: 920 | C27: Fund Transfers Out | E27: =SUM(F27:M27) -> 0
A28: 60
A29: 61 | B29: 900 | C29: TOTAL OTHER SERVICES | D29: =SUM(D24:D28) -> 0 | E29: =SUM(E24:E28) -> 0 | F29: =SUM(F24:F28) -> 0 | G29: =SUM(G24:G28) -> 0 | H29: 0 | I29: 0 | J29: 0 | K29: 0 | L29: 0 | M29: 0
A30: 62
A31: 63 | C31: TOTAL EXPENDITURES
A32: 64 | C32: (Lines 14+42+49+54+61) | D32: 21123 | E32: ='241'!E21 -> 22000 | F32: =SUM(F29,F22,F17,F10,'241'!F21) -> 15500 | G32: =SUM(G29,G22,G17,G10,'241'!G21) -> 2180 | H32: =SUM(H29,H22,H17,H10,'241'!H21) -> 485 | I32: =SUM(I29,I22,I17,I10,'241'!I21) -> 2600 | J32: =SUM(J29,J22,J17,J10,'241'!J21) -> 0 | K32: =SUM(K29,K22,K17,K10,'241'!K21) -> 0 | L32: =SUM(L29,L22,L17,L10,'241'!L21) -> 1235 | M32: =SUM(M29,M22,M17,M10,'241'!M21) -> 0
A33: 65
A34: 66
A35: 67
A36: 68
A37: 69
A38: 70
A39: 71
A40: 72
A41: 73 | C41: BUDGET SUMMARY
A42: 74
A43: 75 | C43: Beginning Fund Balance | D43: -11000 | E43: 0 | F43: BUDGET SUMMARY:
A44: 76 | C44: Revenues + Transfers In | D44: -22000 | E44: -22000
A45: 77 | C45: TOTAL REVENUE (lines 74 + 75) | D45: -33000 | E45: =SUM(E44) -> -22000 | F45: The total on line 77 must equal the total on line 81.
A46: 78
A47: 79 | C47: Total Expenditures | D47: 21123 | E47: =E32 -> 22000
A48: 80 | C48: Unappropriated Balance | D48: 11877 | E48: 0
A49: 81 | C49: TOTAL EXPD + UNAPPROPRIATED BAL (lines 78 + 79) | D49: 33000 | E49: =SUM(E47:E48) -> 22000
A50: =CELL("FILENAME",A8195) -> C:\Users\teacher\Desktop\[KSD 414 2025-Expenditures.xlsm]241b

Sheet 243
E1: BUDGET | M1: Page 15
E2: EXPENDITURES | M2: STATE PROFESSIONAL TECHNICAL
E3: July 1, 2024 - June 30, 2025 | M3: FUND NO: 243
A4: NOTE: Round each entry to the nearest dollar amount.
C5: EXPENDITURES | D5: Prior Year | E5: Proposed | F5: 100 | G5: 200 | H5: 300 | I5: 400 | J5: 500 | K5: 600 | L5: 700 | M5: 800
H6: Purchased | I6: Supplies | J6: Capital | K6: Debt | L6: Insurance-
A7: Line | B7: Code | C7: Functions/Programs | D7: Budget | E7: Budget | F7: Salaries | G7: Benefits | H7: Services | I7: Materials | J7: Objects | K7: Retirement | L7: Judgment | M7: Transfers
A8: 1 | B8: 512 | C8: Elementary School Program | D8: 0 | E8: =SUM(F8:M8) -> 0
A9: 2 | B9: 515 | C9: Secondary School Program | D9: 74594 | E9: =SUM(F9:M9) -> 73556 | F9: 38614 | G9: 8160 | H9: 8500 | I9: 11538 | J9: 6744
A10: 3 | B10: 517 | C10: Alternative School Program | D10: 0 | E10: =SUM(F10:M10) -> 0
A11: 4 | B11: 519 | C11: Vocational-Technical Program | D11: 0 | E11: 0
A12: 5 | B12: 521 | C12: Special Education Program | D12: 0 | E12: 0
A13: 6 | B13: 522 | C13: Special Education Preschool Program | D13: 0 | E13: 0
A14: 7 | B14: 524 | C14: Gifted & Talented Program | D14: 0 | E14: 0
A15: 8 | B15: 531 | C15: Interscholastic Program | D15: 0 | E15: 0
A16: 9 | B16: 532 | C16: School Activity Program | D16: 0 | E16: 0
A17: 10 | B17: 541 | C17: Summer School Program | D17: 0 | E17: 0
A18: 11 | B18: 542 | C18: Adult School Program | D18: 0 | E18: 0
A19: 12 | B19: 546 | C19: Detention Center Program | D19: 0 | E19: 0
A20: 13
A21: 14 | B21: 500 | C21: TOTAL INSTRUCTION | D21: 74594 | E21: =SUM(E8:E19) -> 73556 | F21: =SUM(F8:F19) -> 38614 | G21: 8160 | H21: 8500 | I21: 11538 | J21: 6744 | K21: 0 | L21: 0 | M21: 0
A22: 15
A23: 16 | B23: 611 | C23: Attendance-Guidance-Health Program | E23: =SUM(F23:M23) -> 0
A24: 17 | B24: 616 | C24: Special Education Support Services Prog | E24: =SUM(F24:M24) -> 0
A25: 18
A26: 19 | B26: 621 | C26: Instruction Improvement Program | E26: =SUM(F26:M26) -> 0
A27: 20 | B27: 622 | C27: Educational Media Program | E27: 0
A28: 21 | B28: 623 | C28: Instruction-Related Technology Program | E28: 0
A29: 22 | B29: 624 | C29: Books and Periodicals | E29: 0
A30: 23 | B30: 631 | C30: Board of Education Program | E30: 0
A31: 24 | B31: 632 | C31: District Administration Program | E31: 0
A32: 25
A33: 26 | B33: 641 | C33: School Administration Program | E33: =SUM(F33:M33) -> 0
A34: 27
A35: 28 | B35: 651 | C35: Business Operation Program | E35: =SUM(F35:M35) -> 0
A36: 29 | B36: 655 | C36: Central Service Program | E36: =SUM(F36:M36) -> 0
A37: 30 | B37: 656 | C37: Administrative Technology Services Prog | E37: 0
A38: 31 | B38: 661 | C38: Buildings-Care Program (Custodial) | E38: 0
A39: 32 | B39: 663 | C39: Maintenance - Non Student Occupied | E39: 0
A40: 33 | B40: 664 | C40: Maintenance - Buildings and Equipment | E40: 0
A41: 34 | B41: 665 | C41: Maintenance - Grounds | E41: 0
A42: 35 | B42: 667 | C42: Security Program | E42: 0
A43: 36
A44: 37 | B44: 681 | C44: Pupil - To School Trans. Program | E44: =SUM(F44:M44) -> 0
A45: 38 | B45: 682 | C45: Pupil - Activity Trans. Program | E45: =SUM(F45:M45) -> 0
A46: 39 | B46: 683 | C46: General Transportation Program | E46: =SUM(F46:M46) -> 0
A48: =CELL("filename",A48) -> C:\Users\teacher\Desktop\[KSD 414 2025-Expenditures.xlsm]243
C49: Subtotal (carried over to page b) | D49: =SUM(D23:D47) -> 0 | E49: =SUM(E23:E47) -> 0 | F49: 0 | G49: 0 | H49: 0 | I49: 0 | J49: 0 | K49: 0 | L49: 0 | M49: 0
A51: End of Sheet

Sheet 243b
E1: BUDGET | M1: Page 16
E2: EXPENDITURES | M2: STATE PROFESSIONAL TECHNICAL
E3: July 1, 2024 - June 30, 2025 | M3: FUND NO: 243
A4: NOTE: Round each entry to the nearest dollar amount.
C5: EXPENDITURES | D5: Prior Year | E5: Proposed | F5: 100 | G5: 200 | H5: 300 | I5: 400 | J5: 500 | K5: 600 | L5: 700 | M5: 800
H6: Purchased | I6: Supplies | J6: Capital | K6: Debt | L6: Insurance-
A7: Line | B7: Code | C7: Functions/Programs | D7: Budget | E7: Budget | F7: Salaries | G7: Benefits | H7: Services | I7: Materials | J7: Objects | K7: Retirement | L7: Judgment | M7: Transfers
A8: 40 | B8: 691 | C8: Other Support Services Program | E8: =SUM(F8:M8) -> 0
A9: 41
A10: 42 | B10: 600 | C10: TOTAL SUPPORT SERVICES | D10: =+D8+'243'!D49 -> 0 | E10: =+E8+'243'!E49 -> 0 | F10: =+F8+'243'!F49 -> 0 | G10: =+G8+'243'!G49 -> 0 | H10: =+H8+'243'!H49 -> 0 | I10: =+I8+'243'!I49 -> 0 | J10: =+J8+'243'!J49 -> 0 | K10: =+K8+'243'!K49 -> 0 | L10: =+L8+'243'!L49 -> 0 | M10: =+M8+'243'!M49 -> 0
A11: 43
A12: 44 | B12: 710 | C12: Child Nutrition Program | E12: =SUM(F12:M12) -> 0
A13: 45 | B13: 720 | C13: Community Services Program | E13: =SUM(F13:M13) -> 0
A14: 46 | B14: 730 | C14: Enterprise Operations | E14: =SUM(F14:M14) -> 0
A15: 47 | B15: 740 | C15: Student Activity Program | E15: =SUM(F15:M15) -> 0
A16: 48
A17: 49 | B17: 700 | C17: TOTAL NON-INSTRUCTION | D17: =SUM(D12:D15) -> 0 | E17: =SUM(E12:E15) -> 0 | F17: 0 | G17: 0 | H17: 0 | I17: 0 | J17: 0 | K17: 0 | L17: 0 | M17: 0
A18: 50
A19: 51 | B19: 810 | C19: Capital Assets | E19: =SUM(F19:M19) -> 0
A20: 52 | B20: 811 | C20: Capital Assets - NonStudent Occupied | E20: =SUM(F20:M20) -> 0
A21: 53
A22: 54 | B22: 800 | C22: TOTAL CAPITAL ASSET PROGRAMS | D22: =SUM(D19:D20) -> 0 | E22: =SUM(E19:E20) -> 0 | F22: =SUM(F19:F20) -> 0 | G22: =SUM(G19:G20) -> 0 | H22: 0 | I22: 0 | J22: 0 | K22: 0 | L22: 0 | M22: 0
A23: 55
A24: 56 | B24: 911 | C24: Debt Services Program - Principal | E24: =SUM(F24:M24) -> 0
A25: 57 | B25: 912 | C25: Debt Services Program - Interest | E25: =SUM(F25:M25) -> 0
A26: 58 | B26: 913 | C26: Debt Services Program - Refunded Debt | E26: =SUM(F26:M26) -> 0
A27: 59 | B27: 920 | C27: Fund Transfers Out | E27: =SUM(F27:M27) -> 0
A28: 60
A29: 61 | B29: 900 | C29: TOTAL OTHER SERVICES | D29: =SUM(D24:D28) -> 0 | E29: =SUM(E24:E28) -> 0 | F29: =SUM(F24:F28) -> 0 | G29: =SUM(G24:G28) -> 0 | H29: 0 | I29: 0 | J29: 0 | K29: 0 | L29: 0 | M29: 0
A30: 62
A31: 63 | C31: TOTAL EXPENDITURES
A32: 64 | C32: (Lines 14+42+49+54+61) | D32: 74594 | E32: ='243'!E21 -> 73556 | F32: =SUM(F29,F22,F17,F10,'243'!F21) -> 38614 | G32: =SUM(G29,G22,G17,G10,'243'!G21) -> 8160 | H32: =SUM(H29,H22,H17,H10,'243'!H21) -> 8500 | I32: =SUM(I29,I22,I17,I10,'243'!I21) -> 11538 | J32: =SUM(J29,J22,J17,J10,'243'!J21) -> 6744 | K32: =SUM(K29,K22,K17,K10,'243'!K21) -> 0 | L32: =SUM(L29,L22,L17,L10,'243'!L21) -> 0 | M32: =SUM(M29,M22,M17,M10,'243'!M21) -> 0
A33: 65
A34: 66
A35: 67
A36: 68
A37: 69
A38: 70
A39: 71
A40: 72
A41: 73 | C41: BUDGET SUMMARY
A42: 74
A43: 75 | C43: Beginning Fund Balance | D43: 0 | F43: BUDGET SUMMARY:
A44: 76 | C44: Revenues + Transfers In | D44: -74594 | E44: -73556
A45: 77 | C45: TOTAL REVENUE (lines 74 + 75) | D45: -74594 | E45: =SUM(E44) -> -73556 | F45: The total on line 77 must equal the total on line 81.
A46: 78
A47: 79 | C47: Total Expenditures | D47: 74594 | E47: =E32 -> 73556
A48: 80 | C48: Unappropriated Balance
A49: 81 | C49: TOTAL EXPD + UNAPPROPRIATED BAL (lines 78 + 79) | D49: 74594 | E49: =SUM(E47:E48) -> 73556
A50: =CELL("FILENAME",A8195) -> C:\Users\teacher\Desktop\[KSD 414 2025-Expenditures.xlsm]243b

Sheet 245
E1: BUDGET | M1: Page 17
E2: EXPENDITURES | M2: TECHNOLOGY - STATE
E3: July 1, 2024 - June 30, 2025 | M3: FUND NO: 245
A4: NOTE: Round each entry to the nearest dollar amount.
C5: EXPENDITURES | D5: Prior Year | E5: Proposed | F5: 100 | G5: 200 | H5: 300 | I5: 400 | J5: 500 | K5: 600 | L5: 700 | M5: 800
H6: Purchased | I6: Supplies | J6: Capital | K6: Debt | L6: Insurance-
A7: Line | B7: Code | C7: Functions/Programs | D7: Budget | E7: Budget | F7: Salaries | G7: Benefits | H7: Services | I7: Materials | J7: Objects | K7: Retirement | L7: Judgment | M7: Transfers
A8: 1 | B8: 512 | C8: Elementary School Program | D8: 5000 | E8: =SUM(F8:M8) -> 5000 | J8: 5000
A9: 2 | B9: 515 | C9: Secondary School Program | D9: 5000 | E9: =SUM(F9:M9) -> 5000 | J9: 5000
A10: 3 | B10: 517 | C10: Alternative School Program | D10: 0 | E10: =SUM(F10:M10) -> 0
A11: 4 | B11: 519 | C11: Vocational-Technical Program | D11: 0 | E11: 0
A12: 5 | B12: 521 | C12: Special Education Program | D12: 0 | E12: 0
A13: 6 | B13: 522 | C13: Special Education Preschool Program | D13: 0 | E13: 0
A14: 7 | B14: 524 | C14: Gifted & Talented Program | D14: 0 | E14: 0
A15: 8 | B15: 531 | C15: Interscholastic Program | D15: 0 | E15: 0
A16: 9 | B16: 532 | C16: School Activity Program | D16: 0 | E16: 0
A17: 10 | B17: 541 | C17: Summer School Program | D17: 0 | E17: 0
A18: 11 | B18: 542 | C18: Adult School Program | D18: 0 | E18: 0
A19: 12 | B19: 546 | C19: Detention Center Program | D19: 0 | E19: 0
A20: 13
A21: 14 | B21: 500 | C21: TOTAL INSTRUCTION | D21: 10000 | E21: =SUM(E8:E19) -> 10000 | F21: =SUM(F8:F19) -> 0 | G21: 0 | H21: 0 | I21: 0 | J21: 10000 | K21: 0 | L21: 0 | M21: 0
A22: 15
A23: 16 | B23: 611 | C23: Attendance-Guidance-Health Program | D23: 0 | E23: =SUM(F23:M23) -> 0
A24: 17 | B24: 616 | C24: Special Education Support Services Prog | D24: 0 | E24: =SUM(F24:M24) -> 0
A25: 18
A26: 19 | B26: 621 | C26: Instruction Improvement Program | D26: 0 | E26: =SUM(F26:M26) -> 0
A27: 20 | B27: 622 | C27: Educational Media Program | D27: 0 | E27: 0
A28: 21 | B28: 623 | C28: Instruction-Related Technology Program | D28: 0 | E28: 0
A29: 22 | B29: 624 | C29: Books and Periodicals | D29: 0 | E29: 0
A30: 23 | B30: 631 | C30: Board of Education Program | D30: 0 | E30: 0
A31: 24 | B31: 632 | C31: District Administration Program | D31: 0 | E31: 0
A32: 25
A33: 26 | B33: 641 | C33: School Administration Program | D33: 0 | E33: =SUM(F33:M33) -> 0
A34: 27
A35: 28 | B35: 651 | C35: Business Operation Program | D35: 2500 | E35: =SUM(F35:M35) -> 2500 | J35: 2500
A36: 29 | B36: 655 | C36: Central Service Program | D36: 0 | E36: =SUM(F36:M36) -> 0
A37: 30 | B37: 656 | C37: Administrative Technology Services Prog | D37: 456125 | E37: =SUM(F37:M37) -> 458820 | H37: 244250 | I37: 214570
A38: 31 | B38: 661 | C38: Buildings-Care Program (Custodial) | D38: 0 | E38: 0
A39: 32 | B39: 663 | C39: Maintenance - Non Student Occupied | D39: 0 | E39: 0
A40: 33 | B40: 664 | C40: Maintenance - Buildings and Equipment | D40: 0 | E40: 0
A41: 34 | B41: 665 | C41: Maintenance - Grounds | D41: 0 | E41: 0
A42: 35 | B42: 667 | C42: Security Program | D42: 0 | E42: 0
A43: 36
A44: 37 | B44: 681 | C44: Pupil - To School Trans. Program | D44: 0 | E44: =SUM(F44:M44) -> 0
A45: 38 | B45: 682 | C45: Pupil - Activity Trans. Program | D45: 0 | E45: =SUM(F45:M45) -> 0
A46: 39 | B46: 683 | C46: General Transportation Program | D46: 0 | E46: =SUM(F46:M46) -> 0
A48: =CELL("filename",A48) -> C:\Users\teacher\Desktop\[KSD 414 2025-Expenditures.xlsm]245
C49: Subtotal (carried over to page b) | D49: 458625 | E49: =SUM(E23:E46) -> 461320 | F49: =SUM(F23:F47) -> 0 | G49: 0 | H49: 244250 | I49: 214570 | J49: 2500 | K49: 0 | L49: 0 | M49: 0
A51: End of Sheet

Sheet 245b
E1: BUDGET | M1: Page 18
E2: EXPENDITURES | M2: TECHNOLOGY - STATE
E3: July 1, 2024 - June 30, 2025 | M3: FUND NO: 245
A4: NOTE: Round each entry to the nearest dollar amount.
C5: EXPENDITURES | D5: Prior Year | E5: Proposed | F5: 100 | G5: 200 | H5: 300 | I5: 400 | J5: 500 | K5: 600 | L5: 700 | M5: 800
H6: Purchased | I6: Supplies | J6: Capital | K6: Debt | L6: Insurance-
A7: Line | B7: Code | C7: Functions/Programs | D7: Budget | E7: Budget | F7: Salaries | G7: Benefits | H7: Services | I7: Materials | J7: Objects | K7: Retirement | L7: Judgment | M7: Transfers
A8: 40 | B8: 691 | C8: Other Support Services Program | E8: =SUM(F8:M8) -> 0
A9: 41
A10: 42 | B10: 600 | C10: TOTAL SUPPORT SERVICES | D10: 458625 | E10: =+E8+'245'!E49 -> 461320 | F10: =+F8+'245'!F49 -> 0 | G10: =+G8+'245'!G49 -> 0 | H10: =+H8+'245'!H49 -> 244250 | I10: =+I8+'245'!I49 -> 214570 | J10: =+J8+'245'!J49 -> 2500 | K10: =+K8+'245'!K49 -> 0 | L10: =+L8+'245'!L49 -> 0 | M10: =+M8+'245'!M49 -> 0
A11: 43
A12: 44 | B12: 710 | C12: Child Nutrition Program | D12: 0 | E12: =SUM(F12:M12) -> 0
A13: 45 | B13: 720 | C13: Community Services Program | D13: 0 | E13: =SUM(F13:M13) -> 0
A14: 46 | B14: 730 | C14: Enterprise Operations | D14: 0 | E14: =SUM(F14:M14) -> 0
A15: 47 | B15: 740 | C15: Student Activity Program | D15: 0 | E15: =SUM(F15:M15) -> 0
A16: 48
A17: 49 | B17: 700 | C17: TOTAL NON-INSTRUCTION | D17: 0 | E17: =SUM(E12:E15) -> 0 | F17: 0 | G17: 0 | H17: 0 | I17: 0 | J17: 0 | K17: 0 | L17: 0 | M17: 0
A18: 50
A19: 51 | B19: 810 | C19: Capital Assets | D19: 0 | E19: =SUM(F19:M19) -> 0
A20: 52 | B20: 811 | C20: Capital Assets - NonStudent Occupied | D20: 0 | E20: =SUM(F20:M20) -> 0
A21: 53
A22: 54 | B22: 800 | C22: TOTAL CAPITAL ASSET PROGRAMS | D22: 0 | E22: =SUM(E19:E20) -> 0 | F22: =SUM(F19:F20) -> 0 | G22: =SUM(G19:G20) -> 0 | H22: 0 | I22: 0 | J22: 0 | K22: 0 | L22: 0 | M22: 0
A23: 55
A24: 56 | B24: 911 | C24: Debt Services Program - Principal | D24: 0 | E24: =SUM(F24:M24) -> 0
A25: 57 | B25: 912 | C25: Debt Services Program - Interest | D25: 0 | E25: =SUM(F25:M25) -> 0
A26: 58 | B26: 913 | C26: Debt Services Program - Refunded Debt | D26: 0 | E26: =SUM(F26:M26) -> 0
A27: 59 | B27: 920 | C27: Fund Transfers Out | D27: 0 | E27: =SUM(F27:M27) -> 0
A28: 60
A29: 61 | B29: 900 | C29: TOTAL OTHER SERVICES | D29: 0 | E29: =SUM(E24:E28) -> 0 | F29: =SUM(F24:F28) -> 0 | G29: =SUM(G24:G28) -> 0 | H29: 0 | I29: 0 | J29: 0 | K29: 0 | L29: 0 | M29: 0
A30: 62
A31: 63 | C31: TOTAL EXPENDITURES
A32: 64 | C32: (Lines 14+42+49+54+61) | D32: 468625 | E32: ='245'!E49+'245'!E21 -> 471320 | F32: =SUM(F29,F22,F17,F10,'245'!F21) -> 0 | G32: =SUM(G29,G22,G17,G10,'245'!G21) -> 0 | H32: =SUM(H29,H22,H17,H10,'245'!H21) -> 244250 | I32: =SUM(I29,I22,I17,I10,'245'!I21) -> 214570 | J32: =SUM(J29,J22,J17,J10,'245'!J21) -> 12500 | K32: =SUM(K29,K22,K17,K10,'245'!K21) -> 0 | L32: =SUM(L29,L22,L17,L10,'245'!L21) -> 0 | M32: =SUM(M29,M22,M17,M10,'245'!M21) -> 0
A33: 65
A34: 66
A35: 67
A36: 68
A37: 69
A38: 70
A39: 71
A40: 72
A41: 73 | C41: BUDGET SUMMARY
A42: 74
A43: 75 | C43: Beginning Fund Balance | D43: -10000 | E43: =-5000 -> -5000 | F43: BUDGET SUMMARY:
A44: 76 | C44: Revenues + Transfers In | D44: -458625 | E44: -466320
A45: 77 | C45: TOTAL REVENUE (lines 74 + 75) | D45: -468625 | E45: =SUM(E43:E44) -> -471320 | F45: The total on line 77 must equal the total on line 81.
A46: 78
A47: 79 | C47: Total Expenditures | D47: 468625 | E47: =E32 -> 471320
A48: 80 | C48: Unappropriated Balance
A49: 81 | C49: TOTAL EXPD + UNAPPROPRIATED BAL (lines 78 + 79) | D49: 468625 | E49: =SUM(E47:E48) -> 471320
A50: =CELL("FILENAME",A2) -> C:\Users\teacher\Desktop\[KSD 414 2025-Expenditures.xlsm]245b

Sheet 246
E1: BUDGET | M1: Page 19
E2: EXPENDITURES | M2: SUBSTANCE ABUSE - STATE
E3: July 1, 2024 - June 30, 2025 | M3: FUND NO: 246
A4: NOTE: Round each entry to the nearest dollar amount.
C5: EXPENDITURES | D5: Prior Year | E5: Proposed | F5: 100 | G5: 200 | H5: 300 | I5: 400 | J5: 500 | K5: 600 | L5: 700 | M5: 800
H6: Purchased | I6: Supplies | J6: Capital | K6: Debt | L6: Insurance-
A7: Line | B7: Code | C7: Functions/Programs | D7: Budget | E7: Budget | F7: Salaries | G7: Benefits | H7: Services | I7: Materials | J7: Objects | K7: Retirement | L7: Judgment | M7: Transfers
A8: 1 | B8: 512 | C8: Elementary School Program | E8: =SUM(F8:M8) -> 0
A9: 2 | B9: 515 | C9: Secondary School Program | E9: =SUM(F9:M9) -> 0
A10: 3 | B10: 517 | C10: Alternative School Program | E10: 0
A11: 4 | B11: 519 | C11: Vocational-Technical Program | E11: 0
A12: 5 | B12: 521 | C12: Special Education Program | E12: 0
A13: 6 | B13: 522 | C13: Special Education Preschool Program | E13: 0
A14: 7 | B14: 524 | C14: Gifted & Talented Program | E14: 0
A15: 8 | B15: 531 | C15: Interscholastic Program | E15: 0
A16: 9 | B16: 532 | C16: School Activity Program | E16: 0
A17: 10 | B17: 541 | C17: Summer School Program | E17: 0
A18: 11 | B18: 542 | C18: Adult School Program | E18: 0
A19: 12 | B19: 546 | C19: Detention Center Program | E19: 0
A20: 13
A21: 14 | B21: 500 | C21: TOTAL INSTRUCTION | D21: =SUM(D8:D19) -> 0 | E21: 0 | F21: 0 | G21: 0 | H21: 0 | I21: 0 | J21: 0 | K21: 0 | L21: 0 | M21: 0
A22: 15
A23: 16 | B23: 611 | C23: Attendance-Guidance-Health Program | E23: =SUM(F23:M23) -> 0
A24: 17 | B24: 616 | C24: Special Education Support Services Prog | E24: =SUM(F24:M24) -> 0
A25: 18
A26: 19 | B26: 621 | C26: Instruction Improvement Program | E26: =SUM(F26:M26) -> 0
A27: 20 | B27: 622 | C27: Educational Media Program | E27: 0
A28: 21 | B28: 623 | C28: Instruction-Related Technology Program | E28: 0
A29: 22 | B29: 624 | C29: Books and Periodicals | E29: 0
A30: 23 | B30: 631 | C30: Board of Education Program | E30: 0
A31: 24 | B31: 632 | C31: District Administration Program | E31: 0
A32: 25
A33: 26 | B33: 641 | C33: School Administration Program | E33: =SUM(F33:M33) -> 0
A34: 27
A35: 28 | B35: 651 | C35: Business Operation Program | E35: =SUM(F35:M35) -> 0
A36: 29 | B36: 655 | C36: Central Service Program | E36: =SUM(F36:M36) -> 0
A37: 30 | B37: 656 | C37: Administrative Technology Services Prog | E37: 0
A38: 31 | B38: 661 | C38: Buildings-Care Program (Custodial) | E38: 0
A39: 32 | B39: 663 | C39: Maintenance - Non Student Occupied | E39: 0
A40: 33 | B40: 664 | C40: Maintenance - Buildings and Equipment | E40: 0
A41: 34 | B41: 665 | C41: Maintenance - Grounds | E41: 0
A42: 35 | B42: 667 | C42: Security Program | D42: 24068 | E42: =SUM(F42:M42) -> 26271 | H42: 26271
A43: 36
A44: 37 | B44: 681 | C44: Pupil - To School Trans. Program | D44: 0 | E44: =SUM(F44:M44) -> 0
A45: 38 | B45: 682 | C45: Pupil - Activity Trans. Program | D45: 0 | E45: =SUM(F45:M45) -> 0
A46: 39 | B46: 683 | C46: General Transportation Program | D46: 0 | E46: =SUM(F46:M46) -> 0
A48: =CELL("filename",A48) -> C:\Users\teacher\Desktop\[KSD 414 2025-Expenditures.xlsm]246
C49: Subtotal (carried over to page b) | D49: 24068 | E49: =SUM(E23:E46) -> 26271 | F49: =SUM(F23:F47) -> 0 | G49: 0 | H49: 26271 | I49: 0 | J49: 0 | K49: 0 | L49: 0 | M49: 0
A51: End of Sheet

Sheet 246b
E1: BUDGET | M1: Page 20
E2: EXPENDITURES | M2: SUBSTANCE ABUSE - STATE
E3: July 1, 2024 - June 30, 2025 | M3: FUND NO: 246
A4: NOTE: Round each entry to the nearest dollar amount.
C5: EXPENDITURES | D5: Prior Year | E5: Proposed | F5: 100 | G5: 200 | H5: 300 | I5: 400 | J5: 500 | K5: 600 | L5: 700 | M5: 800
H6: Purchased | I6: Supplies | J6: Capital | K6: Debt | L6: Insurance-
A7: Line | B7: Code | C7: Functions/Programs | D7: Budget | E7: Budget | F7: Salaries | G7: Benefits | H7: Services | I7: Materials | J7: Objects | K7: Retirement | L7: Judgment | M7: Transfers
A8: 40 | B8: 691 | C8: Other Support Services Program | E8: =SUM(F8:M8) -> 0
A9: 41
A10: 42 | B10: 600 | C10: TOTAL SUPPORT SERVICES | D10: 24068 | E10: =+E8+'246'!E49 -> 26271 | F10: =+F8+'246'!F49 -> 0 | G10: =+G8+'246'!G49 -> 0 | H10: =+H8+'246'!H49 -> 26271 | I10: =+I8+'246'!I49 -> 0 | J10: =+J8+'246'!J49 -> 0 | K10: =+K8+'246'!K49 -> 0 | L10: =+L8+'246'!L49 -> 0 | M10: =+M8+'246'!M49 -> 0
A11: 43
A12: 44 | B12: 710 | C12: Child Nutrition Program | D12: 0 | E12: =SUM(F12:M12) -> 0
A13: 45 | B13: 720 | C13: Community Services Program | D13: 0 | E13: =SUM(F13:M13) -> 0
A14: 46 | B14: 730 | C14: Enterprise Operations | D14: 0 | E14: =SUM(F14:M14) -> 0
A15: 47 | B15: 740 | C15: Student Activity Program | D15: 0 | E15: =SUM(F15:M15) -> 0
A16: 48
A17: 49 | B17: 700 | C17: TOTAL NON-INSTRUCTION | D17: 0 | E17: =SUM(E12:E15) -> 0 | F17: 0 | G17: 0 | H17: 0 | I17: 0 | J17: 0 | K17: 0 | L17: 0 | M17: 0
A18: 50
A19: 51 | B19: 810 | C19: Capital Assets | D19: 0 | E19: =SUM(F19:M19) -> 0
A20: 52 | B20: 811 | C20: Capital Assets - NonStudent Occupied | D20: 0 | E20: =SUM(F20:M20) -> 0
A21: 53
A22: 54 | B22: 800 | C22: TOTAL CAPITAL ASSET PROGRAMS | D22: 0 | E22: =SUM(E19:E20) -> 0 | F22: =SUM(F19:F20) -> 0 | G22: =SUM(G19:G20) -> 0 | H22: 0 | I22: 0 | J22: 0 | K22: 0 | L22: 0 | M22: 0
A23: 55
A24: 56 | B24: 911 | C24: Debt Services Program - Principal | D24: 0 | E24: =SUM(F24:M24) -> 0
A25: 57 | B25: 912 | C25: Debt Services Program - Interest | D25: 0 | E25: =SUM(F25:M25) -> 0
A26: 58 | B26: 913 | C26: Debt Services Program - Refunded Debt | D26: 0 | E26: =SUM(F26:M26) -> 0
A27: 59 | B27: 920 | C27: Fund Transfers Out | D27: 0 | E27: =SUM(F27:M27) -> 0
A28: 60
A29: 61 | B29: 900 | C29: TOTAL OTHER SERVICES | D29: 0 | E29: =SUM(E24:E28) -> 0 | F29: =SUM(F24:F28) -> 0 | G29: =SUM(G24:G28) -> 0 | H29: 0 | I29: 0 | J29: 0 | K29: 0 | L29: 0 | M29: 0
A30: 62
A31: 63 | C31: TOTAL EXPENDITURES
A32: 64 | C32: (Lines 14+42+49+54+61) | D32: 24068 | E32: ='246'!E49 -> 26271 | F32: =SUM(F29,F22,F17,F10,'246'!F21) -> 0 | G32: =SUM(G29,G22,G17,G10,'246'!G21) -> 0 | H32: =SUM(H29,H22,H17,H10,'246'!H21) -> 26271 | I32: =SUM(I29,I22,I17,I10,'246'!I21) -> 0 | J32: =SUM(J29,J22,J17,J10,'246'!J21) -> 0 | K32: =SUM(K29,K22,K17,K10,'246'!K21) -> 0 | L32: =SUM(L29,L22,L17,L10,'246'!L21) -> 0 | M32: =SUM(M29,M22,M17,M10,'246'!M21) -> 0
A33: 65
A34: 66
A35: 67
A36: 68
A37: 69
A38: 70
A39: 71
A40: 72
A41: 73 | C41: BUDGET SUMMARY
A42: 74
A43: 75 | C43: Beginning Fund Balance | F43: BUDGET SUMMARY:
A44: 76 | C44: Revenues + Transfers In | D44: -24068 | E44: -26271
A45: 77 | C45: TOTAL REVENUE (lines 74 + 75) | D45: -24068 | E45: =SUM(E44) -> -26271 | F45: The total on line 77 must equal the total on line 81.
A46: 78
A47: 79 | C47: Total Expenditures | D47: 24068 | E47: =E32 -> 26271
A48: 80 | C48: Unappropriated Balance
A49: 81 | C49: TOTAL EXPD + UNAPPROPRIATED BAL (lines 78 + 79) | D49: 24068 | E49: =SUM(E47:E48) -> 26271
A50: =CELL("FILENAME",A2) -> C:\Users\teacher\Desktop\[KSD 414 2025-Expenditures.xlsm]246b

Sheet State
E1: BUDGET | M1: Page 21
E2: EXPENDITURES | H2: SPECIAL STATE | K2: FUND NAME:
E3: July 1, 2024 - June 30, 2025 | H3: 240 THROUGH 249 | K3: FUND NO:
A4: NOTE: Round each entry to the nearest dollar amount.
C5: EXPENDITURES | D5: Prior Year | E5: Proposed | F5: 100 | G5: 200 | H5: 300 | I5: 400 | J5: 500 | K5: 600 | L5: 700 | M5: 800
H6: Purchased | I6: Supplies | J6: Capital | K6: Debt | L6: Insurance-
A7: Line | B7: Code | C7: Functions/Programs | D7: Budget | E7: Budget | F7: Salaries | G7: Benefits | H7: Services | I7: Materials | J7: Objects | K7: Retirement | L7: Judgment | M7: Transfers
A8: 1 | B8: 512 | C8: Elementary School Program | E8: =SUM(F8:M8) -> 0
A9: 2 | B9: 515 | C9: Secondary School Program | E9: =SUM(F9:M9) -> 0
A10: 3 | B10: 517 | C10: Alternative School Program | E10: 0
A11: 4 | B11: 519 | C11: Vocational-Technical Program | E11: 0
A12: 5 | B12: 521 | C12: Special Education Program | E12: 0
A13: 6 | B13: 522 | C13: Special Education Preschool Program | E13: 0
A14: 7 | B14: 524 | C14: Gifted & Talented Program | E14: 0
A15: 8 | B15: 531 | C15: Interscholastic Program | E15: 0
A16: 9 | B16: 532 | C16: School Activity Program | E16: 0
A17: 10 | B17: 541 | C17: Summer School Program | E17: 0
A18: 11 | B18: 542 | C18: Adult School Program | E18: 0
A19: 12 | B19: 546 | C19: Detention Center Program | E19: 0
A20: 13
A21: 14 | B21: 500 | C21: TOTAL INSTRUCTION | D21: =SUM(D8:D19) -> 0 | E21: 0 | F21: 0 | G21: 0 | H21: 0 | I21: 0 | J21: 0 | K21: 0 | L21: 0 | M21: 0
A22: 15
A23: 16 | B23: 611 | C23: Attendance-Guidance-Health Program | E23: =SUM(F23:M23) -> 0
A24: 17 | B24: 616 | C24: Special Education Support Services Prog | E24: =SUM(F24:M24) -> 0
A25: 18
A26: 19 | B26: 621 | C26: Instruction Improvement Program | E26: =SUM(F26:M26) -> 0
A27: 20 | B27: 622 | C27: Educational Media Program | E27: 0
A28: 21 | B28: 623 | C28: Instruction-Related Technology Program | E28: 0
A29: 22 | B29: 624 | C29: Books and Periodicals | E29: 0
A30: 23 | B30: 631 | C30: Board of Education Program | E30: 0
A31: 24 | B31: 632 | C31: District Administration Program | E31: 0
A32: 25
A33: 26 | B33: 641 | C33: School Administration Program | E33: =SUM(F33:M33) -> 0
A34: 27
A35: 28 | B35: 651 | C35: Business Operation Program | E35: =SUM(F35:M35) -> 0
A36: 29 | B36: 655 | C36: Central Service Program | E36: =SUM(F36:M36) -> 0
A37: 30 | B37: 656 | C37: Administrative Technology Services Prog | E37: 0
A38: 31 | B38: 661 | C38: Buildings-Care Program (Custodial) | E38: 0
A39: 32 | B39: 663 | C39: Maintenance - Non Student Occupied | E39: 0
A40: 33 | B40: 664 | C40: Maintenance - Buildings and Equipment | E40: 0
A41: 34 | B41: 665 | C41: Maintenance - Grounds | E41: 0
A42: 35 | B42: 667 | C42: Security Program | E42: 0
A43: 36
A44: 37 | B44: 681 | C44: Pupil - To School Trans. Program | E44: =SUM(F44:M44) -> 0
A45: 38 | B45: 682 | C45: Pupil - Activity Trans. Program | E45: =SUM(F45:M45) -> 0
A46: 39 | B46: 683 | C46: General Transportation Program | E46: =SUM(F46:M46) -> 0
A48: =CELL("filename",A48) -> C:\Users\teacher\Desktop\[KSD 414 2025-Expenditures.xlsm]State
C49: Subtotal (carried over to page b) | D49: =SUM(D23:D47) -> 0 | E49: =SUM(E23:E47) -> 0 | F49: 0 | G49: 0 | H49: 0 | I49: 0 | J49: 0 | K49: 0 | L49: 0 | M49: 0
A51: End of Sheet

Sheet Stateb
E1: BUDGET | M1: Page 22
E2: EXPENDITURES | I2: SPECIAL STATE | K2: FUND NAME:
E3: July 1, 2024 - June 30, 2025 | I3: 240 THROUGH 249 | K3: FUND NO:
A4: NOTE: Round each entry to the nearest dollar amount.
C5: EXPENDITURES | D5: Prior Year | E5: Proposed | F5: 100 | G5: 200 | H5: 300 | I5: 400 | J5: 500 | K5: 600 | L5: 700 | M5: 800
H6: Purchased | I6: Supplies | J6: Capital | K6: Debt | L6: Insurance-
A7: Line | B7: Code | C7: Functions/Programs | D7: Budget | E7: Budget | F7: Salaries | G7: Benefits | H7: Services | I7: Materials | J7: Objects | K7: Retirement | L7: Judgment | M7: Transfers
A8: 40 | B8: 691 | C8: Other Support Services Program | E8: =SUM(F8:M8) -> 0
A9: 41
A10: 42 | B10: 600 | C10: TOTAL SUPPORT SERVICES | D10: =+D8+State!D49 -> 0 | E10: =+E8+State!E49 -> 0 | F10: =+F8+State!F49 -> 0 | G10: =+G8+State!G49 -> 0 | H10: =+H8+State!H49 -> 0 | I10: =+I8+State!I49 -> 0 | J10: =+J8+State!J49 -> 0 | K10: =+K8+State!K49 -> 0 | L10: =+L8+State!L49 -> 0 | M10: =+M8+State!M49 -> 0
A11: 43
A12: 44 | B12: 710 | C12: Child Nutrition Program | E12: =SUM(F12:M12) -> 0
A13: 45 | B13: 720 | C13: Community Services Program | E13: =SUM(F13:M13) -> 0
A14: 46 | B14: 730 | C14: Enterprise Operations | E14: =SUM(F14:M14) -> 0
A15: 47 | B15: 740 | C15: Student Activity Program | E15: =SUM(F15:M15) -> 0
A16: 48
A17: 49 | B17: 700 | C17: TOTAL NON-INSTRUCTION | D17: =SUM(D12:D15) -> 0 | E17: =SUM(E12:E15) -> 0 | F17: 0 | G17: 0 | H17: 0 | I17: 0 | J17: 0 | K17: 0 | L17: 0 | M17: 0
A18: 50
A19: 51 | B19: 810 | C19: Capital Assets | E19: =SUM(F19:M19) -> 0
A20: 52 | B20: 811 | C20: Capital Assets - NonStudent Occupied | E20: =SUM(F20:M20) -> 0
A21: 53
A22: 54 | B22: 800 | C22: TOTAL CAPITAL ASSET PROGRAMS | D22: =SUM(D19:D20) -> 0 | E22: =SUM(E19:E20) -> 0 | F22: =SUM(F19:F20) -> 0 | G22: =SUM(G19:G20) -> 0 | H22: 0 | I22: 0 | J22: 0 | K22: 0 | L22: 0 | M22: 0
A23: 55
A24: 56 | B24: 911 | C24: Debt Services Program - Principal | E24: =SUM(F24:M24) -> 0
A25: 57 | B25: 912 | C25: Debt Services Program - Interest | E25: =SUM(F25:M25) -> 0
A26: 58 | B26: 913 | C26: Debt Services Program - Refunded Debt | E26: =SUM(F26:M26) -> 0
A27: 59 | B27: 920 | C27: Fund Transfers Out | E27: =SUM(F27:M27) -> 0
A28: 60
A29: 61 | B29: 900 | C29: TOTAL OTHER SERVICES | D29: =SUM(D24:D28) -> 0 | E29: =SUM(E24:E28) -> 0 | F29: =SUM(F24:F28) -> 0 | G29: =SUM(G24:G28) -> 0 | H29: 0 | I29: 0 | J29: 0 | K29: 0 | L29: 0 | M29: 0
A30: 62
A31: 63 | C31: TOTAL EXPENDITURES
A32: 64 | C32: (Lines 14+42+49+54+61) | D32: =SUM(D29,D22,D17,D10,State!D21) -> 0 | E32: =SUM(E29,E22,E17,E10,State!E21) -> 0 | F32: =SUM(F29,F22,F17,F10,State!F21) -> 0 | G32: =SUM(G29,G22,G17,G10,State!G21) -> 0 | H32: =SUM(H29,H22,H17,H10,State!H21) -> 0 | I32: =SUM(I29,I22,I17,I10,State!I21) -> 0 | J32: =SUM(J29,J22,J17,J10,State!J21) -> 0 | K32: =SUM(K29,K22,K17,K10,State!K21) -> 0 | L32: =SUM(L29,L22,L17,L10,State!L21) -> 0 | M32: =SUM(M29,M22,M17,M10,State!M21) -> 0
A33: 65
A34: 66
A35: 67
A36: 68
A37: 69
A38: 70
A39: 71
A40: 72
A41: 73 | C41: BUDGET SUMMARY
A42: 74
A43: 75 | C43: Beginning Fund Balance | F43: BUDGET SUMMARY:
A44: 76 | C44: Revenues + Transfers In
A45: 77 | C45: TOTAL REVENUE (lines 74 + 75) | D45: =SUM(D43:D44) -> 0 | E45: =SUM(E43:E44) -> 0 | F45: The total on line 77 must equal the total on line 81.
A46: 78
A47: 79 | C47: Total Expenditures | D47: =D32 -> 0 | E47: =E32 -> 0
A48: 80 | C48: Unappropriated Balance | D48: =+D45-D32 -> 0 | E48: =+E45-E32 -> 0
A49: 81 | C49: TOTAL EXPD + UNAPPROPRIATED BAL (lines 78 + 79) | D49: =SUM(D47:D48) -> 0 | E49: =SUM(E47:E48) -> 0
A50: =CELL("FILENAME",A2) -> C:\Users\teacher\Desktop\[KSD 414 2025-Expenditures.xlsm]Stateb

Sheet 250
E1: BUDGET | M1: Page 23
E2: EXPENDITURES | M2: ESSER III, ARPA
E3: July 1, 2024 - June 30, 2025 | M3: FUND NO: 250
A4: NOTE: Round each entry to the nearest dollar amount.
C5: EXPENDITURES | D5: Prior Year | E5: Proposed | F5: 100 | G5: 200 | H5: 300 | I5: 400 | J5: 500 | K5: 600 | L5: 700 | M5: 800
H6: Purchased | I6: Supplies | J6: Capital | K6: Debt | L6: Insurance-
A7: Line | B7: Code | C7: Functions/Programs | D7: Budget | E7: Budget | F7: Salaries | G7: Benefits | H7: Services | I7: Materials | J7: Objects | K7: Retirement | L7: Judgment | M7: Transfers
A8: 1 | B8: 512 | C8: Elementary School Program | E8: =SUM(F8:M8) -> 0
A9: 2 | B9: 515 | C9: Secondary School Program | E9: =SUM(F9:M9) -> 0
A10: 3 | B10: 517 | C10: Alternative School Program | E10: 0
A11: 4 | B11: 519 | C11: Vocational-Technical Program | E11: 0
A12: 5 | B12: 521 | C12: Special Education Program | E12: 0
A13: 6 | B13: 522 | C13: Special Education Preschool Program | E13: 0
A14: 7 | B14: 524 | C14: Gifted & Talented Program | E14: 0
A15: 8 | B15: 531 | C15: Interscholastic Program | E15: 0
A16: 9 | B16: 532 | C16: School Activity Program | E16: 0
A17: 10 | B17: 541 | C17: Summer School Program | E17: 0
A18: 11 | B18: 542 | C18: Adult School Program | E18: 0
A19: 12 | B19: 546 | C19: Detention Center Program | E19: 0
A20: 13
A21: 14 | B21: 500 | C21: TOTAL INSTRUCTION | D21: =SUM(D8:D19) -> 0 | E21: 0 | F21: 0 | G21: 0 | H21: 0 | I21: 0 | J21: 0 | K21: 0 | L21: 0 | M21: 0
A22: 15
A23: 16 | B23: 611 | C23: Attendance-Guidance-Health Program | E23: =SUM(F23:M23) -> 0
A24: 17 | B24: 616 | C24: Special Education Support Services Prog | E24: =SUM(F24:M24) -> 0
A25: 18
A26: 19 | B26: 621 | C26: Instruction Improvement Program | D26: 743767 | E26: =SUM(F26:M26) -> 0
A27: 20 | B27: 622 | C27: Educational Media Program | E27: 0
A28: 21 | B28: 623 | C28: Instruction-Related Technology Program | E28: 0
A29: 22 | B29: 624 | C29: Books and Periodicals | E29: 0
A30: 23 | B30: 631 | C30: Board of Education Program | E30: 0
A31: 24 | B31: 632 | C31: District Administration Program | E31: 0
A32: 25
A33: 26 | B33: 641 | C33: School Administration Program | E33: =SUM(F33:M33) -> 0
A34: 27
A35: 28 | B35: 651 | C35: Business Operation Program | E35: =SUM(F35:M35) -> 0
A36: 29 | B36: 655 | C36: Central Service Program | E36: =SUM(F36:M36) -> 0
A37: 30 | B37: 656 | C37: Administrative Technology Services Prog | E37: 0
A38: 31 | B38: 661 | C38: Buildings-Care Program (Custodial) | E38: 0
A39: 32 | B39: 663 | C39: Maintenance - Non Student Occupied | E39: 0
A40: 33 | B40: 664 | C40: Maintenance - Buildings and Equipment | E40: 0
A41: 34 | B41: 665 | C41: Maintenance - Grounds | E41: 0
A42: 35 | B42: 667 | C42: Security Program | E42: 0
A43: 36
A44: 37 | B44: 681 | C44: Pupil - To School Trans. Program | E44: =SUM(F44:M44) -> 0
A45: 38 | B45: 682 | C45: Pupil - Activity Trans. Program | E45: =SUM(F45:M45) -> 0
A46: 39 | B46: 683 | C46: General Transportation Program | E46: =SUM(F46:M46) -> 0
A48: =CELL("filename",A48) -> C:\Users\teacher\Desktop\[KSD 414 2025-Expenditures.xlsm]250
C49: Subtotal (carried over to page b) | D49: 743767 | E49: =SUM(E23:E47) -> 0 | F49: 0 | G49: 0 | H49: 0 | I49: 0 | J49: 0 | K49: 0 | L49: 0 | M49: 0
A51: End of Sheet

Sheet 250b
E1: BUDGET | M1: Page 24
E2: EXPENDITURES | M2: ESSER III, ARPA
E3: July 1, 2024 - June 30, 2025 | M3: FUND NO: 250
A4: NOTE: Round each entry to the nearest dollar amount.
C5: EXPENDITURES | D5: Prior Year | E5: Proposed | F5: 100 | G5: 200 | H5: 300 | I5: 400 | J5: 500 | K5: 600 | L5: 700 | M5: 800
H6: Purchased | I6: Supplies | J6: Capital | K6: Debt | L6: Insurance-
A7: Line | B7: Code | C7: Functions/Programs | D7: Budget | E7: Budget | F7: Salaries | G7: Benefits | H7: Services | I7: Materials | J7: Objects | K7: Retirement | L7: Judgment | M7: Transfers
A8: 40 | B8: 691 | C8: Other Support Services Program | E8: =SUM(F8:M8) -> 0
A9: 41
A10: 42 | B10: 600 | C10: TOTAL SUPPORT SERVICES | D10: 334788 | E10: =+E8+'250'!E49 -> 0 | F10: =+F8+'250'!F49 -> 0 | G10: =+G8+'250'!G49 -> 0 | H10: =+H8+'250'!H49 -> 0 | I10: =+I8+'250'!I49 -> 0 | J10: =+J8+'250'!J49 -> 0 | K10: =+K8+'250'!K49 -> 0 | L10: =+L8+'250'!L49 -> 0 | M10: =+M8+'250'!M49 -> 0
A11: 43
A12: 44 | B12: 710 | C12: Child Nutrition Program | E12: =SUM(F12:M12) -> 0
A13: 45 | B13: 720 | C13: Community Services Program | E13: =SUM(F13:M13) -> 0
A14: 46 | B14: 730 | C14: Enterprise Operations | E14: =SUM(F14:M14) -> 0
A15: 47 | B15: 740 | C15: Student Activity Program | E15: =SUM(F15:M15) -> 0
A16: 48
A17: 49 | B17: 700 | C17: TOTAL NON-INSTRUCTION | D17: 0 | E17: =SUM(E12:E15) -> 0 | F17: 0 | G17: 0 | H17: 0 | I17: 0 | J17: 0 | K17: 0 | L17: 0 | M17: 0
A18: 50
A19: 51 | B19: 810 | C19: Capital Assets | E19: =SUM(F19:M19) -> 0
A20: 52 | B20: 811 | C20: Capital Assets - NonStudent Occupied | E20: =SUM(F20:M20) -> 0
A21: 53
A22: 54 | B22: 800 | C22: TOTAL CAPITAL ASSET PROGRAMS | D22: 0 | E22: =SUM(E19:E20) -> 0 | F22: =SUM(F19:F20) -> 0 | G22: =SUM(G19:G20) -> 0 | H22: 0 | I22: 0 | J22: 0 | K22: 0 | L22: 0 | M22: 0
A23: 55
A24: 56 | B24: 911 | C24: Debt Services Program - Principal | E24: =SUM(F24:M24) -> 0
A25: 57 | B25: 912 | C25: Debt Services Program - Interest | E25: =SUM(F25:M25) -> 0
A26: 58 | B26: 913 | C26: Debt Services Program - Refunded Debt | E26: =SUM(F26:M26) -> 0
A27: 59 | B27: 920 | C27: Fund Transfers Out | E27: =SUM(F27:M27) -> 0
A28: 60
A29: 61 | B29: 900 | C29: TOTAL OTHER SERVICES | D29: 0 | E29: =SUM(E24:E28) -> 0 | F29: =SUM(F24:F28) -> 0 | G29: =SUM(G24:G28) -> 0 | H29: 0 | I29: 0 | J29: 0 | K29: 0 | L29: 0 | M29: 0
A30: 62
A31: 63 | C31: TOTAL EXPENDITURES
A32: 64 | C32: (Lines 14+42+49+54+61) | D32: 334788 | E32: =SUM(E29,E22,E17,E10,'250'!E21) -> 0 | F32: =SUM(F29,F22,F17,F10,'250'!F21) -> 0 | G32: =SUM(G29,G22,G17,G10,'250'!G21) -> 0 | H32: =SUM(H29,H22,H17,H10,'250'!H21) -> 0 | I32: =SUM(I29,I22,I17,I10,'250'!I21) -> 0 | J32: =SUM(J29,J22,J17,J10,'250'!J21) -> 0 | K32: =SUM(K29,K22,K17,K10,'250'!K21) -> 0 | L32: =SUM(L29,L22,L17,L10,'250'!L21) -> 0 | M32: =SUM(M29,M22,M17,M10,'250'!M21) -> 0
A33: 65
A34: 66
A35: 67
A36: 68
A37: 69
A38: 70
A39: 71
A40: 72
A41: 73 | C41: BUDGET SUMMARY
A42: 74
A43: 75 | C43: Beginning Fund Balance | D43: -1171491 | F43: BUDGET SUMMARY:
A44: 76 | C44: Revenues + Transfers In | D44: 0 | E44: =E32 -> 0
A45: 77 | C45: TOTAL REVENUE (lines 74 + 75) | D45: -1171491 | E45: =SUM(E43:E44) -> 0 | F45: The total on line 77 must equal the total on line 81.
A46: 78
A47: 79 | C47: Total Expenditures | D47: 334788 | E47: =E32 -> 0
A48: 80 | C48: Unappropriated Balance | D48: 836703 | E48: =+E45-E32 -> 0
A49: 81 | C49: TOTAL EXPD + UNAPPROPRIATED BAL (lines 78 + 79) | D49: 1171491 | E49: =SUM(E47:E48) -> 0
A50: =CELL("FILENAME",A2) -> C:\Users\teacher\Desktop\[KSD 414 2025-Expenditures.xlsm]250b

Sheet 251
E1: BUDGET | M1: Page 23
E2: EXPENDITURES | M2: TITLE I-A, ESSA - IMPROVING BASIC PROGRAMS
E3: July 1, 2024 - June 30, 2025 | M3: FUND NO: 251
A4: NOTE: Round each entry to the nearest dollar amount.
C5: EXPENDITURES | D5: Prior Year | E5: Proposed | F5: 100 | G5: 200 | H5: 300 | I5: 400 | J5: 500 | K5: 600 | L5: 700 | M5: 800
H6: Purchased | I6: Supplies | J6: Capital | K6: Debt | L6: Insurance-
A7: Line | B7: Code | C7: Functions/Programs | D7: Budget | E7: Budget | F7: Salaries | G7: Benefits | H7: Services | I7: Materials | J7: Objects | K7: Retirement | L7: Judgment | M7: Transfers
A8: 1 | B8: 512 | C8: Elementary School Program | D8: 243132 | E8: =SUM(F8:M8) -> 162935 | F8: 112694 | G8: 37515 | H8: 6000 | I8: 6726
A9: 2 | B9: 515 | C9: Secondary School Program | D9: 0 | E9: =SUM(F9:M9) -> 72911 | F9: 47509 | G9: 18902 | H9: 3000 | I9: 3500
A10: 3 | B10: 517 | C10: Alternative School Program | D10: 0 | E10: =SUM(F10:M10) -> 0
A11: 4 | B11: 519 | C11: Vocational-Technical Program | D11: 0 | E11: 0
A12: 5 | B12: 521 | C12: Special Education Program | D12: 0 | E12: 0
A13: 6 | B13: 522 | C13: Special Education Preschool Program | D13: 0 | E13: 0
A14: 7 | B14: 524 | C14: Gifted & Talented Program | D14: 0 | E14: 0
A15: 8 | B15: 531 | C15: Interscholastic Program | D15: 0 | E15: 0
A16: 9 | B16: 532 | C16: School Activity Program | D16: 0 | E16: 0
A17: 10 | B17: 541 | C17: Summer School Program | D17: 0 | E17: 0
A18: 11 | B18: 542 | C18: Adult School Program | D18: 0 | E18: 0
A19: 12 | B19: 546 | C19: Detention Center Program | D19: 0 | E19: 0
A20: 13
A21: 14 | B21: 500 | C21: TOTAL INSTRUCTION | D21: 243132 | E21: =SUM(E8:E19) -> 235846 | F21: =SUM(F8:F19) -> 160203 | G21: 56417 | H21: 9000 | I21: 10226 | J21: 0 | K21: 0 | L21: 0 | M21: 0
A22: 15
A23: 16 | B23: 611 | C23: Attendance-Guidance-Health Program | E23: =SUM(F23:M23) -> 0
A24: 17 | B24: 616 | C24: Special Education Support Services Prog | E24: =SUM(F24:M24) -> 0
A25: 18
A26: 19 | B26: 621 | C26: Instruction Improvement Program | E26: =SUM(F26:M26) -> 0
A27: 20 | B27: 622 | C27: Educational Media Program | E27: 0
A28: 21 | B28: 623 | C28: Instruction-Related Technology Program | E28: 0
A29: 22 | B29: 624 | C29: Books and Periodicals | E29: 0
A30: 23 | B30: 631 | C30: Board of Education Program | E30: 0
A31: 24 | B31: 632 | C31: District Administration Program | E31: 0
A32: 25
A33: 26 | B33: 641 | C33: School Administration Program | E33: =SUM(F33:M33) -> 0
A34: 27
A35: 28 | B35: 651 | C35: Business Operation Program | E35: =SUM(F35:M35) -> 0
A36: 29 | B36: 655 | C36: Central Service Program | E36: =SUM(F36:M36) -> 0
A37: 30 | B37: 656 | C37: Administrative Technology Services Prog | E37: 0
A38: 31 | B38: 661 | C38: Buildings-Care Program (Custodial) | E38: 0
A39: 32 | B39: 663 | C39: Maintenance - Non Student Occupied | E39: 0
A40: 33 | B40: 664 | C40: Maintenance - Buildings and Equipment | E40: 0
A41: 34 | B41: 665 | C41: Maintenance - Grounds | E41: 0
A42: 35 | B42: 667 | C42: Security Program | E42: 0
A43: 36
A44: 37 | B44: 681 | C44: Pupil - To School Trans. Program | E44: =SUM(F44:M44) -> 0
A45: 38 | B45: 682 | C45: Pupil - Activity Trans. Program | E45: =SUM(F45:M45) -> 0
A46: 39 | B46: 683 | C46: General Transportation Program | E46: =SUM(F46:M46) -> 0
A48: =CELL("filename",A48) -> C:\Users\teacher\Desktop\[KSD 414 2025-Expenditures.xlsm]251
C49: Subtotal (carried over to page b) | D49: =SUM(D23:D47) -> 0 | E49: =SUM(E23:E47) -> 0 | F49: 0 | G49: 0 | H49: 0 | I49: 0 | J49: 0 | K49: 0 | L49: 0 | M49: 0
A51: End of Sheet

Sheet 251b
E1: BUDGET | M1: Page 24
E2: EXPENDITURES | M2: TITLE I-A, ESSA - IMPROVING BASIC PROGRAMS
E3: July 1, 2024 - June 30, 2025 | M3: FUND NO: 251
A4: NOTE: Round each entry to the nearest dollar amount.
C5: EXPENDITURES | D5: Prior Year | E5: Proposed | F5: 100 | G5: 200 | H5: 300 | I5: 400 | J5: 500 | K5: 600 | L5: 700 | M5: 800
H6: Purchased | I6: Supplies | J6: Capital | K6: Debt | L6: Insurance-
A7: Line | B7: Code | C7: Functions/Programs | D7: Budget | E7: Budget | F7: Salaries | G7: Benefits | H7: Services | I7: Materials | J7: Objects | K7: Retirement | L7: Judgment | M7: Transfers
A8: 40 | B8: 691 | C8: Other Support Services Program | E8: =SUM(F8:M8) -> 0
A9: 41
A10: 42 | B10: 600 | C10: TOTAL SUPPORT SERVICES | D10: =+D8+'251'!D49 -> 0 | E10: =+E8+'251'!E49 -> 0 | F10: =+F8+'251'!F49 -> 0 | G10: =+G8+'251'!G49 -> 0 | H10: =+H8+'251'!H49 -> 0 | I10: =+I8+'251'!I49 -> 0 | J10: =+J8+'251'!J49 -> 0 | K10: =+K8+'251'!K49 -> 0 | L10: =+L8+'251'!L49 -> 0 | M10: =+M8+'251'!M49 -> 0
A11: 43
A12: 44 | B12: 710 | C12: Child Nutrition Program | E12: =SUM(F12:M12) -> 0
A13: 45 | B13: 720 | C13: Community Services Program | E13: =SUM(F13:M13) -> 0
A14: 46 | B14: 730 | C14: Enterprise Operations | E14: =SUM(F14:M14) -> 0
A15: 47 | B15: 740 | C15: Student Activity Program | E15: =SUM(F15:M15) -> 0
A16: 48
A17: 49 | B17: 700 | C17: TOTAL NON-INSTRUCTION | D17: =SUM(D12:D15) -> 0 | E17: =SUM(E12:E15) -> 0 | F17: 0 | G17: 0 | H17: 0 | I17: 0 | J17: 0 | K17: 0 | L17: 0 | M17: 0
A18: 50
A19: 51 | B19: 810 | C19: Capital Assets | E19: =SUM(F19:M19) -> 0
A20: 52 | B20: 811 | C20: Capital Assets - NonStudent Occupied | E20: =SUM(F20:M20) -> 0
A21: 53
A22: 54 | B22: 800 | C22: TOTAL CAPITAL ASSET PROGRAMS | D22: =SUM(D19:D20) -> 0 | E22: =SUM(E19:E20) -> 0 | F22: =SUM(F19:F20) -> 0 | G22: =SUM(G19:G20) -> 0 | H22: 0 | I22: 0 | J22: 0 | K22: 0 | L22: 0 | M22: 0
A23: 55
A24: 56 | B24: 911 | C24: Debt Services Program - Principal | E24: =SUM(F24:M24) -> 0
A25: 57 | B25: 912 | C25: Debt Services Program - Interest | E25: =SUM(F25:M25) -> 0
A26: 58 | B26: 913 | C26: Debt Services Program - Refunded Debt | E26: =SUM(F26:M26) -> 0
A27: 59 | B27: 920 | C27: Fund Transfers Out | E27: =SUM(F27:M27) -> 0
A28: 60
A29: 61 | B29: 900 | C29: TOTAL OTHER SERVICES | D29: =SUM(D24:D28) -> 0 | E29: =SUM(E24:E28) -> 0 | F29: =SUM(F24:F28) -> 0 | G29: =SUM(G24:G28) -> 0 | H29: 0 | I29: 0 | J29: 0 | K29: 0 | L29: 0 | M29: 0
A30: 62
A31: 63 | C31: TOTAL EXPENDITURES
A32: 64 | C32: (Lines 14+42+49+54+61) | D32: 243132 | E32: ='251'!E21 -> 235846 | F32: =SUM(F29,F22,F17,F10,'251'!F21) -> 160203 | G32: =SUM(G29,G22,G17,G10,'251'!G21) -> 56417 | H32: =SUM(H29,H22,H17,H10,'251'!H21) -> 9000 | I32: =SUM(I29,I22,I17,I10,'251'!I21) -> 10226 | J32: =SUM(J29,J22,J17,J10,'251'!J21) -> 0 | K32: =SUM(K29,K22,K17,K10,'251'!K21) -> 0 | L32: =SUM(L29,L22,L17,L10,'251'!L21) -> 0 | M32: =SUM(M29,M22,M17,M10,'251'!M21) -> 0
A33: 65
A34: 66
A35: 67
A36: 68
A37: 69
A38: 70
A39: 71
A40: 72
A41: 73 | C41: BUDGET SUMMARY
A42: 74
A43: 75 | C43: Beginning Fund Balance | D43: -10000 | E43: -7901 | F43: BUDGET SUMMARY:
A44: 76 | C44: Revenues + Transfers In | D44: -233132 | E44: -227945
A45: 77 | C45: TOTAL REVENUE (lines 74 + 75) | D45: -243132 | E45: =SUM(E43:E44) -> -235846 | F45: The total on line 77 must equal the total on line 81.
A46: 78
A47: 79 | C47: Total Expenditures | D47: 243132 | E47: =E32 -> 235846
A48: 80 | C48: Unappropriated Balance
A49: 81 | C49: TOTAL EXPD + UNAPPROPRIATED BAL (lines 78 + 79) | D49: 243132 | E49: =SUM(E47:E48) -> 235846
A50: =CELL("FILENAME",A2) -> C:\Users\teacher\Desktop\[KSD 414 2025-Expenditures.xlsm]251b

Sheet 253
E1: BUDGET | M1: Page 27
E2: EXPENDITURES | M2: TITLE I-C, ESSA - EDUCATION OF MIGRATORY CHILDREN
E3: July 1, 2024 - June 30, 2025 | M3: FUND NO: 253
A4: NOTE: Round each entry to the nearest dollar amount.
C5: EXPENDITURES | D5: Prior Year | E5: Proposed | F5: 100 | G5: 200 | H5: 300 | I5: 400 | J5: 500 | K5: 600 | L5: 700 | M5: 800
H6: Purchased | I6: Supplies | J6: Capital | K6: Debt | L6: Insurance-
A7: Line | B7: Code | C7: Functions/Programs | D7: Budget | E7: Budget | F7: Salaries | G7: Benefits | H7: Services | I7: Materials | J7: Objects | K7: Retirement | L7: Judgment | M7: Transfers
A8: 1 | B8: 512 | C8: Elementary School Program | D8: 124386 | E8: =SUM(F8:M8) -> 122318 | F8: 82269 | G8: 33152 | H8: 5000 | I8: 1897
A9: 2 | B9: 515 | C9: Secondary School Program | D9: 0 | E9: =SUM(F9:M9) -> 0
A10: 3 | B10: 517 | C10: Alternative School Program | D10: 0 | E10: 0
A11: 4 | B11: 519 | C11: Vocational-Technical Program | D11: 0 | E11: 0
A12: 5 | B12: 521 | C12: Special Education Program | D12: 0 | E12: 0
A13: 6 | B13: 522 | C13: Special Education Preschool Program | D13: 0 | E13: 0
A14: 7 | B14: 524 | C14: Gifted & Talented Program | D14: 0 | E14: 0
A15: 8 | B15: 531 | C15: Interscholastic Program | D15: 0 | E15: 0
A16: 9 | B16: 532 | C16: School Activity Program | D16: 0 | E16: 0
A17: 10 | B17: 541 | C17: Summer School Program | D17: 0 | E17: 0
A18: 11 | B18: 542 | C18: Adult School Program | D18: 0 | E18: 0
A19: 12 | B19: 546 | C19: Detention Center Program | D19: 0 | E19: 0
A20: 13
A21: 14 | B21: 500 | C21: TOTAL INSTRUCTION | D21: 124386 | E21: =SUM(E8:E19) -> 122318 | F21: =SUM(F8:F19) -> 82269 | G21: 33152 | H21: 5000 | I21: 1897 | J21: 0 | K21: 0 | L21: 0 | M21: 0
A22: 15
A23: 16 | B23: 611 | C23: Attendance-Guidance-Health Program | E23: =SUM(F23:M23) -> 0
A24: 17 | B24: 616 | C24: Special Education Support Services Prog | E24: =SUM(F24:M24) -> 0
A25: 18
A26: 19 | B26: 621 | C26: Instruction Improvement Program | E26: =SUM(F26:M26) -> 0
A27: 20 | B27: 622 | C27: Educational Media Program | E27: 0
A28: 21 | B28: 623 | C28: Instruction-Related Technology Program | E28: 0
A29: 22 | B29: 624 | C29: Books and Periodicals | E29: 0
A30: 23 | B30: 631 | C30: Board of Education Program | E30: 0
A31: 24 | B31: 632 | C31: District Administration Program | E31: 0
A32: 25
A33: 26 | B33: 641 | C33: School Administration Program | E33: =SUM(F33:M33) -> 0
A34: 27
A35: 28 | B35: 651 | C35: Business Operation Program | E35: =SUM(F35:M35) -> 0
A36: 29 | B36: 655 | C36: Central Service Program | E36: =SUM(F36:M36) -> 0
A37: 30 | B37: 656 | C37: Administrative Technology Services Prog | E37: 0
A38: 31 | B38: 661 | C38: Buildings-Care Program (Custodial) | E38: 0
A39: 32 | B39: 663 | C39: Maintenance - Non Student Occupied | E39: 0
A40: 33 | B40: 664 | C40: Maintenance - Buildings and Equipment | E40: 0
A41: 34 | B41: 665 | C41: Maintenance - Grounds | E41: 0
A42: 35 | B42: 667 | C42: Security Program | E42: 0
A43: 36
A44: 37 | B44: 681 | C44: Pupil - To School Trans. Program | E44: =SUM(F44:M44) -> 0
A45: 38 | B45: 682 | C45: Pupil - Activity Trans. Program | E45: =SUM(F45:M45) -> 0
A46: 39 | B46: 683 | C46: General Transportation Program | E46: =SUM(F46:M46) -> 0
A48: =CELL("filename",A48) -> C:\Users\teacher\Desktop\[KSD 414 2025-Expenditures.xlsm]253
C49: Subtotal (carried over to page b) | D49: =SUM(D23:D47) -> 0 | E49: =SUM(E23:E47) -> 0 | F49: 0 | G49: 0 | H49: 0 | I49: 0 | J49: 0 | K49: 0 | L49: 0 | M49: 0
A51: End of Sheet

Sheet 253b
E1: BUDGET | M1: Page 28
E2: EXPENDITURES | M2: TITLE I-C, ESSA - EDUCATION OF MIGRATORY CHILDREN
E3: July 1, 2024 - June 30, 2025 | M3: FUND NO: 253
A4: NOTE: Round each entry to the nearest dollar amount.
C5: EXPENDITURES | D5: Prior Year | E5: Proposed | F5: 100 | G5: 200 | H5: 300 | I5: 400 | J5: 500 | K5: 600 | L5: 700 | M5: 800
H6: Purchased | I6: Supplies | J6: Capital | K6: Debt | L6: Insurance-
A7: Line | B7: Code | C7: Functions/Programs | D7: Budget | E7: Budget | F7: Salaries | G7: Benefits | H7: Services | I7: Materials | J7: Objects | K7: Retirement | L7: Judgment | M7: Transfers
A8: 40 | B8: 691 | C8: Other Support Services Program | E8: =SUM(F8:M8) -> 0
A9: 41
A10: 42 | B10: 600 | C10: TOTAL SUPPORT SERVICES | D10: =+D8+'253'!D49 -> 0 | E10: =+E8+'253'!E49 -> 0 | F10: =+F8+'253'!F49 -> 0 | G10: =+G8+'253'!G49 -> 0 | H10: =+H8+'253'!H49 -> 0 | I10: =+I8+'253'!I49 -> 0 | J10: =+J8+'253'!J49 -> 0 | K10: =+K8+'253'!K49 -> 0 | L10: =+L8+'253'!L49 -> 0 | M10: =+M8+'253'!M49 -> 0
A11: 43
A12: 44 | B12: 710 | C12: Child Nutrition Program | E12: =SUM(F12:M12) -> 0
A13: 45 | B13: 720 | C13: Community Services Program | E13: =SUM(F13:M13) -> 0
A14: 46 | B14: 730 | C14: Enterprise Operations | E14: =SUM(F14:M14) -> 0
A15: 47 | B15: 740 | C15: Student Activity Program | E15: =SUM(F15:M15) -> 0
A16: 48
A17: 49 | B17: 700 | C17: TOTAL NON-INSTRUCTION | D17: =SUM(D12:D15) -> 0 | E17: =SUM(E12:E15) -> 0 | F17: 0 | G17: 0 | H17: 0 | I17: 0 | J17: 0 | K17: 0 | L17: 0 | M17: 0
A18: 50
A19: 51 | B19: 810 | C19: Capital Assets | E19: =SUM(F19:M19) -> 0
A20: 52 | B20: 811 | C20: Capital Assets - NonStudent Occupied | E20: =SUM(F20:M20) -> 0
A21: 53
A22: 54 | B22: 800 | C22: TOTAL CAPITAL ASSET PROGRAMS | D22: =SUM(D19:D20) -> 0 | E22: =SUM(E19:E20) -> 0 | F22: =SUM(F19:F20) -> 0 | G22: =SUM(G19:G20) -> 0 | H22: 0 | I22: 0 | J22: 0 | K22: 0 | L22: 0 | M22: 0
A23: 55
A24: 56 | B24: 911 | C24: Debt Services Program - Principal | E24: =SUM(F24:M24) -> 0
A25: 57 | B25: 912 | C25: Debt Services Program - Interest | E25: =SUM(F25:M25) -> 0
A26: 58 | B26: 913 | C26: Debt Services Program - Refunded Debt | E26: =SUM(F26:M26) -> 0
A27: 59 | B27: 920 | C27: Fund Transfers Out | E27: =SUM(F27:M27) -> 0
A28: 60
A29: 61 | B29: 900 | C29: TOTAL OTHER SERVICES | D29: =SUM(D24:D28) -> 0 | E29: =SUM(E24:E28) -> 0 | F29: =SUM(F24:F28) -> 0 | G29: =SUM(G24:G28) -> 0 | H29: 0 | I29: 0 | J29: 0 | K29: 0 | L29: 0 | M29: 0
A30: 62
A31: 63 | C31: TOTAL EXPENDITURES
A32: 64 | C32: (Lines 14+42+49+54+61) | D32: 124386 | E32: ='253'!E21 -> 122318 | F32: =SUM(F29,F22,F17,F10,'253'!F21) -> 82269 | G32: =SUM(G29,G22,G17,G10,'253'!G21) -> 33152 | H32: =SUM(H29,H22,H17,H10,'253'!H21) -> 5000 | I32: =SUM(I29,I22,I17,I10,'253'!I21) -> 1897 | J32: =SUM(J29,J22,J17,J10,'253'!J21) -> 0 | K32: =SUM(K29,K22,K17,K10,'253'!K21) -> 0 | L32: =SUM(L29,L22,L17,L10,'253'!L21) -> 0 | M32: =SUM(M29,M22,M17,M10,'253'!M21) -> 0
A33: 65
A34: 66
A35: 67
A36: 68
A37: 69
A38: 70
A39: 71
A40: 72
A41: 73 | C41: BUDGET SUMMARY
A42: 74
A43: 75 | C43: Beginning Fund Balance | D43: -15000 | E43: -16214 | F43: BUDGET SUMMARY:
A44: 76 | C44: Revenues + Transfers In | D44: -109386 | E44: -106104
A45: 77 | C45: TOTAL REVENUE (lines 74 + 75) | D45: -124386 | E45: =SUM(E43:E44) -> -122318 | F45: The total on line 77 must equal the total on line 81.
A46: 78
A47: 79 | C47: Total Expenditures | D47: 124386 | E47: =E32 -> 122318
A48: 80 | C48: Unappropriated Balance
A49: 81 | C49: TOTAL EXPD + UNAPPROPRIATED BAL (lines 78 + 79) | D49: 124386 | E49: =SUM(E47:E48) -> 122318
A50: =CELL("FILENAME",A2) -> C:\Users\teacher\Desktop\[KSD 414 2025-Expenditures.xlsm]253b

Sheet 257
E1: BUDGET | M1: Page 31
E2: EXPENDITURES | M2: IDEA Part B (611 SCHOOL AGE 3-21)
E3: July 1, 2024 - June 30, 2025 | M3: FUND NO: 257
A4: NOTE: Round each entry to the nearest dollar amount.
C5: EXPENDITURES | D5: Prior Year | E5: Proposed | F5: 100 | G5: 200 | H5: 300 | I5: 400 | J5: 500 | K5: 600 | L5: 700 | M5: 800
H6: Purchased | I6: Supplies | J6: Capital | K6: Debt | L6: Insurance-
A7: Line | B7: Code | C7: Functions/Programs | D7: Budget | E7: Budget | F7: Salaries | G7: Benefits | H7: Services | I7: Materials | J7: Objects | K7: Retirement | L7: Judgment | M7: Transfers
A8: 1 | B8: 512 | C8: Elementary School Program | D8: 0 | E8: =SUM(F8:M8) -> 0
A9: 2 | B9: 515 | C9: Secondary School Program | D9: 0 | E9: =SUM(F9:M9) -> 0
A10: 3 | B10: 517 | C10: Alternative School Program | D10: 0 | E10: 0
A11: 4 | B11: 519 | C11: Vocational-Technical Program | D11: 0 | E11: 0
A12: 5 | B12: 521 | C12: Special Education Program | D12: 374009 | E12: =SUM(F12:M12) -> 380285 | F12: 201638 | G12: 125113 | H12: 49454 | I12: 4080
A13: 6 | B13: 522 | C13: Special Education Preschool Program | D13: 0 | E13: 0
A14: 7 | B14: 524 | C14: Gifted & Talented Program | D14: 0 | E14: 0
A15: 8 | B15: 531 | C15: Interscholastic Program | D15: 0 | E15: 0
A16: 9 | B16: 532 | C16: School Activity Program | D16: 0 | E16: 0
A17: 10 | B17: 541 | C17: Summer School Program | D17: 0 | E17: 0
A18: 11 | B18: 542 | C18: Adult School Program | D18: 0 | E18: 0
A19: 12 | B19: 546 | C19: Detention Center Program | D19: 0 | E19: 0
A20: 13
A21: 14 | B21: 500 | C21: TOTAL INSTRUCTION | D21: 374009 | E21: =SUM(E8:E19) -> 380285 | F21: =SUM(F8:F19) -> 201638 | G21: 125113 | H21: 49454 | I21: 4080 | J21: 0 | K21: 0 | L21: 0 | M21: 0
A22: 15
A23: 16 | B23: 611 | C23: Attendance-Guidance-Health Program | E23: =SUM(F23:M23) -> 0
A24: 17 | B24: 616 | C24: Special Education Support Services Prog | E24: =SUM(F24:M24) -> 0
A25: 18
A26: 19 | B26: 621 | C26: Instruction Improvement Program | E26: =SUM(F26:M26) -> 0
A27: 20 | B27: 622 | C27: Educational Media Program | E27: 0
A28: 21 | B28: 623 | C28: Instruction-Related Technology Program | E28: 0
A29: 22 | B29: 624 | C29: Books and Periodicals | E29: 0
A30: 23 | B30: 631 | C30: Board of Education Program | E30: 0
A31: 24 | B31: 632 | C31: District Administration Program | E31: 0
A32: 25
A33: 26 | B33: 641 | C33: School Administration Program | E33: =SUM(F33:M33) -> 0
A34: 27
A35: 28 | B35: 651 | C35: Business Operation Program | E35: =SUM(F35:M35) -> 0
A36: 29 | B36: 655 | C36: Central Service Program | E36: =SUM(F36:M36) -> 0
A37: 30 | B37: 656 | C37: Administrative Technology Services Prog | E37: 0
A38: 31 | B38: 661 | C38: Buildings-Care Program (Custodial) | E38: 0
A39: 32 | B39: 663 | C39: Maintenance - Non Student Occupied | E39: 0
A40: 33 | B40: 664 | C40: Maintenance - Buildings and Equipment | E40: 0
A41: 34 | B41: 665 | C41: Maintenance - Grounds | E41: 0
A42: 35 | B42: 667 | C42: Security Program | E42: 0
A43: 36
A44: 37 | B44: 681 | C44: Pupil - To School Trans. Program | E44: =SUM(F44:M44) -> 0
A45: 38 | B45: 682 | C45: Pupil - Activity Trans. Program | E45: =SUM(F45:M45) -> 0
A46: 39 | B46: 683 | C46: General Transportation Program | E46: =SUM(F46:M46) -> 0
A48: =CELL("filename",A48) -> C:\Users\teacher\Desktop\[KSD 414 2025-Expenditures.xlsm]257
C49: Subtotal (carried over to page b) | D49: =SUM(D23:D47) -> 0 | E49: =SUM(E23:E47) -> 0 | F49: 0 | G49: 0 | H49: 0 | I49: 0 | J49: 0 | K49: 0 | L49: 0 | M49: 0
A51: End of Sheet

Sheet 257b
E1: BUDGET | M1: Page 32
E2: EXPENDITURES | M2: IDEA Part B (611 SCHOOL AGE 3-21)
E3: July 1, 2024 - June 30, 2025 | M3: FUND NO: 257
A4: NOTE: Round each entry to the nearest dollar amount.
C5: EXPENDITURES | D5: Prior Year | E5: Proposed | F5: 100 | G5: 200 | H5: 300 | I5: 400 | J5: 500 | K5: 600 | L5: 700 | M5: 800
H6: Purchased | I6: Supplies | J6: Capital | K6: Debt | L6: Insurance-
A7: Line | B7: Code | C7: Functions/Programs | D7: Budget | E7: Budget | F7: Salaries | G7: Benefits | H7: Services | I7: Materials | J7: Objects | K7: Retirement | L7: Judgment | M7: Transfers
A8: 40 | B8: 691 | C8: Other Support Services Program | E8: =SUM(F8:M8) -> 0
A9: 41
A10: 42 | B10: 600 | C10: TOTAL SUPPORT SERVICES | D10: =+D8+'257'!D49 -> 0 | E10: =+E8+'257'!E49 -> 0 | F10: =+F8+'257'!F49 -> 0 | G10: =+G8+'257'!G49 -> 0 | H10: =+H8+'257'!H49 -> 0 | I10: =+I8+'257'!I49 -> 0 | J10: =+J8+'257'!J49 -> 0 | K10: =+K8+'257'!K49 -> 0 | L10: =+L8+'257'!L49 -> 0 | M10: =+M8+'257'!M49 -> 0
A11: 43
A12: 44 | B12: 710 | C12: Child Nutrition Program | E12: =SUM(F12:M12) -> 0
A13: 45 | B13: 720 | C13: Community Services Program | E13: =SUM(F13:M13) -> 0
A14: 46 | B14: 730 | C14: Enterprise Operations | E14: =SUM(F14:M14) -> 0
A15: 47 | B15: 740 | C15: Student Activity Program | E15: =SUM(F15:M15) -> 0
A16: 48
A17: 49 | B17: 700 | C17: TOTAL NON-INSTRUCTION | D17: =SUM(D12:D15) -> 0 | E17: =SUM(E12:E15) -> 0 | F17: 0 | G17: 0 | H17: 0 | I17: 0 | J17: 0 | K17: 0 | L17: 0 | M17: 0
A18: 50
A19: 51 | B19: 810 | C19: Capital Assets | E19: =SUM(F19:M19) -> 0
A20: 52 | B20: 811 | C20: Capital Assets - NonStudent Occupied | E20: =SUM(F20:M20) -> 0
A21: 53
A22: 54 | B22: 800 | C22: TOTAL CAPITAL ASSET PROGRAMS | D22: =SUM(D19:D20) -> 0 | E22: =SUM(E19:E20) -> 0 | F22: =SUM(F19:F20) -> 0 | G22: =SUM(G19:G20) -> 0 | H22: 0 | I22: 0 | J22: 0 | K22: 0 | L22: 0 | M22: 0
A23: 55
A24: 56 | B24: 911 | C24: Debt Services Program - Principal | E24: =SUM(F24:M24) -> 0
A25: 57 | B25: 912 | C25: Debt Services Program - Interest | E25: =SUM(F25:M25) -> 0
A26: 58 | B26: 913 | C26: Debt Services Program - Refunded Debt | E26: =SUM(F26:M26) -> 0
A27: 59 | B27: 920 | C27: Fund Transfers Out | E27: =SUM(F27:M27) -> 0
A28: 60
A29: 61 | B29: 900 | C29: TOTAL OTHER SERVICES | D29: =SUM(D24:D28) -> 0 | E29: =SUM(E24:E28) -> 0 | F29: =SUM(F24:F28) -> 0 | G29: =SUM(G24:G28) -> 0 | H29: 0 | I29: 0 | J29: 0 | K29: 0 | L29: 0 | M29: 0
A30: 62
A31: 63 | C31: TOTAL EXPENDITURES
A32: 64 | C32: (Lines 14+42+49+54+61) | D32: 374009 | E32: ='257'!E21 -> 380285 | F32: =SUM(F29,F22,F17,F10,'257'!F21) -> 201638 | G32: =SUM(G29,G22,G17,G10,'257'!G21) -> 125113 | H32: =SUM(H29,H22,H17,H10,'257'!H21) -> 49454 | I32: =SUM(I29,I22,I17,I10,'257'!I21) -> 4080 | J32: =SUM(J29,J22,J17,J10,'257'!J21) -> 0 | K32: =SUM(K29,K22,K17,K10,'257'!K21) -> 0 | L32: =SUM(L29,L22,L17,L10,'257'!L21) -> 0 | M32: =SUM(M29,M22,M17,M10,'257'!M21) -> 0
A33: 65
A34: 66
A35: 67
A36: 68
A37: 69
A38: 70
A39: 71
A40: 72
A41: 73 | C41: BUDGET SUMMARY
A42: 74
A43: 75 | C43: Beginning Fund Balance | D43: -9800 | F43: BUDGET SUMMARY:
A44: 76 | C44: Revenues + Transfers In | D44: -364209 | E44: -380285
A45: 77 | C45: TOTAL REVENUE (lines 74 + 75) | D45: -374009 | E45: =SUM(E44) -> -380285 | F45: The total on line 77 must equal the total on line 81.
A46: 78
A47: 79 | C47: Total Expenditures | D47: 374009 | E47: =E32 -> 380285
A48: 80 | C48: Unappropriated Balance
A49: 81 | C49: TOTAL EXPD + UNAPPROPRIATED BAL (lines 78 + 79) | D49: 374009 | E49: =SUM(E47:E48) -> 380285
A50: =CELL("FILENAME",A2) -> C:\Users\teacher\Desktop\[KSD 414 2025-Expenditures.xlsm]257b

Sheet 258
E1: BUDGET | M1: Page 33
E2: EXPENDITURES | M2: IDEA Part B (619 PRE-SCHOOL AGE 3-5)
E3: July 1, 2024 - June 30, 2025 | M3: FUND NO: 258
A4: NOTE: Round each entry to the nearest dollar amount.
C5: EXPENDITURES | D5: Prior Year | E5: Proposed | F5: 100 | G5: 200 | H5: 300 | I5: 400 | J5: 500 | K5: 600 | L5: 700 | M5: 800
H6: Purchased | I6: Supplies | J6: Capital | K6: Debt | L6: Insurance-
A7: Line | B7: Code | C7: Functions/Programs | D7: Budget | E7: Budget | F7: Salaries | G7: Benefits | H7: Services | I7: Materials | J7: Objects | K7: Retirement | L7: Judgment | M7: Transfers
A8: 1 | B8: 512 | C8: Elementary School Program | D8: 0 | E8: =SUM(F8:M8) -> 0
A9: 2 | B9: 515 | C9: Secondary School Program | D9: 0 | E9: =SUM(F9:M9) -> 0
A10: 3 | B10: 517 | C10: Alternative School Program | D10: 0 | E10: 0
A11: 4 | B11: 519 | C11: Vocational-Technical Program | D11: 0 | E11: 0
A12: 5 | B12: 521 | C12: Special Education Program | D12: 0 | E12: 0
A13: 6 | B13: 522 | C13: Special Education Preschool Program | D13: 29175 | E13: =SUM(F13:M13) -> 32946 | F13: 24613 | G13: 7103 | I13: 1230
A14: 7 | B14: 524 | C14: Gifted & Talented Program | D14: 0 | E14: 0
A15: 8 | B15: 531 | C15: Interscholastic Program | D15: 0 | E15: 0
A16: 9 | B16: 532 | C16: School Activity Program | D16: 0 | E16: 0
A17: 10 | B17: 541 | C17: Summer School Program | D17: 0 | E17: 0
A18: 11 | B18: 542 | C18: Adult School Program | D18: 0 | E18: 0
A19: 12 | B19: 546 | C19: Detention Center Program | D19: 0 | E19: 0
A20: 13
A21: 14 | B21: 500 | C21: TOTAL INSTRUCTION | D21: 29175 | E21: =SUM(E8:E19) -> 32946 | F21: =SUM(F8:F19) -> 24613 | G21: 7103 | H21: 0 | I21: 1230 | J21: 0 | K21: 0 | L21: 0 | M21: 0
A22: 15
A23: 16 | B23: 611 | C23: Attendance-Guidance-Health Program | E23: =SUM(F23:M23) -> 0
A24: 17 | B24: 616 | C24: Special Education Support Services Prog | E24: =SUM(F24:M24) -> 0
A25: 18
A26: 19 | B26: 621 | C26: Instruction Improvement Program | E26: =SUM(F26:M26) -> 0
A27: 20 | B27: 622 | C27: Educational Media Program | E27: 0
A28: 21 | B28: 623 | C28: Instruction-Related Technology Program | E28: 0
A29: 22 | B29: 624 | C29: Books and Periodicals | E29: 0
A30: 23 | B30: 631 | C30: Board of Education Program | E30: 0
A31: 24 | B31: 632 | C31: District Administration Program | E31: 0
A32: 25
A33: 26 | B33: 641 | C33: School Administration Program | E33: =SUM(F33:M33) -> 0
A34: 27
A35: 28 | B35: 651 | C35: Business Operation Program | E35: =SUM(F35:M35) -> 0
A36: 29 | B36: 655 | C36: Central Service Program | E36: =SUM(F36:M36) -> 0
A37: 30 | B37: 656 | C37: Administrative Technology Services Prog | E37: 0
A38: 31 | B38: 661 | C38: Buildings-Care Program (Custodial) | E38: 0
A39: 32 | B39: 663 | C39: Maintenance - Non Student Occupied | E39: 0
A40: 33 | B40: 664 | C40: Maintenance - Buildings and Equipment | E40: 0
A41: 34 | B41: 665 | C41: Maintenance - Grounds | E41: 0
A42: 35 | B42: 667 | C42: Security Program | E42: 0
A43: 36
A44: 37 | B44: 681 | C44: Pupil - To School Trans. Program | E44: =SUM(F44:M44) -> 0
A45: 38 | B45: 682 | C45: Pupil - Activity Trans. Program | E45: =SUM(F45:M45) -> 0
A46: 39 | B46: 683 | C46: General Transportation Program | E46: =SUM(F46:M46) -> 0
A48: =CELL("filename",A48) -> C:\Users\teacher\Desktop\[KSD 414 2025-Expenditures.xlsm]258
C49: Subtotal (carried over to page b) | D49: =SUM(D23:D47) -> 0 | E49: =SUM(E23:E47) -> 0 | F49: 0 | G49: 0 | H49: 0 | I49: 0 | J49: 0 | K49: 0 | L49: 0 | M49: 0
A51: End of Sheet

Sheet 258b
E1: BUDGET | M1: Page 34
E2: EXPENDITURES | M2: IDEA Part B (619 PRE-SCHOOL AGE 3-5)
E3: July 1, 2024 - June 30, 2025 | M3: FUND NO: 258
A4: NOTE: Round each entry to the nearest dollar amount.
C5: EXPENDITURES | D5: Prior Year | E5: Proposed | F5: 100 | G5: 200 | H5: 300 | I5: 400 | J5: 500 | K5: 600 | L5: 700 | M5: 800
H6: Purchased | I6: Supplies | J6: Capital | K6: Debt | L6: Insurance-
A7: Line | B7: Code | C7: Functions/Programs | D7: Budget | E7: Budget | F7: Salaries | G7: Benefits | H7: Services | I7: Materials | J7: Objects | K7: Retirement | L7: Judgment | M7: Transfers
A8: 40 | B8: 691 | C8: Other Support Services Program | E8: =SUM(F8:M8) -> 0
A9: 41
A10: 42 | B10: 600 | C10: TOTAL SUPPORT SERVICES | D10: =+D8+'258'!D49 -> 0 | E10: =+E8+'258'!E49 -> 0 | F10: =+F8+'258'!F49 -> 0 | G10: =+G8+'258'!G49 -> 0 | H10: =+H8+'258'!H49 -> 0 | I10: =+I8+'258'!I49 -> 0 | J10: =+J8+'258'!J49 -> 0 | K10: =+K8+'258'!K49 -> 0 | L10: =+L8+'258'!L49 -> 0 | M10: =+M8+'258'!M49 -> 0
A11: 43
A12: 44 | B12: 710 | C12: Child Nutrition Program | E12: =SUM(F12:M12) -> 0
A13: 45 | B13: 720 | C13: Community Services Program | E13: =SUM(F13:M13) -> 0
A14: 46 | B14: 730 | C14: Enterprise Operations | E14: =SUM(F14:M14) -> 0
A15: 47 | B15: 740 | C15: Student Activity Program | E15: =SUM(F15:M15) -> 0
A16: 48
A17: 49 | B17: 700 | C17: TOTAL NON-INSTRUCTION | D17: =SUM(D12:D15) -> 0 | E17: =SUM(E12:E15) -> 0 | F17: 0 | G17: 0 | H17: 0 | I17: 0 | J17: 0 | K17: 0 | L17: 0 | M17: 0
A18: 50
A19: 51 | B19: 810 | C19: Capital Assets | E19: =SUM(F19:M19) -> 0
A20: 52 | B20: 811 | C20: Capital Assets - NonStudent Occupied | E20: =SUM(F20:M20) -> 0
A21: 53
A22: 54 | B22: 800 | C22: TOTAL CAPITAL ASSET PROGRAMS | D22: =SUM(D19:D20) -> 0 | E22: =SUM(E19:E20) -> 0 | F22: =SUM(F19:F20) -> 0 | G22: =SUM(G19:G20) -> 0 | H22: 0 | I22: 0 | J22: 0 | K22: 0 | L22: 0 | M22: 0
A23: 55
A24: 56 | B24: 911 | C24: Debt Services Program - Principal | E24: =SUM(F24:M24) -> 0
A25: 57 | B25: 912 | C25: Debt Services Program - Interest | E25: =SUM(F25:M25) -> 0
A26: 58 | B26: 913 | C26: Debt Services Program - Refunded Debt | E26: =SUM(F26:M26) -> 0
A27: 59 | B27: 920 | C27: Fund Transfers Out | E27: =SUM(F27:M27) -> 0
A28: 60
A29: 61 | B29: 900 | C29: TOTAL OTHER SERVICES | D29: =SUM(D24:D28) -> 0 | E29: =SUM(E24:E28) -> 0 | F29: =SUM(F24:F28) -> 0 | G29: =SUM(G24:G28) -> 0 | H29: 0 | I29: 0 | J29: 0 | K29: 0 | L29: 0 | M29: 0
A30: 62
A31: 63 | C31: TOTAL EXPENDITURES
A32: 64 | C32: (Lines 14+42+49+54+61) | D32: 29175 | E32: ='258'!E21 -> 32946 | F32: =SUM(F29,F22,F17,F10,'258'!F21) -> 24613 | G32: =SUM(G29,G22,G17,G10,'258'!G21) -> 7103 | H32: =SUM(H29,H22,H17,H10,'258'!H21) -> 0 | I32: =SUM(I29,I22,I17,I10,'258'!I21) -> 1230 | J32: =SUM(J29,J22,J17,J10,'258'!J21) -> 0 | K32: =SUM(K29,K22,K17,K10,'258'!K21) -> 0 | L32: =SUM(L29,L22,L17,L10,'258'!L21) -> 0 | M32: =SUM(M29,M22,M17,M10,'258'!M21) -> 0
A33: 65
A34: 66
A35: 67
A36: 68
A37: 69
A38: 70
A39: 71
A40: 72
A41: 73 | C41: BUDGET SUMMARY
A42: 74
A43: 75 | C43: Beginning Fund Balance | F43: BUDGET SUMMARY:
A44: 76 | C44: Revenues + Transfers In | D44: -29175 | E44: -32946
A45: 77 | C45: TOTAL REVENUE (lines 74 + 75) | D45: -29175 | E45: =SUM(E44) -> -32946 | F45: The total on line 77 must equal the total on line 81.
A46: 78
A47: 79 | C47: Total Expenditures | D47: 29175 | E47: =E32 -> 32946
A48: 80 | C48: Unappropriated Balance
A49: 81 | C49: TOTAL EXPD + UNAPPROPRIATED BAL (lines 78 + 79) | D49: 29175 | E49: =SUM(E47:E48) -> 32946
A50: =CELL("FILENAME",A2) -> C:\Users\teacher\Desktop\[KSD 414 2025-Expenditures.xlsm]258b

Sheet 259
E1: BUDGET | M1: Page 33
E2: EXPENDITURES | M2: ARPA IDEA Part B
E3: July 1, 2024 - June 30, 2025 | M3: FUND NO: 259
A4: NOTE: Round each entry to the nearest dollar amount.
C5: EXPENDITURES | D5: Prior Year | E5: Proposed | F5: 100 | G5: 200 | H5: 300 | I5: 400 | J5: 500 | K5: 600 | L5: 700 | M5: 800
H6: Purchased | I6: Supplies | J6: Capital | K6: Debt | L6: Insurance-
A7: Line | B7: Code | C7: Functions/Programs | D7: Budget | E7: Budget | F7: Salaries | G7: Benefits | H7: Services | I7: Materials | J7: Objects | K7: Retirement | L7: Judgment | M7: Transfers
A8: 1 | B8: 512 | C8: Elementary School Program | D8: 0 | E8: =SUM(F8:M8) -> 0
A9: 2 | B9: 515 | C9: Secondary School Program | D9: 0 | E9: =SUM(F9:M9) -> 0
A10: 3 | B10: 517 | C10: Alternative School Program | D10: 0 | E10: 0
A11: 4 | B11: 519 | C11: Vocational-Technical Program | D11: 0 | E11: 0
A12: 5 | B12: 521 | C12: Special Education Program | D12: 40706 | E12: 0
A13: 6 | B13: 522 | C13: Special Education Preschool Program | D13: 0 | E13: 0
A14: 7 | B14: 524 | C14: Gifted & Talented Program | D14: 0 | E14: 0
A15: 8 | B15: 531 | C15: Interscholastic Program | D15: 0 | E15: 0
A16: 9 | B16: 532 | C16: School Activity Program | D16: 0 | E16: 0
A17: 10 | B17: 541 | C17: Summer School Program | D17: 0 | E17: 0
A18: 11 | B18: 542 | C18: Adult School Program | D18: 0 | E18: 0
A19: 12 | B19: 546 | C19: Detention Center Program | D19: 0 | E19: 0
A20: 13
A21: 14 | B21: 500 | C21: TOTAL INSTRUCTION | D21: 40706 | E21: =SUM(E8:E19) -> 0 | F21: 0 | G21: 0 | H21: 0 | I21: 0 | J21: 0 | K21: 0 | L21: 0 | M21: 0
A22: 15
A23: 16 | B23: 611 | C23: Attendance-Guidance-Health Program | E23: =SUM(F23:M23) -> 0
A24: 17 | B24: 616 | C24: Special Education Support Services Prog | E24: =SUM(F24:M24) -> 0
A25: 18
A26: 19 | B26: 621 | C26: Instruction Improvement Program | E26: =SUM(F26:M26) -> 0
A27: 20 | B27: 622 | C27: Educational Media Program | E27: 0
A28: 21 | B28: 623 | C28: Instruction-Related Technology Program | E28: 0
A29: 22 | B29: 624 | C29: Books and Periodicals | E29: 0
A30: 23 | B30: 631 | C30: Board of Education Program | E30: 0
A31: 24 | B31: 632 | C31: District Administration Program | E31: 0
A32: 25
A33: 26 | B33: 641 | C33: School Administration Program | E33: =SUM(F33:M33) -> 0
A34: 27
A35: 28 | B35: 651 | C35: Business Operation Program | E35: =SUM(F35:M35) -> 0
A36: 29 | B36: 655 | C36: Central Service Program | E36: =SUM(F36:M36) -> 0
A37: 30 | B37: 656 | C37: Administrative Technology Services Prog | E37: 0
A38: 31 | B38: 661 | C38: Buildings-Care Program (Custodial) | E38: 0
A39: 32 | B39: 663 | C39: Maintenance - Non Student Occupied | E39: 0
A40: 33 | B40: 664 | C40: Maintenance - Buildings and Equipment | E40: 0
A41: 34 | B41: 665 | C41: Maintenance - Grounds | E41: 0
A42: 35 | B42: 667 | C42: Security Program | E42: 0
A43: 36
A44: 37 | B44: 681 | C44: Pupil - To School Trans. Program | E44: =SUM(F44:M44) -> 0
A45: 38 | B45: 682 | C45: Pupil - Activity Trans. Program | E45: =SUM(F45:M45) -> 0
A46: 39 | B46: 683 | C46: General Transportation Program | E46: =SUM(F46:M46) -> 0
A48: =CELL("filename",A48) -> C:\Users\teacher\Desktop\[KSD 414 2025-Expenditures.xlsm]259
C49: Subtotal (carried over to page b) | D49: 40706 | E49: =SUM(E23:E47) -> 0 | F49: 0 | G49: 0 | H49: 0 | I49: 0 | J49: 0 | K49: 0 | L49: 0 | M49: 0
A51: End of Sheet

Sheet 259b
E1: BUDGET | M1: Page 34
E2: EXPENDITURES | M2: ARPA IDEA Part B
E3: July 1, 2024 - June 30, 2025 | M3: FUND NO: 259
A4: NOTE: Round each entry to the nearest dollar amount.
C5: EXPENDITURES | D5: Prior Year | E5: Proposed | F5: 100 | G5: 200 | H5: 300 | I5: 400 | J5: 500 | K5: 600 | L5: 700 | M5: 800
H6: Purchased | I6: Supplies | J6: Capital | K6: Debt | L6: Insurance-
A7: Line | B7: Code | C7: Functions/Programs | D7: Budget | E7: Budget | F7: Salaries | G7: Benefits | H7: Services | I7: Materials | J7: Objects | K7: Retirement | L7: Judgment | M7: Transfers
A8: 40 | B8: 691 | C8: Other Support Services Program | E8: =SUM(F8:M8) -> 0
A9: 41
A10: 42 | B10: 600 | C10: TOTAL SUPPORT SERVICES | D10: =+D8+'258'!D49 -> 0 | E10: =+E8+'258'!E49 -> 0 | F10: =+F8+'258'!F49 -> 0 | G10: =+G8+'258'!G49 -> 0 | H10: =+H8+'258'!H49 -> 0 | I10: =+I8+'258'!I49 -> 0 | J10: =+J8+'258'!J49 -> 0 | K10: =+K8+'258'!K49 -> 0 | L10: =+L8+'258'!L49 -> 0 | M10: =+M8+'258'!M49 -> 0
A11: 43
A12: 44 | B12: 710 | C12: Child Nutrition Program | E12: =SUM(F12:M12) -> 0
A13: 45 | B13: 720 | C13: Community Services Program | E13: =SUM(F13:M13) -> 0
A14: 46 | B14: 730 | C14: Enterprise Operations | E14: =SUM(F14:M14) -> 0
A15: 47 | B15: 740 | C15: Student Activity Program | E15: =SUM(F15:M15) -> 0
A16: 48
A17: 49 | B17: 700 | C17: TOTAL NON-INSTRUCTION | D17: =SUM(D12:D15) -> 0 | E17: =SUM(E12:E15) -> 0 | F17: 0 | G17: 0 | H17: 0 | I17: 0 | J17: 0 | K17: 0 | L17: 0 | M17: 0
A18: 50
A19: 51 | B19: 810 | C19: Capital Assets | E19: =SUM(F19:M19) -> 0
A20: 52 | B20: 811 | C20: Capital Assets - NonStudent Occupied | E20: =SUM(F20:M20) -> 0
A21: 53
A22: 54 | B22: 800 | C22: TOTAL CAPITAL ASSET PROGRAMS | D22: =SUM(D19:D20) -> 0 | E22: =SUM(E19:E20) -> 0 | F22: =SUM(F19:F20) -> 0 | G22: =SUM(G19:G20) -> 0 | H22: 0 | I22: 0 | J22: 0 | K22: 0 | L22: 0 | M22: 0
A23: 55
A24: 56 | B24: 911 | C24: Debt Services Program - Principal | E24: =SUM(F24:M24) -> 0
A25: 57 | B25: 912 | C25: Debt Services Program - Interest | E25: =SUM(F25:M25) -> 0
A26: 58 | B26: 913 | C26: Debt Services Program - Refunded Debt | E26: =SUM(F26:M26) -> 0
A27: 59 | B27: 920 | C27: Fund Transfers Out | E27: =SUM(F27:M27) -> 0
A28: 60
A29: 61 | B29: 900 | C29: TOTAL OTHER SERVICES | D29: =SUM(D24:D28) -> 0 | E29: =SUM(E24:E28) -> 0 | F29: =SUM(F24:F28) -> 0 | G29: =SUM(G24:G28) -> 0 | H29: 0 | I29: 0 | J29: 0 | K29: 0 | L29: 0 | M29: 0
A30: 62
A31: 63 | C31: TOTAL EXPENDITURES
A32: 64 | C32: (Lines 14+42+49+54+61) | D32: 40706 | E32: 0 | F32: 0 | G32: 0 | H32: =SUM(H29,H22,H17,H10,'258'!H21) -> 0 | I32: 0 | J32: =SUM(J29,J22,J17,J10,'258'!J21) -> 0 | K32: =SUM(K29,K22,K17,K10,'258'!K21) -> 0 | L32: =SUM(L29,L22,L17,L10,'258'!L21) -> 0 | M32: =SUM(M29,M22,M17,M10,'258'!M21) -> 0
A33: 65
A34: 66
A35: 67
A36: 68
A37: 69
A38: 70
A39: 71
A40: 72
A41: 73 | C41: BUDGET SUMMARY
A42: 74
A43: 75 | C43: Beginning Fund Balance | D43: 0 | E43: 0 | F43: BUDGET SUMMARY:
A44: 76 | C44: Revenues + Transfers In | D44: -40706 | E44: 0
A45: 77 | C45: TOTAL REVENUE (lines 74 + 75) | D45: -40706 | E45: =SUM(E43:E44) -> 0 | F45: The total on line 77 must equal the total on line 81.
A46: 78
A47: 79 | C47: Total Expenditures | D47: 40706 | E47: =E32 -> 0
A48: 80 | C48: Unappropriated Balance
A49: 81 | C49: TOTAL EXPD + UNAPPROPRIATED BAL (lines 78 + 79) | D49: 40706 | E49: =SUM(E47:E48) -> 0
A50: =CELL("FILENAME",A2) -> C:\Users\teacher\Desktop\[KSD 414 2025-Expenditures.xlsm]259b

Sheet 261
E1: BUDGET | M1: Page 37
E2: EXPENDITURES | M2: Title IV-A, ESSA - STUDENT SUPPORT & ACADEMIC ENRICHMENT
E3: July 1, 2024 - June 30, 2025 | M3: FUND NO: 261
A4: NOTE: Round each entry to the nearest dollar amount.
C5: EXPENDITURES | D5: Prior Year | E5: Proposed | F5: 100 | G5: 200 | H5: 300 | I5: 400 | J5: 500 | K5: 600 | L5: 700 | M5: 800
H6: Purchased | I6: Supplies | J6: Capital | K6: Debt | L6: Insurance-
A7: Line | B7: Code | C7: Functions/Programs | D7: Budget | E7: Budget | F7: Salaries | G7: Benefits | H7: Services | I7: Materials | J7: Objects | K7: Retirement | L7: Judgment | M7: Transfers
A8: 1 | B8: 512 | C8: Elementary School Program | E8: =SUM(F8:M8) -> 0
A9: 2 | B9: 515 | C9: Secondary School Program | E9: =SUM(F9:M9) -> 0
A10: 3 | B10: 517 | C10: Alternative School Program | E10: 0
A11: 4 | B11: 519 | C11: Vocational-Technical Program | E11: 0
A12: 5 | B12: 521 | C12: Special Education Program | E12: 0
A13: 6 | B13: 522 | C13: Special Education Preschool Program | E13: 0
A14: 7 | B14: 524 | C14: Gifted & Talented Program | E14: 0
A15: 8 | B15: 531 | C15: Interscholastic Program | E15: 0
A16: 9 | B16: 532 | C16: School Activity Program | E16: 0
A17: 10 | B17: 541 | C17: Summer School Program | E17: 0
A18: 11 | B18: 542 | C18: Adult School Program | E18: 0
A19: 12 | B19: 546 | C19: Detention Center Program | E19: 0
A20: 13
A21: 14 | B21: 500 | C21: TOTAL INSTRUCTION | D21: =SUM(D8:D19) -> 0 | E21: 0 | F21: 0 | G21: 0 | H21: 0 | I21: 0 | J21: 0 | K21: 0 | L21: 0 | M21: 0
A22: 15
A23: 16 | B23: 611 | C23: Attendance-Guidance-Health Program | E23: =SUM(F23:M23) -> 0
A24: 17 | B24: 616 | C24: Special Education Support Services Prog | E24: =SUM(F24:M24) -> 0
A25: 18
A26: 19 | B26: 621 | C26: Instruction Improvement Program | D26: 17430 | E26: =SUM(F26:M26) -> 16907 | F26: 13124 | G26: 3508 | I26: 275
A27: 20 | B27: 622 | C27: Educational Media Program | E27: =SUM(F27:M27) -> 0
A28: 21 | B28: 623 | C28: Instruction-Related Technology Program | E28: 0
A29: 22 | B29: 624 | C29: Books and Periodicals | E29: 0
A30: 23 | B30: 631 | C30: Board of Education Program | E30: 0
A31: 24 | B31: 632 | C31: District Administration Program | E31: 0
A32: 25
A33: 26 | B33: 641 | C33: School Administration Program | E33: =SUM(F33:M33) -> 0
A34: 27
A35: 28 | B35: 651 | C35: Business Operation Program | E35: =SUM(F35:M35) -> 0
A36: 29 | B36: 655 | C36: Central Service Program | E36: =SUM(F36:M36) -> 0
A37: 30 | B37: 656 | C37: Administrative Technology Services Prog | E37: 0
A38: 31 | B38: 661 | C38: Buildings-Care Program (Custodial) | E38: 0
A39: 32 | B39: 663 | C39: Maintenance - Non Student Occupied | E39: 0
A40: 33 | B40: 664 | C40: Maintenance - Buildings and Equipment | E40: 0
A41: 34 | B41: 665 | C41: Maintenance - Grounds | E41: 0
A42: 35 | B42: 667 | C42: Security Program | E42: 0
A43: 36
A44: 37 | B44: 681 | C44: Pupil - To School Trans. Program | E44: =SUM(F44:M44) -> 0
A45: 38 | B45: 682 | C45: Pupil - Activity Trans. Program | E45: =SUM(F45:M45) -> 0
A46: 39 | B46: 683 | C46: General Transportation Program | E46: =SUM(F46:M46) -> 0
A48: =CELL("filename",A48) -> C:\Users\teacher\Desktop\[KSD 414 2025-Expenditures.xlsm]261
C49: Subtotal (carried over to page b) | D49: 17430 | E49: =SUM(F49:M49) -> 16907 | F49: =SUM(F26:F48) -> 13124 | G49: =SUM(G26:G48) -> 3508 | H49: =SUM(H23:H47) -> 0 | I49: =SUM(I23:I46) -> 275 | J49: 0 | K49: 0 | L49: 0 | M49: 0
A51: End of Sheet

Sheet 261b
E1: BUDGET | M1: Page 38
E2: EXPENDITURES | M2: Title IV-A, ESSA - STUDENT SUPPORT & ACADEMIC ENRICHMENT
E3: July 1, 2024 - June 30, 2025 | M3: FUND NO: 261
A4: NOTE: Round each entry to the nearest dollar amount.
C5: EXPENDITURES | D5: Prior Year | E5: Proposed | F5: 100 | G5: 200 | H5: 300 | I5: 400 | J5: 500 | K5: 600 | L5: 700 | M5: 800
H6: Purchased | I6: Supplies | J6: Capital | K6: Debt | L6: Insurance-
A7: Line | B7: Code | C7: Functions/Programs | D7: Budget | E7: Budget | F7: Salaries | G7: Benefits | H7: Services | I7: Materials | J7: Objects | K7: Retirement | L7: Judgment | M7: Transfers
A8: 40 | B8: 691 | C8: Other Support Services Program | E8: =SUM(F8:M8) -> 0
A9: 41
A10: 42 | B10: 600 | C10: TOTAL SUPPORT SERVICES | D10: 17430 | E10: =+E8+'261'!E49 -> 16907 | F10: =+F8+'261'!F49 -> 13124 | G10: =+G8+'261'!G49 -> 3508 | H10: =+H8+'261'!H49 -> 0 | I10: =+I8+'261'!I49 -> 275 | J10: =+J8+'261'!J49 -> 0 | K10: =+K8+'261'!K49 -> 0 | L10: =+L8+'261'!L49 -> 0 | M10: =+M8+'261'!M49 -> 0
A11: 43
A12: 44 | B12: 710 | C12: Child Nutrition Program | D12: 0 | E12: =SUM(F12:M12) -> 0
A13: 45 | B13: 720 | C13: Community Services Program | D13: 0 | E13: =SUM(F13:M13) -> 0
A14: 46 | B14: 730 | C14: Enterprise Operations | D14: 0 | E14: =SUM(F14:M14) -> 0
A15: 47 | B15: 740 | C15: Student Activity Program | D15: 0 | E15: =SUM(F15:M15) -> 0
A16: 48
A17: 49 | B17: 700 | C17: TOTAL NON-INSTRUCTION | D17: 0 | E17: =SUM(E12:E15) -> 0 | F17: 0 | G17: 0 | H17: 0 | I17: 0 | J17: 0 | K17: 0 | L17: 0 | M17: 0
A18: 50
A19: 51 | B19: 810 | C19: Capital Assets | D19: 0 | E19: =SUM(F19:M19) -> 0
A20: 52 | B20: 811 | C20: Capital Assets - NonStudent Occupied | D20: 0 | E20: =SUM(F20:M20) -> 0
A21: 53
A22: 54 | B22: 800 | C22: TOTAL CAPITAL ASSET PROGRAMS | D22: 0 | E22: =SUM(E19:E20) -> 0 | F22: =SUM(F19:F20) -> 0 | G22: =SUM(G19:G20) -> 0 | H22: 0 | I22: 0 | J22: 0 | K22: 0 | L22: 0 | M22: 0
A23: 55
A24: 56 | B24: 911 | C24: Debt Services Program - Principal | D24: 0 | E24: =SUM(F24:M24) -> 0
A25: 57 | B25: 912 | C25: Debt Services Program - Interest | D25: 0 | E25: =SUM(F25:M25) -> 0
A26: 58 | B26: 913 | C26: Debt Services Program - Refunded Debt | D26: 0 | E26: =SUM(F26:M26) -> 0
A27: 59 | B27: 920 | C27: Fund Transfers Out | D27: 0 | E27: =SUM(F27:M27) -> 0
A28: 60
A29: 61 | B29: 900 | C29: TOTAL OTHER SERVICES | D29: 0 | E29: =SUM(E24:E28) -> 0 | F29: =SUM(F24:F28) -> 0 | G29: =SUM(G24:G28) -> 0 | H29: 0 | I29: 0 | J29: 0 | K29: 0 | L29: 0 | M29: 0
A30: 62
A31: 63 | C31: TOTAL EXPENDITURES
A32: 64 | C32: (Lines 14+42+49+54+61) | D32: 17430 | E32: ='261'!E49 -> 16907 | F32: =SUM(F29,F22,F17,F10,'261'!F21) -> 13124 | G32: =SUM(G29,G22,G17,G10,'261'!G21) -> 3508 | H32: =SUM(H29,H22,H17,H10,'261'!H21) -> 0 | I32: =SUM(I29,I22,I17,I10,'261'!I21) -> 275 | J32: =SUM(J29,J22,J17,J10,'261'!J21) -> 0 | K32: =SUM(K29,K22,K17,K10,'261'!K21) -> 0 | L32: =SUM(L29,L22,L17,L10,'261'!L21) -> 0 | M32: =SUM(M29,M22,M17,M10,'261'!M21) -> 0
A33: 65
A34: 66
A35: 67
A36: 68
A37: 69
A38: 70
A39: 71
A40: 72
A41: 73 | C41: BUDGET SUMMARY
A42: 74
A43: 75 | C43: Beginning Fund Balance | F43: BUDGET SUMMARY:
A44: 76 | C44: Revenues + Transfers In | D44: -17430 | E44: -16907
A45: 77 | C45: TOTAL REVENUE (lines 74 + 75) | D45: -17430 | E45: =SUM(E44) -> -16907 | F45: The total on line 77 must equal the total on line 81.
A46: 78
A47: 79 | C47: Total Expenditures | D47: 17430 | E47: =E32 -> 16907
A48: 80 | C48: Unappropriated Balance
A49: 81 | C49: TOTAL EXPD + UNAPPROPRIATED BAL (lines 78 + 79) | D49: 17430 | E49: =SUM(E47:E48) -> 16907
A50: =CELL("FILENAME",A2) -> C:\Users\teacher\Desktop\[KSD 414 2025-Expenditures.xlsm]261b

Sheet 263
E1: BUDGET | M1: PAGE 41
E2: EXPENDITURES | M2: PERKINS V - CTE
E3: July 1, 2024 - June 30, 2025 | M3: FUND NO: 263
A4: NOTE: Round each entry to the nearest dollar amount.
C5: EXPENDITURES | D5: Prior Year | E5: Proposed | F5: 100 | G5: 200 | H5: 300 | I5: 400 | J5: 500 | K5: 600 | L5: 700 | M5: 800
H6: Purchased | I6: Supplies | J6: Capital | K6: Debt | L6: Insurance-
A7: Line | B7: Code | C7: Functions/Programs | D7: Budget | E7: Budget | F7: Salaries | G7: Benefits | H7: Services | I7: Materials | J7: Objects | K7: Retirement | L7: Judgment | M7: Transfers
A8: 1 | B8: 512 | C8: Elementary School Program | E8: =SUM(F8:M8) -> 0
A9: 2 | B9: 515 | C9: Secondary School Program | D9: 14895 | E9: =SUM(F9:M9) -> 19136 | F9: 2722 | H9: 8200 | I9: 8214
A10: 3 | B10: 517 | C10: Alternative School Program | E10: =SUM(F10:M10) -> 0
A11: 4 | B11: 519 | C11: Vocational-Technical Program | E11: 0
A12: 5 | B12: 521 | C12: Special Education Program | E12: 0
A13: 6 | B13: 522 | C13: Special Education Preschool Program | E13: 0
A14: 7 | B14: 524 | C14: Gifted & Talented Program | E14: 0
A15: 8 | B15: 531 | C15: Interscholastic Program | E15: 0
A16: 9 | B16: 532 | C16: School Activity Program | E16: 0
A17: 10 | B17: 541 | C17: Summer School Program | E17: 0
A18: 11 | B18: 542 | C18: Adult School Program | E18: 0
A19: 12 | B19: 546 | C19: Detention Center Program | E19: 0
A20: 13
A21: 14 | B21: 500 | C21: TOTAL INSTRUCTION | D21: 14895 | E21: =SUM(E8:E19) -> 19136 | F21: =SUM(F9:F20) -> 2722 | G21: =SUM(G8:G19) -> 0 | H21: =SUM(H8:H19) -> 8200 | I21: =SUM(I8:I19) -> 8214 | J21: 0 | K21: 0 | L21: 0 | M21: 0
A22: 15
A23: 16 | B23: 611 | C23: Attendance-Guidance-Health Program | E23: =SUM(F23:M23) -> 0
A24: 17 | B24: 616 | C24: Special Education Support Services Prog | E24: =SUM(F24:M24) -> 0
A25: 18
A26: 19 | B26: 621 | C26: Instruction Improvement Program | E26: =SUM(F26:M26) -> 0
A27: 20 | B27: 622 | C27: Educational Media Program | E27: 0
A28: 21 | B28: 623 | C28: Instruction-Related Technology Program | E28: 0
A29: 22 | B29: 624 | C29: Books and Periodicals | E29: 0
A30: 23 | B30: 631 | C30: Board of Education Program | E30: 0
A31: 24 | B31: 632 | C31: District Administration Program | E31: 0
A32: 25
A33: 26 | B33: 641 | C33: School Administration Program | E33: =SUM(F33:M33) -> 0
A34: 27
A35: 28 | B35: 651 | C35: Business Operation Program | E35: =SUM(F35:M35) -> 0
A36: 29 | B36: 655 | C36: Central Service Program | E36: =SUM(F36:M36) -> 0
A37: 30 | B37: 656 | C37: Administrative Technology Services Prog | E37: 0
A38: 31 | B38: 661 | C38: Buildings-Care Program (Custodial) | E38: 0
A39: 32 | B39: 663 | C39: Maintenance - Non Student Occupied | E39: 0
A40: 33 | B40: 664 | C40: Maintenance - Buildings and Equipment | E40: 0
A41: 34 | B41: 665 | C41: Maintenance - Grounds | E41: 0
A42: 35 | B42: 667 | C42: Security Program | E42: 0
A43: 36
A44: 37 | B44: 681 | C44: Pupil - To School Trans. Program | E44: =SUM(F44:M44) -> 0
A45: 38 | B45: 682 | C45: Pupil - Activity Trans. Program | E45: =SUM(F45:M45) -> 0
A46: 39 | B46: 683 | C46: General Transportation Program | E46: =SUM(F46:M46) -> 0
A48: =CELL("filename",A48) -> C:\Users\teacher\Desktop\[KSD 414 2025-Expenditures.xlsm]263
C49: Subtotal (carried over to page b) | D49: =SUM(D23:D47) -> 0 | E49: =SUM(E23:E47) -> 0 | F49: 0 | G49: 0 | H49: 0 | I49: 0 | J49: 0 | K49: 0 | L49: 0 | M49: 0
A51: End of Sheet

Sheet 263b
E1: BUDGET | M1: Page 42
E2: EXPENDITURES | M2: PERKINS V - CTE
E3: July 1, 2024 - June 30, 2025 | M3: FUND NO: 263
A4: NOTE: Round each entry to the nearest dollar amount.
C5: EXPENDITURES | D5: Prior Year | E5: Proposed | F5: 100 | G5: 200 | H5: 300 | I5: 400 | J5: 500 | K5: 600 | L5: 700 | M5: 800
H6: Purchased | I6: Supplies | J6: Capital | K6: Debt | L6: Insurance-
A7: Line | B7: Code | C7: Functions/Programs | D7: Budget | E7: Budget | F7: Salaries | G7: Benefits | H7: Services | I7: Materials | J7: Objects | K7: Retirement | L7: Judgment | M7: Transfers
A8: 40 | B8: 691 | C8: Other Support Services Program | E8: =SUM(F8:M8) -> 0
A9: 41
A10: 42 | B10: 600 | C10: TOTAL SUPPORT SERVICES | D10: =+D8+'263'!D49 -> 0 | E10: =+E8+'263'!E49 -> 0 | F10: =+F8+'263'!F49 -> 0 | G10: =+G8+'263'!G49 -> 0 | H10: =+H8+'263'!H49 -> 0 | I10: =+I8+'263'!I49 -> 0 | J10: =+J8+'263'!J49 -> 0 | K10: =+K8+'263'!K49 -> 0 | L10: =+L8+'263'!L49 -> 0 | M10: =+M8+'263'!M49 -> 0
A11: 43
A12: 44 | B12: 710 | C12: Child Nutrition Program | E12: =SUM(F12:M12) -> 0
A13: 45 | B13: 720 | C13: Community Services Program | E13: =SUM(F13:M13) -> 0
A14: 46 | B14: 730 | C14: Enterprise Operations | E14: =SUM(F14:M14) -> 0
A15: 47 | B15: 740 | C15: Student Activity Program | E15: =SUM(F15:M15) -> 0
A16: 48
A17: 49 | B17: 700 | C17: TOTAL NON-INSTRUCTION | D17: =SUM(D12:D15) -> 0 | E17: =SUM(E12:E15) -> 0 | F17: 0 | G17: 0 | H17: 0 | I17: 0 | J17: 0 | K17: 0 | L17: 0 | M17: 0
A18: 50
A19: 51 | B19: 810 | C19: Capital Assets | E19: =SUM(F19:M19) -> 0
A20: 52 | B20: 811 | C20: Capital Assets - NonStudent Occupied | E20: =SUM(F20:M20) -> 0
A21: 53
A22: 54 | B22: 800 | C22: TOTAL CAPITAL ASSET PROGRAMS | D22: =SUM(D19:D20) -> 0 | E22: =SUM(E19:E20) -> 0 | F22: =SUM(F19:F20) -> 0 | G22: =SUM(G19:G20) -> 0 | H22: 0 | I22: 0 | J22: 0 | K22: 0 | L22: 0 | M22: 0
A23: 55
A24: 56 | B24: 911 | C24: Debt Services Program - Principal | E24: =SUM(F24:M24) -> 0
A25: 57 | B25: 912 | C25: Debt Services Program - Interest | E25: =SUM(F25:M25) -> 0
A26: 58 | B26: 913 | C26: Debt Services Program - Refunded Debt | E26: =SUM(F26:M26) -> 0
A27: 59 | B27: 920 | C27: Fund Transfers Out | E27: =SUM(F27:M27) -> 0
A28: 60
A29: 61 | B29: 900 | C29: TOTAL OTHER SERVICES | D29: =SUM(D24:D28) -> 0 | E29: =SUM(E24:E28) -> 0 | F29: =SUM(F24:F28) -> 0 | G29: =SUM(G24:G28) -> 0 | H29: 0 | I29: 0 | J29: 0 | K29: 0 | L29: 0 | M29: 0
A30: 62
A31: 63 | C31: TOTAL EXPENDITURES
A32: 64 | C32: (Lines 14+42+49+54+61) | D32: 14895 | E32: ='263'!E21 -> 19136 | F32: =SUM(F29,F22,F17,F10,'263'!F21) -> 2722 | G32: =SUM(G29,G22,G17,G10,'263'!G21) -> 0 | H32: =SUM(H29,H22,H17,H10,'263'!H21) -> 8200 | I32: =SUM(I29,I22,I17,I10,'263'!I21) -> 8214 | J32: =SUM(J29,J22,J17,J10,'263'!J21) -> 0 | K32: =SUM(K29,K22,K17,K10,'263'!K21) -> 0 | L32: =SUM(L29,L22,L17,L10,'263'!L21) -> 0 | M32: =SUM(M29,M22,M17,M10,'263'!M21) -> 0
A33: 65
A34: 66
A35: 67
A36: 68
A37: 69
A38: 70
A39: 71
A40: 72
A41: 73 | C41: BUDGET SUMMARY
A42: 74
A43: 75 | C43: Beginning Fund Balance | F43: BUDGET SUMMARY:
A44: 76 | C44: Revenues + Transfers In | D44: -14895 | E44: -19136
A45: 77 | C45: TOTAL REVENUE (lines 74 + 75) | D45: -14895 | E45: =SUM(E44) -> -19136 | F45: The total on line 77 must equal the total on line 81.
A46: 78
A47: 79 | C47: Total Expenditures | D47: 14895 | E47: =E32 -> 19136
A48: 80 | C48: Unappropriated Balance
A49: 81 | C49: TOTAL EXPD + UNAPPROPRIATED BAL (lines 78 + 79) | D49: 14895 | E49: =SUM(E47:E48) -> 19136
A50: =CELL("FILENAME",A2) -> C:\Users\teacher\Desktop\[KSD 414 2025-Expenditures.xlsm]263b

Sheet 265
E1: BUDGET | M1: PAGE 43
E2: EXPENDITURES | M2: IDEA MINI-GRANTS
E3: July 1, 2024 - June 30, 2025 | M3: FUND NO: 265
A4: NOTE: Round each entry to the nearest dollar amount.
C5: EXPENDITURES | D5: Prior Year | E5: Proposed | F5: 100 | G5: 200 | H5: 300 | I5: 400 | J5: 500 | K5: 600 | L5: 700 | M5: 800
H6: Purchased | I6: Supplies | J6: Capital | K6: Debt | L6: Insurance-
A7: Line | B7: Code | C7: Functions/Programs | D7: Budget | E7: Budget | F7: Salaries | G7: Benefits | H7: Services | I7: Materials | J7: Objects | K7: Retirement | L7: Judgment | M7: Transfers
A8: 1 | B8: 512 | C8: Elementary School Program | E8: =SUM(F8:M8) -> 0
A9: 2 | B9: 515 | C9: Secondary School Program | E9: =SUM(F9:M9) -> 0
A10: 3 | B10: 517 | C10: Alternative School Program | E10: 0
A11: 4 | B11: 519 | C11: Vocational-Technical Program | E11: 0
A12: 5 | B12: 521 | C12: Special Education Program | E12: =SUM(F12:M12) -> 5751 | H12: 5751
A13: 6 | B13: 522 | C13: Special Education Preschool Program | E13: 0
A14: 7 | B14: 524 | C14: Gifted & Talented Program | E14: 0
A15: 8 | B15: 531 | C15: Interscholastic Program | E15: 0
A16: 9 | B16: 532 | C16: School Activity Program | E16: 0
A17: 10 | B17: 541 | C17: Summer School Program | E17: 0
A18: 11 | B18: 542 | C18: Adult School Program | E18: 0
A19: 12 | B19: 546 | C19: Detention Center Program | E19: 0
A20: 13
A21: 14 | B21: 500 | C21: TOTAL INSTRUCTION | D21: =SUM(D8:D19) -> 0 | E21: =SUM(E8:E20) -> 5751 | F21: 0 | G21: 0 | H21: =SUM(H8:H19) -> 5751 | I21: 0 | J21: 0 | K21: 0 | L21: 0 | M21: 0
A22: 15
A23: 16 | B23: 611 | C23: Attendance-Guidance-Health Program | E23: =SUM(F23:M23) -> 0
A24: 17 | B24: 616 | C24: Special Education Support Services Prog | E24: =SUM(F24:M24) -> 0
A25: 18
A26: 19 | B26: 621 | C26: Instruction Improvement Program | E26: =SUM(F26:M26) -> 0
A27: 20 | B27: 622 | C27: Educational Media Program | E27: 0
A28: 21 | B28: 623 | C28: Instruction-Related Technology Program | E28: 0
A29: 22 | B29: 624 | C29: Books and Periodicals | E29: 0
A30: 23 | B30: 631 | C30: Board of Education Program | E30: 0
A31: 24 | B31: 632 | C31: District Administration Program | E31: 0
A32: 25
A33: 26 | B33: 641 | C33: School Administration Program | E33: =SUM(F33:M33) -> 0
A34: 27
A35: 28 | B35: 651 | C35: Business Operation Program | E35: =SUM(F35:M35) -> 0
A36: 29 | B36: 655 | C36: Central Service Program | E36: =SUM(F36:M36) -> 0
A37: 30 | B37: 656 | C37: Administrative Technology Services Prog | E37: 0
A38: 31 | B38: 661 | C38: Buildings-Care Program (Custodial) | E38: 0
A39: 32 | B39: 663 | C39: Maintenance - Non Student Occupied | E39: 0
A40: 33 | B40: 664 | C40: Maintenance - Buildings and Equipment | E40: 0
A41: 34 | B41: 665 | C41: Maintenance - Grounds | E41: 0
A42: 35 | B42: 667 | C42: Security Program | E42: 0
A43: 36
A44: 37 | B44: 681 | C44: Pupil - To School Trans. Program | E44: =SUM(F44:M44) -> 0
A45: 38 | B45: 682 | C45: Pupil - Activity Trans. Program | E45: =SUM(F45:M45) -> 0
A46: 39 | B46: 683 | C46: General Transportation Program | E46: =SUM(F46:M46) -> 0
A48: =CELL("filename",A48) -> C:\Users\teacher\Desktop\[KSD 414 2025-Expenditures.xlsm]265
C49: Subtotal (carried over to page b) | D49: =SUM(D23:D47) -> 0 | E49: =SUM(E23:E47) -> 0 | F49: 0 | G49: 0 | H49: 0 | I49: 0 | J49: 0 | K49: 0 | L49: 0 | M49: 0
A51: End of Sheet

Sheet 265b
E1: BUDGET | M1: Page 44
E2: EXPENDITURES | M2: IDEA MINI-GRANTS
E3: July 1, 2024 - June 30, 2025 | M3: FUND NO: 265
A4: NOTE: Round each entry to the nearest dollar amount. | E4: 265b
C5: EXPENDITURES | D5: Prior Year | E5: Proposed | F5: 100 | G5: 200 | H5: 300 | I5: 400 | J5: 500 | K5: 600 | L5: 700 | M5: 800
H6: Purchased | I6: Supplies | J6: Capital | K6: Debt | L6: Insurance-
A7: Line | B7: Code | C7: Functions/Programs | D7: Budget | E7: Budget | F7: Salaries | G7: Benefits | H7: Services | I7: Materials | J7: Objects | K7: Retirement | L7: Judgment | M7: Transfers
A8: 40 | B8: 691 | C8: Other Support Services Program | E8: =SUM(F8:M8) -> 0
A9: 41
A10: 42 | B10: 600 | C10: TOTAL SUPPORT SERVICES | D10: =+D8+'265'!D49 -> 0 | E10: =+E8+'265'!E49 -> 0 | F10: =+F8+'265'!F49 -> 0 | G10: =+G8+'265'!G49 -> 0 | H10: =+H8+'265'!H49 -> 0 | I10: =+I8+'265'!I49 -> 0 | J10: =+J8+'265'!J49 -> 0 | K10: =+K8+'265'!K49 -> 0 | L10: =+L8+'265'!L49 -> 0 | M10: =+M8+'265'!M49 -> 0
A11: 43
A12: 44 | B12: 710 | C12: Child Nutrition Program | E12: =SUM(F12:M12) -> 0
A13: 45 | B13: 720 | C13: Community Services Program | E13: =SUM(F13:M13) -> 0
A14: 46 | B14: 730 | C14: Enterprise Operations | E14: =SUM(F14:M14) -> 0
A15: 47 | B15: 740 | C15: Student Activity Program | E15: =SUM(F15:M15) -> 0
A16: 48
A17: 49 | B17: 700 | C17: TOTAL NON-INSTRUCTION | D17: =SUM(D12:D15) -> 0 | E17: =SUM(E12:E15) -> 0 | F17: 0 | G17: 0 | H17: 0 | I17: 0 | J17: 0 | K17: 0 | L17: 0 | M17: 0
A18: 50
A19: 51 | B19: 810 | C19: Capital Assets | E19: =SUM(F19:M19) -> 0
A20: 52 | B20: 811 | C20: Capital Assets - NonStudent Occupied | E20: =SUM(F20:M20) -> 0
A21: 53
A22: 54 | B22: 800 | C22: TOTAL CAPITAL ASSET PROGRAMS | D22: =SUM(D19:D20) -> 0 | E22: =SUM(E19:E20) -> 0 | F22: =SUM(F19:F20) -> 0 | G22: =SUM(G19:G20) -> 0 | H22: 0 | I22: 0 | J22: 0 | K22: 0 | L22: 0 | M22: 0
A23: 55
A24: 56 | B24: 911 | C24: Debt Services Program - Principal | E24: =SUM(F24:M24) -> 0
A25: 57 | B25: 912 | C25: Debt Services Program - Interest | E25: =SUM(F25:M25) -> 0
A26: 58 | B26: 913 | C26: Debt Services Program - Refunded Debt | E26: =SUM(F26:M26) -> 0
A27: 59 | B27: 920 | C27: Fund Transfers Out | E27: =SUM(F27:M27) -> 0
A28: 60
A29: 61 | B29: 900 | C29: TOTAL OTHER SERVICES | D29: =SUM(D24:D28) -> 0 | E29: =SUM(E24:E28) -> 0 | F29: =SUM(F24:F28) -> 0 | G29: =SUM(G24:G28) -> 0 | H29: 0 | I29: 0 | J29: 0 | K29: 0 | L29: 0 | M29: 0
A30: 62
A31: 63 | C31: TOTAL EXPENDITURES
A32: 64 | C32: (Lines 14+42+49+54+61) | D32: =SUM(D29,D22,D17,D10,'265'!D21) -> 0 | E32: ='265'!E21 -> 5751 | F32: =SUM(F29,F22,F17,F10,'265'!F21) -> 0 | G32: =SUM(G29,G22,G17,G10,'265'!G21) -> 0 | H32: =SUM(H29,H22,H17,H10,'265'!H21) -> 5751 | I32: =SUM(I29,I22,I17,I10,'265'!I21) -> 0 | J32: =SUM(J29,J22,J17,J10,'265'!J21) -> 0 | K32: =SUM(K29,K22,K17,K10,'265'!K21) -> 0 | L32: =SUM(L29,L22,L17,L10,'265'!L21) -> 0 | M32: =SUM(M29,M22,M17,M10,'265'!M21) -> 0
A33: 65
A34: 66
A35: 67
A36: 68
A37: 69
A38: 70
A39: 71
A40: 72
A41: 73 | C41: BUDGET SUMMARY
A42: 74
A43: 75 | C43: Beginning Fund Balance | F43: BUDGET SUMMARY:
A44: 76 | C44: Revenues + Transfers In | E44: -5751
A45: 77 | C45: TOTAL REVENUE (lines 74 + 75) | D45: =SUM(D43:D44) -> 0 | E45: =SUM(E44) -> -5751 | F45: The total on line 77 must equal the total on line 81.
A46: 78
A47: 79 | C47: Total Expenditures | D47: =D32 -> 0 | E47: =E32 -> 5751
A48: 80 | C48: Unappropriated Balance | D48: =+D45-D32 -> 0
A49: 81 | C49: TOTAL EXPD + UNAPPROPRIATED BAL (lines 78 + 79) | D49: =SUM(D47:D48) -> 0 | E49: =SUM(E47:E48) -> 5751
A50: =CELL("FILENAME",A2) -> C:\Users\teacher\Desktop\[KSD 414 2025-Expenditures.xlsm]265b

Sheet 271
E1: BUDGET | M1: Page 49
E2: EXPENDITURES | M2: TITLE II-A, ESSA - SUPPORTING EFFECTIVE INSTRUCTION
E3: July 1, 2024 - June 30, 2025 | M3: FUND NO: 271
A4: NOTE: Round each entry to the nearest dollar amount.
C5: EXPENDITURES | D5: Prior Year | E5: Proposed | F5: 100 | G5: 200 | H5: 300 | I5: 400 | J5: 500 | K5: 600 | L5: 700 | M5: 800
H6: Purchased | I6: Supplies | J6: Capital | K6: Debt | L6: Insurance-
A7: Line | B7: Code | C7: Functions/Programs | D7: Budget | E7: Budget | F7: Salaries | G7: Benefits | H7: Services | I7: Materials | J7: Objects | K7: Retirement | L7: Judgment | M7: Transfers
A8: 1 | B8: 512 | C8: Elementary School Program | E8: =SUM(F8:M8) -> 0
A9: 2 | B9: 515 | C9: Secondary School Program | E9: =SUM(F9:M9) -> 0
A10: 3 | B10: 517 | C10: Alternative School Program | E10: 0
A11: 4 | B11: 519 | C11: Vocational-Technical Program | E11: 0
A12: 5 | B12: 521 | C12: Special Education Program | E12: 0
A13: 6 | B13: 522 | C13: Special Education Preschool Program | E13: 0
A14: 7 | B14: 524 | C14: Gifted & Talented Program | E14: 0
A15: 8 | B15: 531 | C15: Interscholastic Program | E15: 0
A16: 9 | B16: 532 | C16: School Activity Program | E16: 0
A17: 10 | B17: 541 | C17: Summer School Program | E17: 0
A18: 11 | B18: 542 | C18: Adult School Program | E18: 0
A19: 12 | B19: 546 | C19: Detention Center Program | E19: 0
A20: 13
A21: 14 | B21: 500 | C21: TOTAL INSTRUCTION | D21: =SUM(D8:D19) -> 0 | E21: 0 | F21: 0 | G21: 0 | H21: 0 | I21: 0 | J21: 0 | K21: 0 | L21: 0 | M21: 0
A22: 15
A23: 16 | B23: 611 | C23: Attendance-Guidance-Health Program | E23: =SUM(F23:M23) -> 0
A24: 17 | B24: 616 | C24: Special Education Support Services Prog | E24: =SUM(F24:M24) -> 0
A25: 18
A26: 19 | B26: 621 | C26: Instruction Improvement Program | D26: 64508 | E26: =SUM(F26:M26) -> 57117 | F26: 25204 | G26: 4648 | H26: 25027 | I26: 2238
A27: 20 | B27: 622 | C27: Educational Media Program | D27: 0 | E27: =SUM(F27:M27) -> 0
A28: 21 | B28: 623 | C28: Instruction-Related Technology Program | D28: 0 | E28: 0
A29: 22 | B29: 624 | C29: Books and Periodicals | D29: 0 | E29: 0
A30: 23 | B30: 631 | C30: Board of Education Program | D30: 0 | E30: 0
A31: 24 | B31: 632 | C31: District Administration Program | D31: 0 | E31: 0
A32: 25
A33: 26 | B33: 641 | C33: School Administration Program | D33: 0 | E33: =SUM(F33:M33) -> 0
A34: 27
A35: 28 | B35: 651 | C35: Business Operation Program | D35: 0 | E35: =SUM(F35:M35) -> 0
A36: 29 | B36: 655 | C36: Central Service Program | D36: 0 | E36: =SUM(F36:M36) -> 0
A37: 30 | B37: 656 | C37: Administrative Technology Services Prog | D37: 0 | E37: 0
A38: 31 | B38: 661 | C38: Buildings-Care Program (Custodial) | D38: 0 | E38: 0
A39: 32 | B39: 663 | C39: Maintenance - Non Student Occupied | D39: 0 | E39: 0
A40: 33 | B40: 664 | C40: Maintenance - Buildings and Equipment | D40: 0 | E40: 0
A41: 34 | B41: 665 | C41: Maintenance - Grounds | D41: 0 | E41: 0
A42: 35 | B42: 667 | C42: Security Program | D42: 0 | E42: 0
A43: 36
A44: 37 | B44: 681 | C44: Pupil - To School Trans. Program | D44: 0 | E44: =SUM(F44:M44) -> 0
A45: 38 | B45: 682 | C45: Pupil - Activity Trans. Program | D45: 0 | E45: =SUM(F45:M45) -> 0
A46: 39 | B46: 683 | C46: General Transportation Program | D46: 0 | E46: =SUM(F46:M46) -> 0
A48: =CELL("filename",A48) -> C:\Users\teacher\Desktop\[KSD 414 2025-Expenditures.xlsm]271
C49: Subtotal (carried over to page b) | D49: 64508 | E49: =SUM(F49:M49) -> 57117 | F49: =SUM(F26:F48) -> 25204 | G49: =SUM(G26:G48) -> 4648 | H49: =SUM(H26:H46) -> 25027 | I49: =SUM(I26:I46) -> 2238 | J49: =SUM(J23:J47) -> 0 | K49: 0 | L49: 0 | M49: 0
A51: End of Sheet

Sheet 271b
E1: BUDGET | M1: Page 50
E2: EXPENDITURES | M2: TITLE II-A, ESSA - SUPPORTING EFFECTIVE INSTRUCTION
E3: July 1, 2024 - June 30, 2025 | M3: FUND NO: 271
A4: NOTE: Round each entry to the nearest dollar amount.
C5: EXPENDITURES | D5: Prior Year | E5: Proposed | F5: 100 | G5: 200 | H5: 300 | I5: 400 | J5: 500 | K5: 600 | L5: 700 | M5: 800
H6: Purchased | I6: Supplies | J6: Capital | K6: Debt | L6: Insurance-
A7: Line | B7: Code | C7: Functions/Programs | D7: Budget | E7: Budget | F7: Salaries | G7: Benefits | H7: Services | I7: Materials | J7: Objects | K7: Retirement | L7: Judgment | M7: Transfers
A8: 40 | B8: 691 | C8: Other Support Services Program | E8: =SUM(F8:M8) -> 0
A9: 41
A10: 42 | B10: 600 | C10: TOTAL SUPPORT SERVICES | D10: 64508 | E10: =+E8+'271'!E49 -> 57117 | F10: =+F8+'271'!F49 -> 25204 | G10: =+G8+'271'!G49 -> 4648 | H10: =+H8+'271'!H49 -> 25027 | I10: =+I8+'271'!I49 -> 2238 | J10: =+J8+'271'!J49 -> 0 | K10: =+K8+'271'!K49 -> 0 | L10: =+L8+'271'!L49 -> 0 | M10: =+M8+'271'!M49 -> 0
A11: 43
A12: 44 | B12: 710 | C12: Child Nutrition Program | D12: 0 | E12: =SUM(F12:M12) -> 0
A13: 45 | B13: 720 | C13: Community Services Program | D13: 0 | E13: =SUM(F13:M13) -> 0
A14: 46 | B14: 730 | C14: Enterprise Operations | D14: 0 | E14: =SUM(F14:M14) -> 0
A15: 47 | B15: 740 | C15: Student Activity Program | D15: 0 | E15: =SUM(F15:M15) -> 0
A16: 48
A17: 49 | B17: 700 | C17: TOTAL NON-INSTRUCTION | D17: 0 | E17: =SUM(E12:E15) -> 0 | F17: 0 | G17: 0 | H17: 0 | I17: 0 | J17: 0 | K17: 0 | L17: 0 | M17: 0
A18: 50
A19: 51 | B19: 810 | C19: Capital Assets | D19: 0 | E19: =SUM(F19:M19) -> 0
A20: 52 | B20: 811 | C20: Capital Assets - NonStudent Occupied | D20: 0 | E20: =SUM(F20:M20) -> 0
A21: 53
A22: 54 | B22: 800 | C22: TOTAL CAPITAL ASSET PROGRAMS | D22: 0 | E22: =SUM(E19:E20) -> 0 | F22: =SUM(F19:F20) -> 0 | G22: =SUM(G19:G20) -> 0 | H22: 0 | I22: 0 | J22: 0 | K22: 0 | L22: 0 | M22: 0
A23: 55
A24: 56 | B24: 911 | C24: Debt Services Program - Principal | D24: 0 | E24: =SUM(F24:M24) -> 0
A25: 57 | B25: 912 | C25: Debt Services Program - Interest | D25: 0 | E25: =SUM(F25:M25) -> 0
A26: 58 | B26: 913 | C26: Debt Services Program - Refunded Debt | D26: 0 | E26: =SUM(F26:M26) -> 0
A27: 59 | B27: 920 | C27: Fund Transfers Out | D27: 0 | E27: =SUM(F27:M27) -> 0
A28: 60
A29: 61 | B29: 900 | C29: TOTAL OTHER SERVICES | D29: 0 | E29: =SUM(E24:E28) -> 0 | F29: =SUM(F24:F28) -> 0 | G29: =SUM(G24:G28) -> 0 | H29: 0 | I29: 0 | J29: 0 | K29: 0 | L29: 0 | M29: 0
A30: 62
A31: 63 | C31: TOTAL EXPENDITURES
A32: 64 | C32: (Lines 14+42+49+54+61) | D32: 64508 | E32: ='271'!E49 -> 57117 | F32: =SUM(F29,F22,F17,F10,'271'!F21) -> 25204 | G32: =SUM(G29,G22,G17,G10,'271'!G21) -> 4648 | H32: =SUM(H29,H22,H17,H10,'271'!H21) -> 25027 | I32: =SUM(I29,I22,I17,I10,'271'!I21) -> 2238 | J32: =SUM(J29,J22,J17,J10,'271'!J21) -> 0 | K32: =SUM(K29,K22,K17,K10,'271'!K21) -> 0 | L32: =SUM(L29,L22,L17,L10,'271'!L21) -> 0 | M32: =SUM(M29,M22,M17,M10,'271'!M21) -> 0
A33: 65
A34: 66
A35: 67
A36: 68
A37: 69
A38: 70
A39: 71
A40: 72
A41: 73 | C41: BUDGET SUMMARY
A42: 74
A43: 75 | C43: Beginning Fund Balance | D43: -8800 | E43: -2921 | F43: BUDGET SUMMARY:
A44: 76 | C44: Revenues + Transfers In | D44: -55708 | E44: -54196
A45: 77 | C45: TOTAL REVENUE (lines 74 + 75) | D45: -64508 | E45: =SUM(E43:E44) -> -57117 | F45: The total on line 77 must equal the total on line 81.
A46: 78
A47: 79 | C47: Total Expenditures | D47: 64508 | E47: =E32 -> 57117
A48: 80 | C48: Unappropriated Balance
A49: 81 | C49: TOTAL EXPD + UNAPPROPRIATED BAL (lines 78 + 79) | D49: 64508 | E49: =SUM(E47:E48) -> 57117
A50: =CELL("FILENAME",A2) -> C:\Users\teacher\Desktop\[KSD 414 2025-Expenditures.xlsm]271b

Sheet Federal
E1: BUDGET | M1: Page 53
E2: EXPENDITURES | H2: SPECIAL FEDERAL | K2: FUND NAME:
E3: July 1, 2024 - June 30, 2025 | H3: 271 THROUGH 289 | K3: FUND NO:
A4: NOTE: Round each entry to the nearest dollar amount.
C5: EXPENDITURES | D5: Prior Year | E5: Proposed | F5: 100 | G5: 200 | H5: 300 | I5: 400 | J5: 500 | K5: 600 | L5: 700 | M5: 800
H6: Purchased | I6: Supplies | J6: Capital | K6: Debt | L6: Insurance-
A7: Line | B7: Code | C7: Functions/Programs | D7: Budget | E7: Budget | F7: Salaries | G7: Benefits | H7: Services | I7: Materials | J7: Objects | K7: Retirement | L7: Judgment | M7: Transfers
A8: 1 | B8: 512 | C8: Elementary School Program | E8: =SUM(F8:M8) -> 0
A9: 2 | B9: 515 | C9: Secondary School Program | E9: =SUM(F9:M9) -> 0
A10: 3 | B10: 517 | C10: Alternative School Program | E10: 0
A11: 4 | B11: 519 | C11: Vocational-Technical Program | E11: 0
A12: 5 | B12: 521 | C12: Special Education Program | E12: 0
A13: 6 | B13: 522 | C13: Special Education Preschool Program | E13: 0
A14: 7 | B14: 524 | C14: Gifted & Talented Program | E14: 0
A15: 8 | B15: 531 | C15: Interscholastic Program | E15: 0
A16: 9 | B16: 532 | C16: School Activity Program | E16: 0
A17: 10 | B17: 541 | C17: Summer School Program | E17: 0
A18: 11 | B18: 542 | C18: Adult School Program | E18: 0
A19: 12 | B19: 546 | C19: Detention Center Program | E19: 0
A20: 13
A21: 14 | B21: 500 | C21: TOTAL INSTRUCTION | D21: =SUM(D8:D19) -> 0 | E21: 0 | F21: 0 | G21: 0 | H21: 0 | I21: 0 | J21: 0 | K21: 0 | L21: 0 | M21: 0
A22: 15
A23: 16 | B23: 611 | C23: Attendance-Guidance-Health Program | E23: =SUM(F23:M23) -> 0
A24: 17 | B24: 616 | C24: Special Education Support Services Prog | E24: =SUM(F24:M24) -> 0
A25: 18
A26: 19 | B26: 621 | C26: Instruction Improvement Program | E26: =SUM(F26:M26) -> 0
A27: 20 | B27: 622 | C27: Educational Media Program | E27: 0
A28: 21 | B28: 623 | C28: Instruction-Related Technology Program | E28: 0
A29: 22 | B29: 624 | C29: Books and Periodicals | E29: 0
A30: 23 | B30: 631 | C30: Board of Education Program | E30: 0
A31: 24 | B31: 632 | C31: District Administration Program | E31: 0
A32: 25
A33: 26 | B33: 641 | C33: School Administration Program | E33: =SUM(F33:M33) -> 0
A34: 27
A35: 28 | B35: 651 | C35: Business Operation Program | E35: =SUM(F35:M35) -> 0
A36: 29 | B36: 655 | C36: Central Service Program | E36: =SUM(F36:M36) -> 0
A37: 30 | B37: 656 | C37: Administrative Technology Services Prog | E37: 0
A38: 31 | B38: 661 | C38: Buildings-Care Program (Custodial) | E38: 0
A39: 32 | B39: 663 | C39: Maintenance - Non Student Occupied | E39: 0
A40: 33 | B40: 664 | C40: Maintenance - Buildings and Equipment | E40: 0
A41: 34 | B41: 665 | C41: Maintenance - Grounds | E41: 0
A42: 35 | B42: 667 | C42: Security Program | E42: 0
A43: 36
A44: 37 | B44: 681 | C44: Pupil - To School Trans. Program | E44: =SUM(F44:M44) -> 0
A45: 38 | B45: 682 | C45: Pupil - Activity Trans. Program | E45: =SUM(F45:M45) -> 0
A46: 39 | B46: 683 | C46: General Transportation Program | E46: =SUM(F46:M46) -> 0
A48: =CELL("filename",A48) -> C:\Users\teacher\Desktop\[KSD 414 2025-Expenditures.xlsm]Federal
C49: Subtotal (carried over to page b) | D49: =SUM(D23:D47) -> 0 | E49: =SUM(E23:E47) -> 0 | F49: 0 | G49: 0 | H49: 0 | I49: 0 | J49: 0 | K49: 0 | L49: 0 | M49: 0
A51: End of Sheet

Sheet Federalb
E1: BUDGET | M1: Page 54
E2: EXPENDITURES | I2: SPECIAL FEDERAL | K2: FUND NAME:
E3: July 1, 2024 - June 30, 2025 | I3: 271 THROUGH 289 | K3: FUND NO:
A4: NOTE: Round each entry to the nearest dollar amount.
C5: EXPENDITURES | D5: Prior Year | E5: Proposed | F5: 100 | G5: 200 | H5: 300 | I5: 400 | J5: 500 | K5: 600 | L5: 700 | M5: 800
H6: Purchased | I6: Supplies | J6: Capital | K6: Debt | L6: Insurance-
A7: Line | B7: Code | C7: Functions/Programs | D7: Budget | E7: Budget | F7: Salaries | G7: Benefits | H7: Services | I7: Materials | J7: Objects | K7: Retirement | L7: Judgment | M7: Transfers
A8: 40 | B8: 691 | C8: Other Support Services Program | E8: =SUM(F8:M8) -> 0
A9: 41
A10: 42 | B10: 600 | C10: TOTAL SUPPORT SERVICES | D10: =+D8+Federal!D49 -> 0 | E10: =+E8+Federal!E49 -> 0 | F10: =+F8+Federal!F49 -> 0 | G10: =+G8+Federal!G49 -> 0 | H10: =+H8+Federal!H49 -> 0 | I10: =+I8+Federal!I49 -> 0 | J10: =+J8+Federal!J49 -> 0 | K10: =+K8+Federal!K49 -> 0 | L10: =+L8+Federal!L49 -> 0 | M10: =+M8+Federal!M49 -> 0
A11: 43
A12: 44 | B12: 710 | C12: Child Nutrition Program | E12: =SUM(F12:M12) -> 0
A13: 45 | B13: 720 | C13: Community Services Program | E13: =SUM(F13:M13) -> 0
A14: 46 | B14: 730 | C14: Enterprise Operations | E14: =SUM(F14:M14) -> 0
A15: 47 | B15: 740 | C15: Student Activity Program | E15: =SUM(F15:M15) -> 0
A16: 48
A17: 49 | B17: 700 | C17: TOTAL NON-INSTRUCTION | D17: =SUM(D12:D15) -> 0 | E17: =SUM(E12:E15) -> 0 | F17: 0 | G17: 0 | H17: 0 | I17: 0 | J17: 0 | K17: 0 | L17: 0 | M17: 0
A18: 50
A19: 51 | B19: 810 | C19: Capital Assets | E19: =SUM(F19:M19) -> 0
A20: 52 | B20: 811 | C20: Capital Assets - NonStudent Occupied | E20: =SUM(F20:M20) -> 0
A21: 53
A22: 54 | B22: 800 | C22: TOTAL CAPITAL ASSET PROGRAMS | D22: =SUM(D19:D20) -> 0 | E22: =SUM(E19:E20) -> 0 | F22: =SUM(F19:F20) -> 0 | G22: =SUM(G19:G20) -> 0 | H22: 0 | I22: 0 | J22: 0 | K22: 0 | L22: 0 | M22: 0
A23: 55
A24: 56 | B24: 911 | C24: Debt Services Program - Principal | E24: =SUM(F24:M24) -> 0
A25: 57 | B25: 912 | C25: Debt Services Program - Interest | E25: =SUM(F25:M25) -> 0
A26: 58 | B26: 913 | C26: Debt Services Program - Refunded Debt | E26: =SUM(F26:M26) -> 0
A27: 59 | B27: 920 | C27: Fund Transfers Out | E27: =SUM(F27:M27) -> 0
A28: 60
A29: 61 | B29: 900 | C29: TOTAL OTHER SERVICES | D29: =SUM(D24:D28) -> 0 | E29: =SUM(E24:E28) -> 0 | F29: =SUM(F24:F28) -> 0 | G29: =SUM(G24:G28) -> 0 | H29: 0 | I29: 0 | J29: 0 | K29: 0 | L29: 0 | M29: 0
A30: 62
A31: 63 | C31: TOTAL EXPENDITURES
A32: 64 | C32: (Lines 14+42+49+54+61) | D32: =SUM(D29,D22,D17,D10,Federal!D21) -> 0 | E32: =SUM(E29,E22,E17,E10,Federal!E21) -> 0 | F32: =SUM(F29,F22,F17,F10,Federal!F21) -> 0 | G32: =SUM(G29,G22,G17,G10,Federal!G21) -> 0 | H32: =SUM(H29,H22,H17,H10,Federal!H21) -> 0 | I32: =SUM(I29,I22,I17,I10,Federal!I21) -> 0 | J32: =SUM(J29,J22,J17,J10,Federal!J21) -> 0 | K32: =SUM(K29,K22,K17,K10,Federal!K21) -> 0 | L32: =SUM(L29,L22,L17,L10,Federal!L21) -> 0 | M32: =SUM(M29,M22,M17,M10,Federal!M21) -> 0
A33: 65
A34: 66
A35: 67
A36: 68
A37: 69
A38: 70
A39: 71
A40: 72
A41: 73 | C41: BUDGET SUMMARY
A42: 74
A43: 75 | C43: Beginning Fund Balance | F43: BUDGET SUMMARY:
A44: 76 | C44: Revenues + Transfers In
A45: 77 | C45: TOTAL REVENUE (lines 74 + 75) | D45: =SUM(D43:D44) -> 0 | E45: =SUM(E43:E44) -> 0 | F45: The total on line 77 must equal the total on line 81.
A46: 78
A47: 79 | C47: Total Expenditures | D47: =D32 -> 0 | E47: =E32 -> 0
A48: 80 | C48: Unappropriated Balance | D48: =+D45-D32 -> 0 | E48: =+E45-E32 -> 0
A49: 81 | C49: TOTAL EXPD + UNAPPROPRIATED BAL (lines 78 + 79) | D49: =SUM(D47:D48) -> 0 | E49: =SUM(E47:E48) -> 0
A50: =CELL("FILENAME",A2) -> C:\Users\teacher\Desktop\[KSD 414 2025-Expenditures.xlsm]Federalb

Sheet 290
E1: BUDGET | M1: Page 55
E2: EXPENDITURES | M2: CHILD NUTRITION
E3: July 1, 2024 - June 30, 2025 | M3: FUND NO: 290
A4: NOTE: Round each entry to the nearest dollar amount.
C5: EXPENDITURES | D5: Prior Year | E5: Proposed | F5: 100 | G5: 200 | H5: 300 | I5: 400 | J5: 500 | K5: 600 | L5: 700 | M5: 800
H6: Purchased | I6: Supplies | J6: Capital | K6: Debt | L6: Insurance-
A7: Line | B7: Code | C7: Functions/Programs | D7: Budget | E7: Budget | F7: Salaries | G7: Benefits | H7: Services | I7: Materials | J7: Objects | K7: Retirement | L7: Judgment | M7: Transfers
A8: 1 | B8: 512 | C8: Elementary School Program | E8: =SUM(F8:M8) -> 0
A9: 2 | B9: 515 | C9: Secondary School Program | E9: =SUM(F9:M9) -> 0
A10: 3 | B10: 517 | C10: Alternative School Program | E10: 0
A11: 4 | B11: 519 | C11: Vocational-Technical Program | E11: 0
A12: 5 | B12: 521 | C12: Special Education Program | E12: 0
A13: 6 | B13: 522 | C13: Special Education Preschool Program | E13: 0
A14: 7 | B14: 524 | C14: Gifted & Talented Program | E14: 0
A15: 8 | B15: 531 | C15: Interscholastic Program | E15: 0
A16: 9 | B16: 532 | C16: School Activity Program | E16: 0
A17: 10 | B17: 541 | C17: Summer School Program | E17: 0
A18: 11 | B18: 542 | C18: Adult School Program | E18: 0
A19: 12 | B19: 546 | C19: Detention Center Program | E19: 0
A20: 13
A21: 14 | B21: 500 | C21: TOTAL INSTRUCTION | D21: =SUM(D8:D19) -> 0 | E21: 0 | F21: 0 | G21: 0 | H21: 0 | I21: 0 | J21: 0 | K21: 0 | L21: 0 | M21: 0
A22: 15
A23: 16 | B23: 611 | C23: Attendance-Guidance-Health Program | E23: =SUM(F23:M23) -> 0
A24: 17 | B24: 616 | C24: Special Education Support Services Prog | E24: =SUM(F24:M24) -> 0
A25: 18
A26: 19 | B26: 621 | C26: Instruction Improvement Program | E26: =SUM(F26:M26) -> 0
A27: 20 | B27: 622 | C27: Educational Media Program | E27: 0
A28: 21 | B28: 623 | C28: Instruction-Related Technology Program | E28: 0
A29: 22 | B29: 624 | C29: Books and Periodicals | E29: 0
A30: 23 | B30: 631 | C30: Board of Education Program | E30: 0
A31: 24 | B31: 632 | C31: District Administration Program | E31: 0
A32: 25
A33: 26 | B33: 641 | C33: School Administration Program | E33: =SUM(F33:M33) -> 0
A34: 27
A35: 28 | B35: 651 | C35: Business Operation Program | E35: =SUM(F35:M35) -> 0
A36: 29 | B36: 655 | C36: Central Service Program | E36: =SUM(F36:M36) -> 0
A37: 30 | B37: 656 | C37: Administrative Technology Services Prog | E37: 0
A38: 31 | B38: 661 | C38: Buildings-Care Program (Custodial) | E38: 0
A39: 32 | B39: 663 | C39: Maintenance - Non Student Occupied | E39: 0
A40: 33 | B40: 664 | C40: Maintenance - Buildings and Equipment | E40: 0
A41: 34 | B41: 665 | C41: Maintenance - Grounds | E41: 0
A42: 35 | B42: 667 | C42: Security Program | E42: 0
A43: 36
A44: 37 | B44: 681 | C44: Pupil - To School Trans. Program | E44: =SUM(F44:M44) -> 0
A45: 38 | B45: 682 | C45: Pupil - Activity Trans. Program | E45: =SUM(F45:M45) -> 0
A46: 39 | B46: 683 | C46: General Transportation Program | E46: =SUM(F46:M46) -> 0
A48: =CELL("filename",A48) -> C:\Users\teacher\Desktop\[KSD 414 2025-Expenditures.xlsm]290
C49: Subtotal (carried over to page b) | D49: =SUM(D23:D47) -> 0 | E49: =SUM(E23:E47) -> 0 | F49: 0 | G49: 0 | H49: 0 | I49: 0 | J49: 0 | K49: 0 | L49: 0 | M49: 0
A51: End of Sheet

Sheet 290b
E1: BUDGET | M1: Page 56
E2: EXPENDITURES | M2: CHILD NUTRITION
E3: July 1, 2024 - June 30, 2025 | M3: FUND NO: 290
A4: NOTE: Round each entry to the nearest dollar amount.
C5: EXPENDITURES | D5: Prior Year | E5: Proposed | F5: 100 | G5: 200 | H5: 300 | I5: 400 | J5: 500 | K5: 600 | L5: 700 | M5: 800
H6: Purchased | I6: Supplies | J6: Capital | K6: Debt | L6: Insurance-
A7: Line | B7: Code | C7: Functions/Programs | D7: Budget | E7: Budget | F7: Salaries | G7: Benefits | H7: Services | I7: Materials | J7: Objects | K7: Retirement | L7: Judgment | M7: Transfers
A8: 40 | B8: 691 | C8: Other Support Services Program | E8: =SUM(F8:M8) -> 0
A9: 41
A10: 42 | B10: 600 | C10: TOTAL SUPPORT SERVICES | D10: =+D8+'290'!D49 -> 0 | E10: =+E8+'290'!E49 -> 0 | F10: =+F8+'290'!F49 -> 0 | G10: =+G8+'290'!G49 -> 0 | H10: =+H8+'290'!H49 -> 0 | I10: =+I8+'290'!I49 -> 0 | J10: =+J8+'290'!J49 -> 0 | K10: =+K8+'290'!K49 -> 0 | L10: =+L8+'290'!L49 -> 0 | M10: =+M8+'290'!M49 -> 0
A11: 43
A12: 44 | B12: 710 | C12: Child Nutrition Program | D12: 627500 | E12: =SUM(F12:M12) -> 675141 | F12: 287110 | G12: 122031 | H12: 20500 | I12: 240500 | J12: 5000
A13: 45 | B13: 720 | C13: Community Services Program | E13: =SUM(F13:M13) -> 0
A14: 46 | B14: 730 | C14: Enterprise Operations | E14: =SUM(F14:M14) -> 0
A15: 47 | B15: 740 | C15: Student Activity Program | E15: =SUM(F15:M15) -> 0
A16: 48
A17: 49 | B17: 700 | C17: TOTAL NON-INSTRUCTION | D17: 627500 | E17: =SUM(F17:M17) -> 675141 | F17: =SUM(F12:F16) -> 287110 | G17: =SUM(G12:G16) -> 122031 | H17: =SUM(H12:H15) -> 20500 | I17: =SUM(I12:I15) -> 240500 | J17: =SUM(J12:J15) -> 5000 | K17: =SUM(K12:K15) -> 0 | L17: 0 | M17: 0
A18: 50
A19: 51 | B19: 810 | C19: Capital Assets | D19: 0 | E19: =SUM(F19:M19) -> 0
A20: 52 | B20: 811 | C20: Capital Assets - NonStudent Occupied | D20: 0 | E20: =SUM(F20:M20) -> 0
A21: 53
A22: 54 | B22: 800 | C22: TOTAL CAPITAL ASSET PROGRAMS | D22: 0 | E22: =SUM(E19:E20) -> 0 | F22: =SUM(F19:F20) -> 0 | G22: =SUM(G19:G20) -> 0 | H22: 0 | I22: 0 | J22: 0 | K22: 0 | L22: 0 | M22: 0
A23: 55
A24: 56 | B24: 911 | C24: Debt Services Program - Principal | D24: 0 | E24: =SUM(F24:M24) -> 0
A25: 57 | B25: 912 | C25: Debt Services Program - Interest | D25: 0 | E25: =SUM(F25:M25) -> 0
A26: 58 | B26: 913 | C26: Debt Services Program - Refunded Debt | D26: 0 | E26: =SUM(F26:M26) -> 0
A27: 59 | B27: 920 | C27: Fund Transfers Out | D27: 0 | E27: =SUM(F27:M27) -> 0
A28: 60
A29: 61 | B29: 900 | C29: TOTAL OTHER SERVICES | D29: 0 | E29: =SUM(E24:E28) -> 0 | F29: =SUM(F24:F28) -> 0 | G29: =SUM(G24:G28) -> 0 | H29: 0 | I29: 0 | J29: 0 | K29: 0 | L29: 0 | M29: 0
A30: 62
A31: 63 | C31: TOTAL EXPENDITURES
A32: 64 | C32: (Lines 14+42+49+54+61) | D32: 627500 | E32: =E17 -> 675141 | F32: =SUM(F29,F22,F17,F10,'290'!F21) -> 287110 | G32: =SUM(G29,G22,G17,G10,'290'!G21) -> 122031 | H32: =SUM(H29,H22,H17,H10,'290'!H21) -> 20500 | I32: =SUM(I29,I22,I17,I10,'290'!I21) -> 240500 | J32: =SUM(J29,J22,J17,J10,'290'!J21) -> 5000 | K32: =SUM(K29,K22,K17,K10,'290'!K21) -> 0 | L32: =SUM(L29,L22,L17,L10,'290'!L21) -> 0 | M32: =SUM(M29,M22,M17,M10,'290'!M21) -> 0
A33: 65
A34: 66
A35: 67
A36: 68
A37: 69
A38: 70
A39: 71
A40: 72
A41: 73 | C41: BUDGET SUMMARY
A42: 74
A43: 75 | C43: Beginning Fund Balance | D43: -200000 | E43: -300000 | F43: BUDGET SUMMARY:
A44: 76 | C44: Revenues + Transfers In | D44: -427500 | E44: -420500
A45: 77 | C45: TOTAL REVENUE (lines 74 + 75) | D45: -627500 | E45: =SUM(E43:E44) -> -720500 | F45: The total on line 77 must equal the total on line 81.
A46: 78
A47: 79 | C47: Total Expenditures | D47: 627500 | E47: =E32 -> 675141
A48: 80 | C48: Unappropriated Balance | E48: 45359
A49: 81 | C49: TOTAL EXPD + UNAPPROPRIATED BAL (lines 78 + 79) | D49: 627500 | E49: =SUM(E47:E48) -> 720500
A50: =CELL("FILENAME",A2) -> C:\Users\teacher\Desktop\[KSD 414 2025-Expenditures.xlsm]290b

Sheet 310
E1: BUDGET | M1: Page 57
E2: EXPENDITURES | M2: BOND REDEMPTION & INTEREST FUND
E3: July 1, 2024 - June 30, 2025 | M3: FUND NO: 310
A4: NOTE: Round each entry to the nearest dollar amount.
C5: EXPENDITURES | D5: Prior Year | E5: Proposed | F5: 100 | G5: 200 | H5: 300 | I5: 400 | J5: 500 | K5: 600 | L5: 700 | M5: 800
H6: Purchased | I6: Supplies | J6: Capital | K6: Debt | L6: Insurance-
A7: Line | B7: Code | C7: Functions/Programs | D7: Budget | E7: Budget | F7: Salaries | G7: Benefits | H7: Services | I7: Materials | J7: Objects | K7: Retirement | L7: Judgment | M7: Transfers
A8: 1 | B8: 512 | C8: Elementary School Program | E8: =SUM(F8:M8) -> 0
A9: 2 | B9: 515 | C9: Secondary School Program | E9: =SUM(F9:M9) -> 0
A10: 3 | B10: 517 | C10: Alternative School Program | E10: 0
A11: 4 | B11: 519 | C11: Vocational-Technical Program | E11: 0
A12: 5 | B12: 521 | C12: Special Education Program | E12: 0
A13: 6 | B13: 522 | C13: Special Education Preschool Program | E13: 0
A14: 7 | B14: 524 | C14: Gifted & Talented Program | E14: 0
A15: 8 | B15: 531 | C15: Interscholastic Program | E15: 0
A16: 9 | B16: 532 | C16: School Activity Program | E16: 0
A17: 10 | B17: 541 | C17: Summer School Program | E17: 0
A18: 11 | B18: 542 | C18: Adult School Program | E18: 0
A19: 12 | B19: 546 | C19: Detention Center Program | E19: 0
A20: 13
A21: 14 | B21: 500 | C21: TOTAL INSTRUCTION | D21: =SUM(D8:D19) -> 0 | E21: 0 | F21: 0 | G21: 0 | H21: 0 | I21: 0 | J21: 0 | K21: 0 | L21: 0 | M21: 0
A22: 15
A23: 16 | B23: 611 | C23: Attendance-Guidance-Health Program | E23: =SUM(F23:M23) -> 0
A24: 17 | B24: 616 | C24: Special Education Support Services Prog | E24: =SUM(F24:M24) -> 0
A25: 18
A26: 19 | B26: 621 | C26: Instruction Improvement Program | E26: =SUM(F26:M26) -> 0
A27: 20 | B27: 622 | C27: Educational Media Program | E27: 0
A28: 21 | B28: 623 | C28: Instruction-Related Technology Program | E28: 0
A29: 22 | B29: 624 | C29: Books and Periodicals | E29: 0
A30: 23 | B30: 631 | C30: Board of Education Program | E30: 0
A31: 24 | B31: 632 | C31: District Administration Program | E31: 0
A32: 25
A33: 26 | B33: 641 | C33: School Administration Program | E33: =SUM(F33:M33) -> 0
A34: 27
A35: 28 | B35: 651 | C35: Business Operation Program | E35: =SUM(F35:M35) -> 0
A36: 29 | B36: 655 | C36: Central Service Program | E36: =SUM(F36:M36) -> 0
A37: 30 | B37: 656 | C37: Administrative Technology Services Prog | E37: 0
A38: 31 | B38: 661 | C38: Buildings-Care Program (Custodial) | E38: 0
A39: 32 | B39: 663 | C39: Maintenance - Non Student Occupied | E39: 0
A40: 33 | B40: 664 | C40: Maintenance - Buildings and Equipment | E40: 0
A41: 34 | B41: 665 | C41: Maintenance - Grounds | E41: 0
A42: 35 | B42: 667 | C42: Security Program | E42: 0
A43: 36
A44: 37 | B44: 681 | C44: Pupil - To School Trans. Program | E44: =SUM(F44:M44) -> 0
A45: 38 | B45: 682 | C45: Pupil - Activity Trans. Program | E45: =SUM(F45:M45) -> 0
A46: 39 | B46: 683 | C46: General Transportation Program | E46: =SUM(F46:M46) -> 0
A48: =CELL("filename",A48) -> C:\Users\teacher\Desktop\[KSD 414 2025-Expenditures.xlsm]310
C49: Subtotal (carried over to page b) | D49: =SUM(D23:D47) -> 0 | E49: =SUM(E23:E47) -> 0 | F49: 0 | G49: 0 | H49: 0 | I49: 0 | J49: 0 | K49: 0 | L49: 0 | M49: 0
A51: End of Sheet

Sheet 310b
E1: BUDGET | M1: Page 58
E2: EXPENDITURES | M2: BOND REDEMPTION & INTEREST FUND
E3: July 1, 2024 - June 30, 2025 | M3: FUND NO: 310
A4: NOTE: Round each entry to the nearest dollar amount.
C5: EXPENDITURES | D5: Prior Year | E5: Proposed | F5: 100 | G5: 200 | H5: 300 | I5: 400 | J5: 500 | K5: 600 | L5: 700 | M5: 800
H6: Purchased | I6: Supplies | J6: Capital | K6: Debt | L6: Insurance-
A7: Line | B7: Code | C7: Functions/Programs | D7: Budget | E7: Budget | F7: Salaries | G7: Benefits | H7: Services | I7: Materials | J7: Objects | K7: Retirement | L7: Judgment | M7: Transfers
A8: 40 | B8: 691 | C8: Other Support Services Program | D8: 30000 | E8: =SUM(F8:M8) -> 30000 | H8: 30000
A9: 41
A10: 42 | B10: 600 | C10: TOTAL SUPPORT SERVICES | D10: =SUM(D8:D9) -> 30000 | E10: =SUM(E8) -> 30000 | F10: =+F8+'310'!F49 -> 0 | G10: =+G8+'310'!G49 -> 0 | H10: =SUM(H8) -> 30000 | I10: =+I8+'310'!I49 -> 0 | J10: =+J8+'310'!J49 -> 0 | K10: =+K8+'310'!K49 -> 0 | L10: =+L8+'310'!L49 -> 0 | M10: =+M8+'310'!M49 -> 0
A11: 43
A12: 44 | B12: 710 | C12: Child Nutrition Program | E12: =SUM(F12:M12) -> 0
A13: 45 | B13: 720 | C13: Community Services Program | E13: =SUM(F13:M13) -> 0
A14: 46 | B14: 730 | C14: Enterprise Operations | E14: =SUM(F14:M14) -> 0
A15: 47 | B15: 740 | C15: Student Activity Program | E15: =SUM(F15:M15) -> 0
A16: 48
A17: 49 | B17: 700 | C17: TOTAL NON-INSTRUCTION | D17: =SUM(D12:D15) -> 0 | E17: =SUM(E12:E15) -> 0 | F17: 0 | G17: 0 | H17: 0 | I17: 0 | J17: 0 | K17: 0 | L17: 0 | M17: 0
A18: 50
A19: 51 | B19: 810 | C19: Capital Assets | E19: =SUM(F19:M19) -> 0
A20: 52 | B20: 811 | C20: Capital Assets - NonStudent Occupied | E20: =SUM(F20:M20) -> 0
A21: 53
A22: 54 | B22: 800 | C22: TOTAL CAPITAL ASSET PROGRAMS | D22: =SUM(D19:D20) -> 0 | E22: =SUM(E19:E20) -> 0 | F22: =SUM(F19:F20) -> 0 | G22: =SUM(G19:G20) -> 0 | H22: 0 | I22: 0 | J22: 0 | K22: 0 | L22: 0 | M22: 0
A23: 55
A24: 56 | B24: 911 | C24: Debt Services Program - Principal | D24: 1020000 | E24: =SUM(F24:M24) -> 1005000 | K24: 1005000
A25: 57 | B25: 912 | C25: Debt Services Program - Interest | D25: 659103 | E25: =SUM(F25:M25) -> 563378 | K25: 563378
A26: 58 | B26: 913 | C26: Debt Services Program - Refunded Debt | D26: 0 | E26: =SUM(F26:M26) -> 0
A27: 59 | B27: 920 | C27: Fund Transfers Out | D27: 0 | E27: =SUM(F27:M27) -> 0
A28: 60
A29: 61 | B29: 900 | C29: TOTAL OTHER SERVICES | D29: 1679103 | E29: =SUM(E24:E27) -> 1568378 | F29: =SUM(F24:F28) -> 0 | G29: =SUM(G24:G28) -> 0 | H29: 0 | I29: 0 | J29: 0 | K29: =SUM(K24:K27) -> 1568378 | L29: 0 | M29: 0
A30: 62
A31: 63 | C31: TOTAL EXPENDITURES
A32: 64 | C32: (Lines 14+42+49+54+61) | D32: =D10+D29 -> 1709103 | E32: =E10+E29 -> 1598378 | F32: =SUM(F29,F22,F17,F10,'310'!F21) -> 0 | G32: =SUM(G29,G22,G17,G10,'310'!G21) -> 0 | H32: =H10 -> 30000 | I32: =SUM(I29,I22,I17,I10,'310'!I21) -> 0 | J32: =SUM(J29,J22,J17,J10,'310'!J21) -> 0 | K32: =K29 -> 1568378 | L32: =SUM(L29,L22,L17,L10,'310'!L21) -> 0 | M32: =SUM(M29,M22,M17,M10,'310'!M21) -> 0
A33: 65
A34: 66
A35: 67
A36: 68
A37: 69
A38: 70
A39: 71
A40: 72
A41: 73 | C41: BUDGET SUMMARY
A42: 74
A43: 75 | C43: Beginning Fund Balance | D43: -2412689 | E43: -1708279 | F43: BUDGET SUMMARY:
A44: 76 | C44: Revenues + Transfers In | D44: -2681027 | E44: -2161596
A45: 77 | C45: TOTAL REVENUE (lines 74 + 75) | D45: -5093716 | E45: =SUM(E43:E44) -> -3869875 | F45: The total on line 77 must equal the total on line 81.
A46: 78
A47: 79 | C47: Total Expenditures | D47: 1709103 | E47: =E32 -> 1598378
A48: 80 | C48: Unappropriated Balance | D48: 3384613 | E48: 2271497
A49: 81 | C49: TOTAL EXPD + UNAPPROPRIATED BAL (lines 78 + 79) | D49: 5093716 | E49: =SUM(E47:E48) -> 3869875
A50: =CELL("FILENAME",A2) -> C:\Users\teacher\Desktop\[KSD 414 2025-Expenditures.xlsm]310b

Sheet 410
E1: BUDGET | M1: Page 59
E2: EXPENDITURES | M2: CAPITAL CONSTRUCTION PROJECT
E3: July 1, 2024 - June 30, 2025 | M3: FUND NO: 410
A4: NOTE: Round each entry to the nearest dollar amount.
C5: EXPENDITURES | D5: Prior Year | E5: Proposed | F5: 100 | G5: 200 | H5: 300 | I5: 400 | J5: 500 | K5: 600 | L5: 700 | M5: 800
H6: Purchased | I6: Supplies | J6: Capital | K6: Debt | L6: Insurance-
A7: Line | B7: Code | C7: Functions/Programs | D7: Budget | E7: Budget | F7: Salaries | G7: Benefits | H7: Services | I7: Materials | J7: Objects | K7: Retirement | L7: Judgment | M7: Transfers
A8: 1 | B8: 512 | C8: Elementary School Program | E8: =SUM(F8:M8) -> 0
A9: 2 | B9: 515 | C9: Secondary School Program | E9: =SUM(F9:M9) -> 0
A10: 3 | B10: 517 | C10: Alternative School Program | E10: 0
A11: 4 | B11: 519 | C11: Vocational-Technical Program | E11: 0
A12: 5 | B12: 521 | C12: Special Education Program | E12: 0
A13: 6 | B13: 522 | C13: Special Education Preschool Program | E13: 0
A14: 7 | B14: 524 | C14: Gifted & Talented Program | E14: 0
A15: 8 | B15: 531 | C15: Interscholastic Program | E15: 0
A16: 9 | B16: 532 | C16: School Activity Program | E16: 0
A17: 10 | B17: 541 | C17: Summer School Program | E17: 0
A18: 11 | B18: 542 | C18: Adult School Program | E18: 0
A19: 12 | B19: 546 | C19: Detention Center Program | E19: 0
A20: 13
A21: 14 | B21: 500 | C21: TOTAL INSTRUCTION | D21: =SUM(D8:D19) -> 0 | E21: 0 | F21: 0 | G21: 0 | H21: 0 | I21: 0 | J21: 0 | K21: 0 | L21: 0 | M21: 0
A22: 15
A23: 16 | B23: 611 | C23: Attendance-Guidance-Health Program | E23: =SUM(F23:M23) -> 0
A24: 17 | B24: 616 | C24: Special Education Support Services Prog | E24: =SUM(F24:M24) -> 0
A25: 18
A26: 19 | B26: 621 | C26: Instruction Improvement Program | E26: =SUM(F26:M26) -> 0
A27: 20 | B27: 622 | C27: Educational Media Program | E27: 0
A28: 21 | B28: 623 | C28: Instruction-Related Technology Program | E28: 0
A29: 22 | B29: 624 | C29: Books and Periodicals | E29: 0
A30: 23 | B30: 631 | C30: Board of Education Program | E30: 0
A31: 24 | B31: 632 | C31: District Administration Program | E31: 0
A32: 25
A33: 26 | B33: 641 | C33: School Administration Program | E33: =SUM(F33:M33) -> 0
A34: 27
A35: 28 | B35: 651 | C35: Business Operation Program | E35: =SUM(F35:M35) -> 0
A36: 29 | B36: 655 | C36: Central Service Program | E36: =SUM(F36:M36) -> 0
A37: 30 | B37: 656 | C37: Administrative Technology Services Prog | E37: 0
A38: 31 | B38: 661 | C38: Buildings-Care Program (Custodial) | E38: 0
A39: 32 | B39: 663 | C39: Maintenance - Non Student Occupied | E39: 0
A40: 33 | B40: 664 | C40: Maintenance - Buildings and Equipment | E40: 0
A41: 34 | B41: 665 | C41: Maintenance - Grounds | E41: 0
A42: 35 | B42: 667 | C42: Security Program | E42: 0
A43: 36
A44: 37 | B44: 681 | C44: Pupil - To School Trans. Program | E44: =SUM(F44:M44) -> 0
A45: 38 | B45: 682 | C45: Pupil - Activity Trans. Program | E45: =SUM(F45:M45) -> 0
A46: 39 | B46: 683 | C46: General Transportation Program | E46: =SUM(F46:M46) -> 0
A48: =CELL("filename",A48) -> C:\Users\teacher\Desktop\[KSD 414 2025-Expenditures.xlsm]410
C49: Subtotal (carried over to page b) | D49: =SUM(D23:D47) -> 0 | E49: =SUM(E23:E47) -> 0 | F49: 0 | G49: 0 | H49: 0 | I49: 0 | J49: 0 | K49: 0 | L49: 0 | M49: 0
A51: End of Sheet

Sheet 410b
E1: BUDGET | M1: Page 60
E2: EXPENDITURES | M2: CAPITAL CONSTRUCTION PROJECT
E3: July 1, 2024 - June 30, 2025 | M3: FUND NO: 410
A4: NOTE: Round each entry to the nearest dollar amount.
C5: EXPENDITURES | D5: Prior Year | E5: Proposed | F5: 100 | G5: 200 | H5: 300 | I5: 400 | J5: 500 | K5: 600 | L5: 700 | M5: 800
H6: Purchased | I6: Supplies | J6: Capital | K6: Debt | L6: Insurance-
A7: Line | B7: Code | C7: Functions/Programs | D7: Budget | E7: Budget | F7: Salaries | G7: Benefits | H7: Services | I7: Materials | J7: Objects | K7: Retirement | L7: Judgment | M7: Transfers
A8: 40 | B8: 691 | C8: Other Support Services Program | E8: =SUM(F8:M8) -> 0
A9: 41
A10: 42 | B10: 600 | C10: TOTAL SUPPORT SERVICES | D10: =+D8+'410'!D49 -> 0 | E10: =+E8+'410'!E49 -> 0 | F10: =+F8+'410'!F49 -> 0 | G10: =+G8+'410'!G49 -> 0 | H10: =+H8+'410'!H49 -> 0 | I10: =+I8+'410'!I49 -> 0 | J10: =+J8+'410'!J49 -> 0 | K10: =+K8+'410'!K49 -> 0 | L10: =+L8+'410'!L49 -> 0 | M10: =+M8+'410'!M49 -> 0
A11: 43
A12: 44 | B12: 710 | C12: Child Nutrition Program | E12: =SUM(F12:M12) -> 0
A13: 45 | B13: 720 | C13: Community Services Program | E13: =SUM(F13:M13) -> 0
A14: 46 | B14: 730 | C14: Enterprise Operations | E14: =SUM(F14:M14) -> 0
A15: 47 | B15: 740 | C15: Student Activity Program | E15: =SUM(F15:M15) -> 0
A16: 48
A17: 49 | B17: 700 | C17: TOTAL NON-INSTRUCTION | D17: =SUM(D12:D15) -> 0 | E17: =SUM(E12:E15) -> 0 | F17: 0 | G17: 0 | H17: 0 | I17: 0 | J17: 0 | K17: 0 | L17: 0 | M17: 0
A18: 50
A19: 51 | B19: 810 | C19: Capital Assets | E19: =SUM(F19:M19) -> 0
A20: 52 | B20: 811 | C20: Capital Assets - NonStudent Occupied | E20: =SUM(F20:M20) -> 0
A21: 53
A22: 54 | B22: 800 | C22: TOTAL CAPITAL ASSET PROGRAMS | D22: =SUM(D19:D20) -> 0 | E22: =SUM(E19:E20) -> 0 | F22: =SUM(F19:F20) -> 0 | G22: =SUM(G19:G20) -> 0 | H22: 0 | I22: 0 | J22: 0 | K22: 0 | L22: 0 | M22: 0
A23: 55
A24: 56 | B24: 911 | C24: Debt Services Program - Principal | E24: =SUM(F24:M24) -> 0
A25: 57 | B25: 912 | C25: Debt Services Program - Interest | E25: =SUM(F25:M25) -> 0
A26: 58 | B26: 913 | C26: Debt Services Program - Refunded Debt | E26: =SUM(F26:M26) -> 0
A27: 59 | B27: 920 | C27: Fund Transfers Out | E27: =SUM(F27:M27) -> 0
A28: 60
A29: 61 | B29: 900 | C29: TOTAL OTHER SERVICES | D29: =SUM(D24:D28) -> 0 | E29: =SUM(E24:E28) -> 0 | F29: =SUM(F24:F28) -> 0 | G29: =SUM(G24:G28) -> 0 | H29: 0 | I29: 0 | J29: 0 | K29: 0 | L29: 0 | M29: 0
A30: 62
A31: 63 | C31: TOTAL EXPENDITURES
A32: 64 | C32: (Lines 14+42+49+54+61) | D32: =SUM(D29,D22,D17,D10,'410'!D21) -> 0 | E32: =SUM(E29,E22,E17,E10,'410'!E21) -> 0 | F32: =SUM(F29,F22,F17,F10,'410'!F21) -> 0 | G32: =SUM(G29,G22,G17,G10,'410'!G21) -> 0 | H32: =SUM(H29,H22,H17,H10,'410'!H21) -> 0 | I32: =SUM(I29,I22,I17,I10,'410'!I21) -> 0 | J32: =SUM(J29,J22,J17,J10,'410'!J21) -> 0 | K32: =SUM(K29,K22,K17,K10,'410'!K21) -> 0 | L32: =SUM(L29,L22,L17,L10,'410'!L21) -> 0 | M32: =SUM(M29,M22,M17,M10,'410'!M21) -> 0
A33: 65
A34: 66
A35: 67
A36: 68
A37: 69
A38: 70
A39: 71
A40: 72
A41: 73 | C41: BUDGET SUMMARY
A42: 74
A43: 75 | C43: Beginning Fund Balance | D43: -30288 | E43: -30289 | F43: BUDGET SUMMARY:
A44: 76 | C44: Revenues + Transfers In
A45: 77 | C45: TOTAL REVENUE (lines 74 + 75) | D45: -30288 | E45: =SUM(E43:E44) -> -30289 | F45: The total on line 77 must equal the total on line 81.
A46: 78
A47: 79 | C47: Total Expenditures | D47: 0 | E47: =E32 -> 0
A48: 80 | C48: Unappropriated Balance | D48: 30288 | E48: 30289
A49: 81 | C49: TOTAL EXPD + UNAPPROPRIATED BAL (lines 78 + 79) | D49: 30288 | E49: =SUM(E47:E48) -> 30289
A50: =CELL("FILENAME",A2) -> C:\Users\teacher\Desktop\[KSD 414 2025-Expenditures.xlsm]410b

Sheet 420
E1: BUDGET | M1: Page 61
E2: EXPENDITURES | M2: PLANT FACILITIES FUND
E3: July 1, 2024 - June 30, 2025 | M3: FUND NO: 420
A4: NOTE: Round each entry to the nearest dollar amount.
C5: EXPENDITURES | D5: Prior Year | E5: Proposed | F5: 100 | G5: 200 | H5: 300 | I5: 400 | J5: 500 | K5: 600 | L5: 700 | M5: 800
H6: Purchased | I6: Supplies | J6: Capital | K6: Debt | L6: Insurance-
A7: Line | B7: Code | C7: Functions/Programs | D7: Budget | E7: Budget | F7: Salaries | G7: Benefits | H7: Services | I7: Materials | J7: Objects | K7: Retirement | L7: Judgment | M7: Transfers
A8: 1 | B8: 512 | C8: Elementary School Program | E8: =SUM(F8:M8) -> 0
A9: 2 | B9: 515 | C9: Secondary School Program | E9: =SUM(F9:M9) -> 0
A10: 3 | B10: 517 | C10: Alternative School Program | E10: 0
A11: 4 | B11: 519 | C11: Vocational-Technical Program | E11: 0
A12: 5 | B12: 521 | C12: Special Education Program | E12: 0
A13: 6 | B13: 522 | C13: Special Education Preschool Program | E13: 0
A14: 7 | B14: 524 | C14: Gifted & Talented Program | E14: 0
A15: 8 | B15: 531 | C15: Interscholastic Program | E15: 0
A16: 9 | B16: 532 | C16: School Activity Program | E16: 0
A17: 10 | B17: 541 | C17: Summer School Program | E17: 0
A18: 11 | B18: 542 | C18: Adult School Program | E18: 0
A19: 12 | B19: 546 | C19: Detention Center Program | E19: 0
A20: 13
A21: 14 | B21: 500 | C21: TOTAL INSTRUCTION | D21: =SUM(D8:D19) -> 0 | E21: 0 | F21: 0 | G21: 0 | H21: 0 | I21: 0 | J21: 0 | K21: 0 | L21: 0 | M21: 0
A22: 15
A23: 16 | B23: 611 | C23: Attendance-Guidance-Health Program | E23: =SUM(F23:M23) -> 0
A24: 17 | B24: 616 | C24: Special Education Support Services Prog | E24: =SUM(F24:M24) -> 0
A25: 18
A26: 19 | B26: 621 | C26: Instruction Improvement Program | E26: =SUM(F26:M26) -> 0
A27: 20 | B27: 622 | C27: Educational Media Program | E27: 0
A28: 21 | B28: 623 | C28: Instruction-Related Technology Program | E28: 0
A29: 22 | B29: 624 | C29: Books and Periodicals | E29: 0
A30: 23 | B30: 631 | C30: Board of Education Program | E30: 0
A31: 24 | B31: 632 | C31: District Administration Program | E31: 0
A32: 25
A33: 26 | B33: 641 | C33: School Administration Program | E33: =SUM(F33:M33) -> 0
A34: 27
A35: 28 | B35: 651 | C35: Business Operation Program | D35: 0 | E35: =SUM(F35:M35) -> 0
A36: 29 | B36: 655 | C36: Central Service Program | D36: 0 | E36: =SUM(F36:M36) -> 0
A37: 30 | B37: 656 | C37: Administrative Technology Services Prog | D37: 0 | E37: 0
A38: 31 | B38: 661 | C38: Buildings-Care Program (Custodial) | D38: 0 | E38: 0
A39: 32 | B39: 663 | C39: Maintenance - Non Student Occupied | D39: 0 | E39: 0
A40: 33 | B40: 664 | C40: Maintenance - Buildings and Equipment | D40: 41700 | E40: =SUM(F40:M40) -> 101000 | J40: 101000
A41: 34 | B41: 665 | C41: Maintenance - Grounds | D41: 16000 | E41: =SUM(F41:M41) -> 64749 | J41: 64749
A42: 35 | B42: 667 | C42: Security Program | D42: 0 | E42: 0
A43: 36
A44: 37 | B44: 681 | C44: Pupil - To School Trans. Program | D44: 25000 | E44: =SUM(F44:M44) -> 25000 | J44: 25000
A45: 38 | B45: 682 | C45: Pupil - Activity Trans. Program | D45: 0 | E45: =SUM(F45:M45) -> 0
A46: 39 | B46: 683 | C46: General Transportation Program | D46: 0 | E46: =SUM(F46:M46) -> 0
A48: =CELL("filename",A48) -> C:\Users\teacher\Desktop\[KSD 414 2025-Expenditures.xlsm]420
C49: Subtotal (carried over to page b) | D49: 82700 | E49: =SUM(E23:E46) -> 190749 | F49: =SUM(F23:F47) -> 0 | G49: 0 | H49: 0 | I49: 0 | J49: 190749 | K49: 0 | L49: 0 | M49: 0
A51: End of Sheet

Sheet 420b
E1: BUDGET | M1: Page 62
E2: EXPENDITURES | M2: PLANT FACILITIES FUND
E3: July 1, 2024 - June 30, 2025 | M3: FUND NO: 420
A4: NOTE: Round each entry to the nearest dollar amount.
C5: EXPENDITURES | D5: Prior Year | E5: Proposed | F5: 100 | G5: 200 | H5: 300 | I5: 400 | J5: 500 | K5: 600 | L5: 700 | M5: 800
H6: Purchased | I6: Supplies | J6: Capital | K6: Debt | L6: Insurance-
A7: Line | B7: Code | C7: Functions/Programs | D7: Budget | E7: Budget | F7: Salaries | G7: Benefits | H7: Services | I7: Materials | J7: Objects | K7: Retirement | L7: Judgment | M7: Transfers
A8: 40 | B8: 691 | C8: Other Support Services Program | E8: =SUM(F8:M8) -> 0
A9: 41
A10: 42 | B10: 600 | C10: TOTAL SUPPORT SERVICES | D10: 82700 | E10: =+E8+'420'!E49 -> 190749 | F10: =+F8+'420'!F49 -> 0 | G10: =+G8+'420'!G49 -> 0 | H10: =+H8+'420'!H49 -> 0 | I10: =+I8+'420'!I49 -> 0 | J10: =+J8+'420'!J49 -> 190749 | K10: =+K8+'420'!K49 -> 0 | L10: =+L8+'420'!L49 -> 0 | M10: =+M8+'420'!M49 -> 0
A11: 43
A12: 44 | B12: 710 | C12: Child Nutrition Program | D12: 0 | E12: =SUM(F12:M12) -> 0
A13: 45 | B13: 720 | C13: Community Services Program | D13: 0 | E13: =SUM(F13:M13) -> 0
A14: 46 | B14: 730 | C14: Enterprise Operations | D14: 0 | E14: =SUM(F14:M14) -> 0
A15: 47 | B15: 740 | C15: Student Activity Program | D15: 0 | E15: =SUM(F15:M15) -> 0
A16: 48
A17: 49 | B17: 700 | C17: TOTAL NON-INSTRUCTION | D17: 0 | E17: =SUM(E12:E15) -> 0 | F17: 0 | G17: 0 | H17: 0 | I17: 0 | J17: 0 | K17: 0 | L17: 0 | M17: 0
A18: 50
A19: 51 | B19: 810 | C19: Capital Assets | D19: 100000 | E19: =SUM(F19:M19) -> 119151 | J19: 119151
A20: 52 | B20: 811 | C20: Capital Assets - NonStudent Occupied | D20: 0 | E20: =SUM(F20:M20) -> 0
A21: 53
A22: 54 | B22: 800 | C22: TOTAL CAPITAL ASSET PROGRAMS | D22: 100000 | E22: =SUM(E19:E20) -> 119151 | F22: =SUM(F19:F20) -> 0 | G22: =SUM(G19:G20) -> 0 | H22: 0 | I22: 0 | J22: =SUM(J19:J20) -> 119151 | K22: 0 | L22: 0 | M22: 0
A23: 55
A24: 56 | B24: 911 | C24: Debt Services Program - Principal | D24: 0 | E24: =SUM(F24:M24) -> 0
A25: 57 | B25: 912 | C25: Debt Services Program - Interest | D25: 0 | E25: =SUM(F25:M25) -> 0
A26: 58 | B26: 913 | C26: Debt Services Program - Refunded Debt | D26: 0 | E26: =SUM(F26:M26) -> 0
A27: 59 | B27: 920 | C27: Fund Transfers Out | D27: 0 | E27: =SUM(F27:M27) -> 0
A28: 60
A29: 61 | B29: 900 | C29: TOTAL OTHER SERVICES | D29: 0 | E29: =SUM(E24:E28) -> 0 | F29: =SUM(F24:F28) -> 0 | G29: =SUM(G24:G28) -> 0 | H29: 0 | I29: 0 | J29: 0 | K29: 0 | L29: 0 | M29: 0
A30: 62
A31: 63 | C31: TOTAL EXPENDITURES
A32: 64 | C32: (Lines 14+42+49+54+61) | D32: 182700 | E32: ='420'!E49+'420b'!E22 -> 309900 | F32: =SUM(F29,F22,F17,F10,'420'!F21) -> 0 | G32: =SUM(G29,G22,G17,G10,'420'!G21) -> 0 | H32: =SUM(H29,H22,H17,H10,'420'!H21) -> 0 | I32: =SUM(I29,I22,I17,I10,'420'!I21) -> 0 | J32: =SUM(J29,J22,J17,J10,'420'!J21) -> 309900 | K32: =SUM(K29,K22,K17,K10,'420'!K21) -> 0 | L32: =SUM(L29,L22,L17,L10,'420'!L21) -> 0 | M32: =SUM(M29,M22,M17,M10,'420'!M21) -> 0
A33: 65
A34: 66
A35: 67
A36: 68
A37: 69
A38: 70
A39: 71
A40: 72
A41: 73 | C41: BUDGET SUMMARY
A42: 74
A43: 75 | C43: Beginning Fund Balance | D43: -2500 | E43: -143140 | F43: BUDGET SUMMARY:
A44: 76 | C44: Revenues + Transfers In | D44: -309900 | E44: -309900
A45: 77 | C45: TOTAL REVENUE (lines 74 + 75) | D45: -312400 | E45: =SUM(E43:E44) -> -453040 | F45: The total on line 77 must equal the total on line 81.
A46: 78
A47: 79 | C47: Total Expenditures | D47: 182700 | E47: =E32 -> 309900
A48: 80 | C48: Unappropriated Balance | D48: 129700 | E48: 143140
A49: 81 | C49: TOTAL EXPD + UNAPPROPRIATED BAL (lines 78 + 79) | D49: 312400 | E49: =SUM(E47:E48) -> 453040
A50: =CELL("FILENAME",A2) -> C:\Users\teacher\Desktop\[KSD 414 2025-Expenditures.xlsm]420b

Sheet 424
E1: BUDGET | M1: Page 63
E2: EXPENDITURES | M2: PLANT FACILITIES -Bus Depreciation
E3: July 1, 2024 - June 30, 2025 | M3: FUND NO: 424
A4: NOTE: Round each entry to the nearest dollar amount.
C5: EXPENDITURES | D5: Prior Year | E5: Proposed | F5: 100 | G5: 200 | H5: 300 | I5: 400 | J5: 500 | K5: 600 | L5: 700 | M5: 800
H6: Purchased | I6: Supplies | J6: Capital | K6: Debt | L6: Insurance-
A7: Line | B7: Code | C7: Functions/Programs | D7: Budget | E7: Budget | F7: Salaries | G7: Benefits | H7: Services | I7: Materials | J7: Objects | K7: Retirement | L7: Judgment | M7: Transfers
A8: 1 | B8: 512 | C8: Elementary School Program | E8: =SUM(F8:M8) -> 0
A9: 2 | B9: 515 | C9: Secondary School Program | E9: =SUM(F9:M9) -> 0
A10: 3 | B10: 517 | C10: Alternative School Program | E10: 0
A11: 4 | B11: 519 | C11: Vocational-Technical Program | E11: 0
A12: 5 | B12: 521 | C12: Special Education Program | E12: 0
A13: 6 | B13: 522 | C13: Special Education Preschool Program | E13: 0
A14: 7 | B14: 524 | C14: Gifted & Talented Program | E14: 0
A15: 8 | B15: 531 | C15: Interscholastic Program | E15: 0
A16: 9 | B16: 532 | C16: School Activity Program | E16: 0
A17: 10 | B17: 541 | C17: Summer School Program | E17: 0
A18: 11 | B18: 542 | C18: Adult School Program | E18: 0
A19: 12 | B19: 546 | C19: Detention Center Program | E19: 0
A20: 13
A21: 14 | B21: 500 | C21: TOTAL INSTRUCTION | D21: =SUM(D8:D19) -> 0 | E21: 0 | F21: 0 | G21: 0 | H21: 0 | I21: 0 | J21: 0 | K21: 0 | L21: 0 | M21: 0
A22: 15
A23: 16 | B23: 611 | C23: Attendance-Guidance-Health Program | E23: =SUM(F23:M23) -> 0
A24: 17 | B24: 616 | C24: Special Education Support Services Prog | E24: =SUM(F24:M24) -> 0
A25: 18
A26: 19 | B26: 621 | C26: Instruction Improvement Program | E26: =SUM(F26:M26) -> 0
A27: 20 | B27: 622 | C27: Educational Media Program | E27: 0
A28: 21 | B28: 623 | C28: Instruction-Related Technology Program | E28: 0
A29: 22 | B29: 624 | C29: Books and Periodicals | E29: 0
A30: 23 | B30: 631 | C30: Board of Education Program | E30: 0
A31: 24 | B31: 632 | C31: District Administration Program | E31: 0
A32: 25
A33: 26 | B33: 641 | C33: School Administration Program | E33: =SUM(F33:M33) -> 0
A34: 27
A35: 28 | B35: 651 | C35: Business Operation Program | E35: =SUM(F35:M35) -> 0
A36: 29 | B36: 655 | C36: Central Service Program | E36: =SUM(F36:M36) -> 0
A37: 30 | B37: 656 | C37: Administrative Technology Services Prog | E37: 0
A38: 31 | B38: 661 | C38: Buildings-Care Program (Custodial) | E38: 0
A39: 32 | B39: 663 | C39: Maintenance - Non Student Occupied | E39: 0
A40: 33 | B40: 664 | C40: Maintenance - Buildings and Equipment | E40: 0
A41: 34 | B41: 665 | C41: Maintenance - Grounds | E41: 0
A42: 35 | B42: 667 | C42: Security Program | E42: 0
A43: 36
A44: 37 | B44: 681 | C44: Pupil - To School Trans. Program | D44: 46516 | E44: =SUM(F44:M44) -> 58770 | M44: 58770
A45: 38 | B45: 682 | C45: Pupil - Activity Trans. Program | E45: =SUM(F45:M45) -> 0
A46: 39 | B46: 683 | C46: General Transportation Program | E46: =SUM(F46:M46) -> 0
A48: =CELL("filename",A48) -> C:\Users\teacher\Desktop\[KSD 414 2025-Expenditures.xlsm]424
C49: Subtotal (carried over to page b) | D49: 46516 | E49: =SUM(E44:E46) -> 58770 | F49: =SUM(F23:F47) -> 0 | G49: 0 | H49: 0 | I49: 0 | J49: 0 | K49: 0 | L49: 0 | M49: =SUM(M44:M46) -> 58770
A51: End of Sheet

Sheet 424b
E1: BUDGET | M1: Page 64
E2: EXPENDITURES | M2: PLANT FACILITIES - Bus Depreciation
E3: July 1, 2024 - June 30, 2025 | M3: FUND NO: 424
A4: NOTE: Round each entry to the nearest dollar amount.
C5: EXPENDITURES | D5: Prior Year | E5: Proposed | F5: 100 | G5: 200 | H5: 300 | I5: 400 | J5: 500 | K5: 600 | L5: 700 | M5: 800
H6: Purchased | I6: Supplies | J6: Capital | K6: Debt | L6: Insurance-
A7: Line | B7: Code | C7: Functions/Programs | D7: Budget | E7: Budget | F7: Salaries | G7: Benefits | H7: Services | I7: Materials | J7: Objects | K7: Retirement | L7: Judgment | M7: Transfers
A8: 40 | B8: 691 | C8: Other Support Services Program | E8: =SUM(F8:M8) -> 0
A9: 41
A10: 42 | B10: 600 | C10: TOTAL SUPPORT SERVICES | D10: 46516 | E10: =+E8+'424'!E49 -> 58770 | F10: =+F8+'424'!F49 -> 0 | G10: =+G8+'424'!G49 -> 0 | H10: =+H8+'424'!H49 -> 0 | I10: =+I8+'424'!I49 -> 0 | J10: =+J8+'424'!J49 -> 0 | K10: =+K8+'424'!K49 -> 0 | L10: =+L8+'424'!L49 -> 0 | M10: =+M8+'424'!M49 -> 58770
A11: 43
A12: 44 | B12: 710 | C12: Child Nutrition Program | D12: 0 | E12: =SUM(F12:M12) -> 0
A13: 45 | B13: 720 | C13: Community Services Program | D13: 0 | E13: =SUM(F13:M13) -> 0
A14: 46 | B14: 730 | C14: Enterprise Operations | D14: 0 | E14: =SUM(F14:M14) -> 0
A15: 47 | B15: 740 | C15: Student Activity Program | D15: 0 | E15: =SUM(F15:M15) -> 0
A16: 48
A17: 49 | B17: 700 | C17: TOTAL NON-INSTRUCTION | D17: 0 | E17: =SUM(E12:E15) -> 0 | F17: 0 | G17: 0 | H17: 0 | I17: 0 | J17: 0 | K17: 0 | L17: 0 | M17: 0
A18: 50
A19: 51 | B19: 810 | C19: Capital Assets | D19: 0 | E19: =SUM(F19:M19) -> 0
A20: 52 | B20: 811 | C20: Capital Assets - NonStudent Occupied | D20: 0 | E20: =SUM(F20:M20) -> 0
A21: 53
A22: 54 | B22: 800 | C22: TOTAL CAPITAL ASSET PROGRAMS | D22: 0 | E22: =SUM(E19:E20) -> 0 | F22: =SUM(F19:F20) -> 0 | G22: =SUM(G19:G20) -> 0 | H22: 0 | I22: 0 | J22: 0 | K22: 0 | L22: 0 | M22: 0
A23: 55
A24: 56 | B24: 911 | C24: Debt Services Program - Principal | D24: 0 | E24: =SUM(F24:M24) -> 0
A25: 57 | B25: 912 | C25: Debt Services Program - Interest | D25: 0 | E25: =SUM(F25:M25) -> 0
A26: 58 | B26: 913 | C26: Debt Services Program - Refunded Debt | D26: 0 | E26: =SUM(F26:M26) -> 0
A27: 59 | B27: 920 | C27: Fund Transfers Out | D27: 0 | E27: =SUM(F27:M27) -> 0
A28: 60
A29: 61 | B29: 900 | C29: TOTAL OTHER SERVICES | D29: 0 | E29: =SUM(E24:E28) -> 0 | F29: =SUM(F24:F28) -> 0 | G29: =SUM(G24:G28) -> 0 | H29: 0 | I29: 0 | J29: 0 | K29: 0 | L29: 0 | M29: 0
A30: 62
A31: 63 | C31: TOTAL EXPENDITURES
A32: 64 | C32: (Lines 14+42+49+54+61) | D32: 46516 | E32: ='424'!E49 -> 58770 | F32: =SUM(F29,F22,F17,F10,'424'!F21) -> 0 | G32: =SUM(G29,G22,G17,G10,'424'!G21) -> 0 | H32: =SUM(H29,H22,H17,H10,'424'!H21) -> 0 | I32: =SUM(I29,I22,I17,I10,'424'!I21) -> 0 | J32: =SUM(J29,J22,J17,J10,'424'!J21) -> 0 | K32: =SUM(K29,K22,K17,K10,'424'!K21) -> 0 | L32: =SUM(L29,L22,L17,L10,'424'!L21) -> 0 | M32: =SUM(M29,M22,M17,M10,'424'!M21) -> 58770
A33: 65
A34: 66
A35: 67
A36: 68
A37: 69
A38: 70
A39: 71
A40: 72
A41: 73 | C41: BUDGET SUMMARY
A42: 74
A43: 75 | C43: Beginning Fund Balance | F43: BUDGET SUMMARY:
A44: 76 | C44: Revenues + Transfers In | D44: -46516 | E44: -58770
A45: 77 | C45: TOTAL REVENUE (lines 74 + 75) | D45: -46516 | E45: =SUM(E44) -> -58770 | F45: The total on line 77 must equal the total on line 81.
A46: 78
A47: 79 | C47: Total Expenditures | D47: 46516 | E47: 58770
A48: 80 | C48: Unappropriated Balance
A49: 81 | C49: TOTAL EXPD + UNAPPROPRIATED BAL (lines 78 + 79) | D49: 46516 | E49: =SUM(E47:E48) -> 58770
A50: =CELL("FILENAME",A2) -> C:\Users\teacher\Desktop\[KSD 414 2025-Expenditures.xlsm]424b

Sheet 435
E1: BUDGET | M1: Page 65
E2: EXPENDITURES | M2: SCHOOL DISTRICT FACILITIES FUND
E3: July 1, 2024 - June 30, 2025 | M3: FUND NO: 435
A4: NOTE: Round each entry to the nearest dollar amount.
C5: EXPENDITURES | D5: Prior Year | E5: Proposed | F5: 100 | G5: 200 | H5: 300 | I5: 400 | J5: 500 | K5: 600 | L5: 700 | M5: 800
H6: Purchased | I6: Supplies | J6: Capital | K6: Debt | L6: Insurance-
A7: Line | B7: Code | C7: Functions/Programs | D7: Budget | E7: Budget | F7: Salaries | G7: Benefits | H7: Services | I7: Materials | J7: Objects | K7: Retirement | L7: Judgment | M7: Transfers
A8: 1 | B8: 512 | C8: Elementary School Program | E8: =SUM(F8:M8) -> 0
A9: 2 | B9: 515 | C9: Secondary School Program | E9: =SUM(F9:M9) -> 0
A10: 3 | B10: 517 | C10: Alternative School Program | E10: 0
A11: 4 | B11: 519 | C11: Vocational-Technical Program | E11: 0
A12: 5 | B12: 521 | C12: Special Education Program | E12: 0
A13: 6 | B13: 522 | C13: Special Education Preschool Program | E13: 0
A14: 7 | B14: 524 | C14: Gifted & Talented Program | E14: 0
A15: 8 | B15: 531 | C15: Interscholastic Program | E15: 0
A16: 9 | B16: 532 | C16: School Activity Program | E16: 0
A17: 10 | B17: 541 | C17: Summer School Program | E17: 0
A18: 11 | B18: 542 | C18: Adult School Program | E18: 0
A19: 12 | B19: 546 | C19: Detention Center Program | E19: 0
A20: 13
A21: 14 | B21: 500 | C21: TOTAL INSTRUCTION | D21: =SUM(D8:D19) -> 0 | E21: 0 | F21: 0 | G21: 0 | H21: 0 | I21: 0 | J21: 0 | K21: 0 | L21: 0 | M21: 0
A22: 15
A23: 16 | B23: 611 | C23: Attendance-Guidance-Health Program | E23: =SUM(F23:M23) -> 0
A24: 17 | B24: 616 | C24: Special Education Support Services Prog | E24: =SUM(F24:M24) -> 0
A25: 18
A26: 19 | B26: 621 | C26: Instruction Improvement Program | E26: =SUM(F26:M26) -> 0
A27: 20 | B27: 622 | C27: Educational Media Program | E27: 0
A28: 21 | B28: 623 | C28: Instruction-Related Technology Program | E28: 0
A29: 22 | B29: 624 | C29: Books and Periodicals | E29: 0
A30: 23 | B30: 631 | C30: Board of Education Program | E30: 0
A31: 24 | B31: 632 | C31: District Administration Program | E31: 0
A32: 25
A33: 26 | B33: 641 | C33: School Administration Program | E33: =SUM(F33:M33) -> 0
A34: 27
A35: 28 | B35: 651 | C35: Business Operation Program | E35: =SUM(F35:M35) -> 0
A36: 29 | B36: 655 | C36: Central Service Program | E36: =SUM(F36:M36) -> 0
A37: 30 | B37: 656 | C37: Administrative Technology Services Prog | E37: 0
A38: 31 | B38: 661 | C38: Buildings-Care Program (Custodial) | E38: 0
A39: 32 | B39: 663 | C39: Maintenance - Non Student Occupied | E39: 0
A40: 33 | B40: 664 | C40: Maintenance - Buildings and Equipment | E40: 0
A41: 34 | B41: 665 | C41: Maintenance - Grounds | E41: 0
A42: 35 | B42: 667 | C42: Security Program | E42: 0
A43: 36
A44: 37 | B44: 681 | C44: Pupil - To School Trans. Program | E44: =SUM(F44:M44) -> 0
A45: 38 | B45: 682 | C45: Pupil - Activity Trans. Program | E45: =SUM(F45:M45) -> 0
A46: 39 | B46: 683 | C46: General Transportation Program | E46: =SUM(F46:M46) -> 0
A48: =CELL("filename",A48) -> C:\Users\teacher\Desktop\[KSD 414 2025-Expenditures.xlsm]435
C49: Subtotal (carried over to page b) | D49: =SUM(D23:D47) -> 0 | E49: =SUM(E23:E47) -> 0 | F49: 0 | G49: 0 | H49: 0 | I49: 0 | J49: 0 | K49: 0 | L49: 0 | M49: 0
A51: End of Sheet

Sheet 435b
E1: BUDGET | M1: Page 66
E2: EXPENDITURES | M2: SCHOOL DISTRICT FACILITIES FUND
E3: July 1, 2024 - June 30, 2025 | M3: FUND NO: 435
A4: NOTE: Round each entry to the nearest dollar amount.
C5: EXPENDITURES | D5: Prior Year | E5: Proposed | F5: 100 | G5: 200 | H5: 300 | I5: 400 | J5: 500 | K5: 600 | L5: 700 | M5: 800
H6: Purchased | I6: Supplies | J6: Capital | K6: Debt | L6: Insurance-
A7: Line | B7: Code | C7: Functions/Programs | D7: Budget | E7: Budget | F7: Salaries | G7: Benefits | H7: Services | I7: Materials | J7: Objects | K7: Retirement | L7: Judgment | M7: Transfers
A8: 40 | B8: 691 | C8: Other Support Services Program | E8: =SUM(F8:M8) -> 0
A9: 41
A10: 42 | B10: 600 | C10: TOTAL SUPPORT SERVICES | D10: =+D8+'435'!D49 -> 0 | E10: =+E8+'435'!E49 -> 0 | F10: =+F8+'435'!F49 -> 0 | G10: =+G8+'435'!G49 -> 0 | H10: =+H8+'435'!H49 -> 0 | I10: =+I8+'435'!I49 -> 0 | J10: =+J8+'435'!J49 -> 0 | K10: =+K8+'435'!K49 -> 0 | L10: =+L8+'435'!L49 -> 0 | M10: =+M8+'435'!M49 -> 0
A11: 43
A12: 44 | B12: 710 | C12: Child Nutrition Program | E12: =SUM(F12:M12) -> 0
A13: 45 | B13: 720 | C13: Community Services Program | E13: =SUM(F13:M13) -> 0
A14: 46 | B14: 730 | C14: Enterprise Operations | E14: =SUM(F14:M14) -> 0
A15: 47 | B15: 740 | C15: Student Activity Program | E15: =SUM(F15:M15) -> 0
A16: 48
A17: 49 | B17: 700 | C17: TOTAL NON-INSTRUCTION | D17: =SUM(D12:D15) -> 0 | E17: =SUM(E12:E15) -> 0 | F17: 0 | G17: 0 | H17: 0 | I17: 0 | J17: 0 | K17: 0 | L17: 0 | M17: 0
A18: 50
A19: 51 | B19: 810 | C19: Capital Assets | E19: =SUM(F19:M19) -> 0
A20: 52 | B20: 811 | C20: Capital Assets - NonStudent Occupied | E20: =SUM(F20:M20) -> 0
A21: 53
A22: 54 | B22: 800 | C22: TOTAL CAPITAL ASSET PROGRAMS | D22: =SUM(D19:D20) -> 0 | E22: =SUM(E19:E20) -> 0 | F22: =SUM(F19:F20) -> 0 | G22: =SUM(G19:G20) -> 0 | H22: 0 | I22: 0 | J22: 0 | K22: 0 | L22: 0 | M22: 0
A23: 55
A24: 56 | B24: 911 | C24: Debt Services Program - Principal | E24: =SUM(F24:M24) -> 0
A25: 57 | B25: 912 | C25: Debt Services Program - Interest | E25: =SUM(F25:M25) -> 0
A26: 58 | B26: 913 | C26: Debt Services Program - Refunded Debt | E26: =SUM(F26:M26) -> 0
A27: 59 | B27: 920 | C27: Fund Transfers Out | E27: =SUM(F27:M27) -> 0
A28: 60
A29: 61 | B29: 900 | C29: TOTAL OTHER SERVICES | D29: =SUM(D24:D28) -> 0 | E29: =SUM(E24:E28) -> 0 | F29: =SUM(F24:F28) -> 0 | G29: =SUM(G24:G28) -> 0 | H29: 0 | I29: 0 | J29: 0 | K29: 0 | L29: 0 | M29: 0
A30: 62
A31: 63 | C31: TOTAL EXPENDITURES
A32: 64 | C32: (Lines 14+42+49+54+61) | D32: =SUM(D29,D22,D17,D10,'435'!D21) -> 0 | E32: =SUM(E29,E22,E17,E10,'435'!E21) -> 0 | F32: =SUM(F29,F22,F17,F10,'435'!F21) -> 0 | G32: =SUM(G29,G22,G17,G10,'435'!G21) -> 0 | H32: =SUM(H29,H22,H17,H10,'435'!H21) -> 0 | I32: =SUM(I29,I22,I17,I10,'435'!I21) -> 0 | J32: =SUM(J29,J22,J17,J10,'435'!J21) -> 0 | K32: =SUM(K29,K22,K17,K10,'435'!K21) -> 0 | L32: =SUM(L29,L22,L17,L10,'435'!L21) -> 0 | M32: =SUM(M29,M22,M17,M10,'435'!M21) -> 0
A33: 65
A34: 66
A35: 67
A36: 68
A37: 69
A38: 70
A39: 71
A40: 72
A41: 73 | C41: BUDGET SUMMARY
A42: 74
A43: 75 | C43: Beginning Fund Balance | F43: BUDGET SUMMARY:
A44: 76 | C44: Revenues + Transfers In
A45: 77 | C45: TOTAL REVENUE (lines 74 + 75) | D45: =SUM(D43:D44) -> 0 | E45: =SUM(E43:E44) -> 0 | F45: The total on line 77 must equal the total on line 81.
A46: 78
A47: 79 | C47: Total Expenditures | D47: =D32 -> 0 | E47: =E32 -> 0
A48: 80 | C48: Unappropriated Balance | D48: =+D45-D32 -> 0 | E48: =+E45-E32 -> 0
A49: 81 | C49: TOTAL EXPD + UNAPPROPRIATED BAL (lines 78 + 79) | D49: =SUM(D47:D48) -> 0 | E49: =SUM(E47:E48) -> 0
A50: =CELL("FILENAME",A2) -> C:\Users\teacher\Desktop\[KSD 414 2025-Expenditures.xlsm]435b

Sheet 436
E1: BUDGET | M1: Page 67
E2: EXPENDITURES | M2: SCHOOL DISTRICT MODERNIZATION FACILITIES FUND
E3: July 1, 2024 - June 30, 2025 | M3: FUND NO: 436
A4: NOTE: Round each entry to the nearest dollar amount.
C5: EXPENDITURES | D5: Prior Year | E5: Proposed | F5: 100 | G5: 200 | H5: 300 | I5: 400 | J5: 500 | K5: 600 | L5: 700 | M5: 800
H6: Purchased | I6: Supplies | J6: Capital | K6: Debt | L6: Insurance-
A7: Line | B7: Code | C7: Functions/Programs | D7: Budget | E7: Budget | F7: Salaries | G7: Benefits | H7: Services | I7: Materials | J7: Objects | K7: Retirement | L7: Judgment | M7: Transfers
A8: 1 | B8: 512 | C8: Elementary School Program | E8: =SUM(F8:M8) -> 0
A9: 2 | B9: 515 | C9: Secondary School Program | E9: =SUM(F9:M9) -> 0
A10: 3 | B10: 517 | C10: Alternative School Program | E10: 0
A11: 4 | B11: 519 | C11: Vocational-Technical Program | E11: 0
A12: 5 | B12: 521 | C12: Special Education Program | E12: 0
A13: 6 | B13: 522 | C13: Special Education Preschool Program | E13: 0
A14: 7 | B14: 524 | C14: Gifted & Talented Program | E14: 0
A15: 8 | B15: 531 | C15: Interscholastic Program | E15: 0
A16: 9 | B16: 532 | C16: School Activity Program | E16: 0
A17: 10 | B17: 541 | C17: Summer School Program | E17: 0
A18: 11 | B18: 542 | C18: Adult School Program | E18: 0
A19: 12 | B19: 546 | C19: Detention Center Program | E19: 0
A20: 13
A21: 14 | B21: 500 | C21: TOTAL INSTRUCTION | D21: =SUM(D8:D19) -> 0 | E21: 0 | F21: 0 | G21: 0 | H21: 0 | I21: 0 | J21: 0 | K21: 0 | L21: 0 | M21: 0
A22: 15
A23: 16 | B23: 611 | C23: Attendance-Guidance-Health Program | E23: =SUM(F23:M23) -> 0
A24: 17 | B24: 616 | C24: Special Education Support Services Prog | E24: =SUM(F24:M24) -> 0
A25: 18
A26: 19 | B26: 621 | C26: Instruction Improvement Program | E26: =SUM(F26:M26) -> 0
A27: 20 | B27: 622 | C27: Educational Media Program | E27: 0
A28: 21 | B28: 623 | C28: Instruction-Related Technology Program | E28: 0
A29: 22 | B29: 624 | C29: Books and Periodicals | E29: 0
A30: 23 | B30: 631 | C30: Board of Education Program | E30: 0
A31: 24 | B31: 632 | C31: District Administration Program | E31: 0
A32: 25
A33: 26 | B33: 641 | C33: School Administration Program | E33: =SUM(F33:M33) -> 0
A34: 27
A35: 28 | B35: 651 | C35: Business Operation Program | E35: =SUM(F35:M35) -> 0
A36: 29 | B36: 655 | C36: Central Service Program | E36: =SUM(F36:M36) -> 0
A37: 30 | B37: 656 | C37: Administrative Technology Services Prog | E37: 0
A38: 31 | B38: 661 | C38: Buildings-Care Program (Custodial) | E38: 0
A39: 32 | B39: 663 | C39: Maintenance - Non Student Occupied | E39: 0
A40: 33 | B40: 664 | C40: Maintenance - Buildings and Equipment | E40: 0
A41: 34 | B41: 665 | C41: Maintenance - Grounds | E41: 0
A42: 35 | B42: 667 | C42: Security Program | E42: 0
A43: 36
A44: 37 | B44: 681 | C44: Pupil - To School Trans. Program | E44: =SUM(F44:M44) -> 0
A45: 38 | B45: 682 | C45: Pupil - Activity Trans. Program | E45: =SUM(F45:M45) -> 0
A46: 39 | B46: 683 | C46: General Transportation Program | E46: =SUM(F46:M46) -> 0
A48: =CELL("filename",A48) -> C:\Users\teacher\Desktop\[KSD 414 2025-Expenditures.xlsm]436
C49: Subtotal (carried over to page b) | D49: =SUM(D23:D47) -> 0 | E49: =SUM(E23:E47) -> 0 | F49: 0 | G49: 0 | H49: 0 | I49: 0 | J49: 0 | K49: 0 | L49: 0 | M49: 0
A51: End of Sheet

Sheet 436b
E1: BUDGET | M1: Page 68
E2: EXPENDITURES | M2: SCHOOL DISTRICT MODERNIZATION FACILITIES FUND
E3: July 1, 2024 - June 30, 2025 | M3: FUND NO: 436
A4: NOTE: Round each entry to the nearest dollar amount.
C5: EXPENDITURES | D5: Prior Year | E5: Proposed | F5: 100 | G5: 200 | H5: 300 | I5: 400 | J5: 500 | K5: 600 | L5: 700 | M5: 800
H6: Purchased | I6: Supplies | J6: Capital | K6: Debt | L6: Insurance-
A7: Line | B7: Code | C7: Functions/Programs | D7: Budget | E7: Budget | F7: Salaries | G7: Benefits | H7: Services | I7: Materials | J7: Objects | K7: Retirement | L7: Judgment | M7: Transfers
A8: 40 | B8: 691 | C8: Other Support Services Program | E8: =SUM(F8:M8) -> 0
A9: 41
A10: 42 | B10: 600 | C10: TOTAL SUPPORT SERVICES | D10: =+D8+'436'!D49 -> 0 | E10: =+E8+'436'!E49 -> 0 | F10: =+F8+'436'!F49 -> 0 | G10: =+G8+'436'!G49 -> 0 | H10: =+H8+'436'!H49 -> 0 | I10: =+I8+'436'!I49 -> 0 | J10: =+J8+'436'!J49 -> 0 | K10: =+K8+'436'!K49 -> 0 | L10: =+L8+'436'!L49 -> 0 | M10: =+M8+'436'!M49 -> 0
A11: 43
A12: 44 | B12: 710 | C12: Child Nutrition Program | E12: =SUM(F12:M12) -> 0
A13: 45 | B13: 720 | C13: Community Services Program | E13: =SUM(F13:M13) -> 0
A14: 46 | B14: 730 | C14: Enterprise Operations | E14: =SUM(F14:M14) -> 0
A15: 47 | B15: 740 | C15: Student Activity Program | E15: =SUM(F15:M15) -> 0
A16: 48
A17: 49 | B17: 700 | C17: TOTAL NON-INSTRUCTION | D17: =SUM(D12:D15) -> 0 | E17: =SUM(E12:E15) -> 0 | F17: 0 | G17: 0 | H17: 0 | I17: 0 | J17: 0 | K17: 0 | L17: 0 | M17: 0
A18: 50
A19: 51 | B19: 810 | C19: Capital Assets | E19: =SUM(F19:M19) -> 0
A20: 52 | B20: 811 | C20: Capital Assets - NonStudent Occupied | E20: =SUM(F20:M20) -> 0
A21: 53
A22: 54 | B22: 800 | C22: TOTAL CAPITAL ASSET PROGRAMS | D22: =SUM(D19:D20) -> 0 | E22: =SUM(E19:E20) -> 0 | F22: =SUM(F19:F20) -> 0 | G22: =SUM(G19:G20) -> 0 | H22: 0 | I22: 0 | J22: 0 | K22: 0 | L22: 0 | M22: 0
A23: 55
A24: 56 | B24: 911 | C24: Debt Services Program - Principal | E24: =SUM(F24:M24) -> 0
A25: 57 | B25: 912 | C25: Debt Services Program - Interest | E25: =SUM(F25:M25) -> 0
A26: 58 | B26: 913 | C26: Debt Services Program - Refunded Debt | E26: =SUM(F26:M26) -> 0
A27: 59 | B27: 920 | C27: Fund Transfers Out | E27: =SUM(F27:M27) -> 0
A28: 60
A29: 61 | B29: 900 | C29: TOTAL OTHER SERVICES | D29: =SUM(D24:D28) -> 0 | E29: =SUM(E24:E28) -> 0 | F29: =SUM(F24:F28) -> 0 | G29: =SUM(G24:G28) -> 0 | H29: 0 | I29: 0 | J29: 0 | K29: 0 | L29: 0 | M29: 0
A30: 62
A31: 63 | C31: TOTAL EXPENDITURES
A32: 64 | C32: (Lines 14+42+49+54+61) | D32: =SUM(D29,D22,D17,D10,'436'!D21) -> 0 | E32: =SUM(E29,E22,E17,E10,'436'!E21) -> 0 | F32: =SUM(F29,F22,F17,F10,'436'!F21) -> 0 | G32: =SUM(G29,G22,G17,G10,'436'!G21) -> 0 | H32: =SUM(H29,H22,H17,H10,'436'!H21) -> 0 | I32: =SUM(I29,I22,I17,I10,'436'!I21) -> 0 | J32: =SUM(J29,J22,J17,J10,'436'!J21) -> 0 | K32: =SUM(K29,K22,K17,K10,'436'!K21) -> 0 | L32: =SUM(L29,L22,L17,L10,'436'!L21) -> 0 | M32: =SUM(M29,M22,M17,M10,'436'!M21) -> 0
A33: 65
A34: 66
A35: 67
A36: 68
A37: 69
A38: 70
A39: 71
A40: 72
A41: 73 | C41: BUDGET SUMMARY
A42: 74
A43: 75 | C43: Beginning Fund Balance | F43: BUDGET SUMMARY:
A44: 76 | C44: Revenues + Transfers In | E44: -7932600
A45: 77 | C45: TOTAL REVENUE (lines 74 + 75) | D45: =SUM(D43:D44) -> 0 | E45: =SUM(E44) -> -7932600 | F45: The total on line 77 must equal the total on line 81.
A46: 78
A47: 79 | C47: Total Expenditures | D47: =D32 -> 0 | E47: =E32 -> 0
A48: 80 | C48: Unappropriated Balance | D48: =+D45-D32 -> 0 | E48: 7932600
A49: 81 | C49: TOTAL EXPD + UNAPPROPRIATED BAL (lines 78 + 79) | D49: =SUM(D47:D48) -> 0 | E49: =SUM(E47:E48) -> 7932600
A50: =CELL("FILENAME",A2) -> C:\Users\teacher\Desktop\[KSD 414 2025-Expenditures.xlsm]436b
